Body_Code,Body_Name,Service,Posting Date,GL Code,GL Code Desc,Doc Number,Doc Net Amount,Supplier Name
http://statistics.data.gov.uk/id/local-authority/38,Oxfordshire County Council,ELECTRICAL ENERGY,01/06/2022,3951,Non System - Electricity,2200993588,"-240,913.84",EDF Energy Customers Ltd
http://statistics.data.gov.uk/id/local-authority/38,Oxfordshire County Council,Therapies SLA,08/06/2022,4859,Medical and Counselling Fees,2200994855,"-227,417.00",OXFORD HEALTH NHS FOUNDATION TRUST
http://statistics.data.gov.uk/id/local-authority/38,Oxfordshire County Council,,16/06/2022,1433,U/C Misc Payments,3111198529,"-227,417.00",OXFORD HEALTH NHS FOUNDATION TRUST
http://statistics.data.gov.uk/id/local-authority/38,Oxfordshire County Council,LD Continuing Care  Care Homes  Under 65,10/06/2022,5687,,3111194080,"-65,462.33",Dimensions (UK) Ltd
http://statistics.data.gov.uk/id/local-authority/38,Oxfordshire County Council,Care Homes - Under 65 Physical Sypport,10/06/2022,5686,,3111195028,"-36,049.79",Orchard House (Harwell)
http://statistics.data.gov.uk/id/local-authority/38,Oxfordshire County Council,Property Cleaning,01/06/2022,4070,Cleaning services,2200993552,"-35,841.72",Parker Contract Cleaning
http://statistics.data.gov.uk/id/local-authority/38,Oxfordshire County Council,Property Cleaning,08/06/2022,4070,Cleaning services,2200994527,"-35,841.72",Parker Contract Cleaning
http://statistics.data.gov.uk/id/local-authority/38,Oxfordshire County Council,ELECTRICAL ENERGY,01/06/2022,3951,Non System - Electricity,2200993624,"-33,257.41",EDF Energy Customers Ltd
http://statistics.data.gov.uk/id/local-authority/38,Oxfordshire County Council,COMM DRAWDOWN FUNDNG,21/06/2022,8102,Payments to main contractor,2200999867,"-24,770.05",Milestone Infrastructure Limited
http://statistics.data.gov.uk/id/local-authority/38,Oxfordshire County Council,CHC Fast Track - Care Homes - Over 65,10/06/2022,5687,,3111195470,"-23,831.87",The Close Nursing Home
http://statistics.data.gov.uk/id/local-authority/38,Oxfordshire County Council,FOSTER CARE RECRUIT,23/06/2022,4940,Other Services,2201000728,"-22,320.00",EPIC Media Services
http://statistics.data.gov.uk/id/local-authority/38,Oxfordshire County Council,TRADING STANDARDS,08/06/2022,5190,Subscriptions,2200994706,"-21,958.00",TRADING STANDARDS SOUTH EAST LTD
http://statistics.data.gov.uk/id/local-authority/38,Oxfordshire County Council,Support at Home U65 Learning Disability,10/06/2022,5688,,3111193927,"-21,669.69",The Brandon Trust
http://statistics.data.gov.uk/id/local-authority/38,Oxfordshire County Council,PLACEMENTS- RELEVANT,29/06/2022,5785,Client Lodgings and Accommodation,3111204053,"-21,609.50",Response Organisation
http://statistics.data.gov.uk/id/local-authority/38,Oxfordshire County Council,GRASS CUTTING DIST.,13/06/2022,5526,Payments to Private Contractors,2200996403,"-20,794.69",Oxford Direct Services Ltd
http://statistics.data.gov.uk/id/local-authority/38,Oxfordshire County Council,Care Homes - Over 65 Memory & Cognition,10/06/2022,5686,,3111193932,"-19,677.14",Coxwell Hall & Mews Nursing Home
http://statistics.data.gov.uk/id/local-authority/38,Oxfordshire County Council,Continuing Care - Support at Home - U65,16/06/2022,5691,,3111198531,"-19,536.00",Cherry Care Services
http://statistics.data.gov.uk/id/local-authority/38,Oxfordshire County Council,Support at Home 65+ Memory & Cognition,10/06/2022,5686,,3111191853,"-18,903.15",Orders of St John
http://statistics.data.gov.uk/id/local-authority/38,Oxfordshire County Council,Care Homes - Over 65 Physical Sypport,10/06/2022,5687,,3111194298,"-16,835.72",Freeland House
http://statistics.data.gov.uk/id/local-authority/38,Oxfordshire County Council,Care Homes - Over 65 Physical Sypport,10/06/2022,5687,,3111193136,"-16,665.72",METHODIST HOMES
http://statistics.data.gov.uk/id/local-authority/38,Oxfordshire County Council,PLACEMENTS- RELEVANT,29/06/2022,5785,Client Lodgings and Accommodation,3111204050,"-16,631.40",Response Organisation
http://statistics.data.gov.uk/id/local-authority/38,Oxfordshire County Council,Continuing Care - Care Homes - 65+,10/06/2022,5687,,3111195446,"-16,288.86",Tall Trees
http://statistics.data.gov.uk/id/local-authority/38,Oxfordshire County Council,Support at Home 65+ Physical Support,10/06/2022,5687,,3111193318,"-15,007.55",Grace Care Service Ltd T/A Burford
http://statistics.data.gov.uk/id/local-authority/38,Oxfordshire County Council,Care Homes - Over 65 Physical Sypport,10/06/2022,5687,,3111193613,"-13,601.65",Chacombe Park Care Home
http://statistics.data.gov.uk/id/local-authority/38,Oxfordshire County Council,COMM DRAWDOWN FUNDNG,27/06/2022,8004,Design Consultant,2201001502,"-12,114.65",AECOM Infrastructure & Environment
http://statistics.data.gov.uk/id/local-authority/38,Oxfordshire County Council,Staff Travel Benefits,08/06/2022,5460,Entertainment Expenses,2200994710,"-11,887.43",Cyclescheme Ltd
http://statistics.data.gov.uk/id/local-authority/38,Oxfordshire County Council,PLACEMENTS-FRELEVANT,29/06/2022,5558,,3111204208,"-10,140.00",Calcot Services For Children
http://statistics.data.gov.uk/id/local-authority/38,Oxfordshire County Council,High Cost INMSS Placements,09/06/2022,5537,Payments to Other Establishments,3111191147,"-9,750.00",Kedleston Group
http://statistics.data.gov.uk/id/local-authority/38,Oxfordshire County Council,POST18 UASC DCSF FND,29/06/2022,5785,Client Lodgings and Accommodation,3111204041,"-9,503.66",Response Organisation
http://statistics.data.gov.uk/id/local-authority/38,Oxfordshire County Council,CHC Fast Track - Care Homes - Over 65,10/06/2022,5687,,3111194897,"-9,500.00",Merryfield Nursing Home
http://statistics.data.gov.uk/id/local-authority/38,Oxfordshire County Council,Support at Home 65+ Physical Support,10/06/2022,5686,,3111191948,"-9,416.00",Orders of St John
http://statistics.data.gov.uk/id/local-authority/38,Oxfordshire County Council,POST18 UASC DCSF FND,29/06/2022,5785,Client Lodgings and Accommodation,3111204069,"-9,201.95",Response Organisation
http://statistics.data.gov.uk/id/local-authority/38,Oxfordshire County Council,Support at Home 65+ Physical Support,10/06/2022,5686,,3111194211,"-8,999.99",Fewcott Healthcare Ltd
http://statistics.data.gov.uk/id/local-authority/38,Oxfordshire County Council,High Cost INMSS Placements,16/06/2022,5537,Payments to Other Establishments,2200997862,"-8,941.80",SWAAY
http://statistics.data.gov.uk/id/local-authority/38,Oxfordshire County Council,Continuing Care - Support at Home - 65+,13/06/2022,5691,,3111197136,"-8,729.00",Day & Night Care Assistance
http://statistics.data.gov.uk/id/local-authority/38,Oxfordshire County Council,ELECTRICAL ENERGY,01/06/2022,3951,Non System - Electricity,2200993590,"-8,549.24",EDF Energy Customers Ltd
http://statistics.data.gov.uk/id/local-authority/38,Oxfordshire County Council,Care Homes - Over 65 Physical Sypport,10/06/2022,5687,,3111193174,"-8,424.00",METHODIST HOMES
http://statistics.data.gov.uk/id/local-authority/38,Oxfordshire County Council,LEGAL BUDGET,01/06/2022,5251,Legal Costs,2200993744,"-8,250.00",Boardman Hawkins and Osborne
http://statistics.data.gov.uk/id/local-authority/38,Oxfordshire County Council,Continuing Care - Support at Home - 65+,13/06/2022,5691,,3111197140,"-7,728.00",Day & Night Care Assistance
http://statistics.data.gov.uk/id/local-authority/38,Oxfordshire County Council,NURSERY ED FUND,29/06/2022,5537,Payments to Other Establishments,3111203973,"-7,701.60",Bainton Road Nursery
http://statistics.data.gov.uk/id/local-authority/38,Oxfordshire County Council,Care Homes - Over 65 Memory & Cognition,10/06/2022,5686,,3111191822,"-7,561.15",Orders of St John
http://statistics.data.gov.uk/id/local-authority/38,Oxfordshire County Council,CHC Fast Track - Care Homes - Over 65,10/06/2022,5687,,3111194321,"-7,528.58",LAWTON GROUP LTD
http://statistics.data.gov.uk/id/local-authority/38,Oxfordshire County Council,CHC Fast Track - Care Homes - Over 65,10/06/2022,5687,,3111195173,"-7,307.15",Rushcourt Nursing Home
http://statistics.data.gov.uk/id/local-authority/38,Oxfordshire County Council,CHC Fast Track - Care Homes - Over 65,10/06/2022,5687,,3111194648,"-7,058.57",HENLEY MANOR CARE HOME
http://statistics.data.gov.uk/id/local-authority/38,Oxfordshire County Council,Support at Home 65+ Physical Support,10/06/2022,5686,,3111194137,"-6,950.00",Enstone House
http://statistics.data.gov.uk/id/local-authority/38,Oxfordshire County Council,Continuing Care - Care Homes - 65+,10/06/2022,5687,,3111192681,"-6,487.32",Elysium Neurological Services (Badb
http://statistics.data.gov.uk/id/local-authority/38,Oxfordshire County Council,Continuing Care - Care Homes - 65+,10/06/2022,5687,,3111194639,"-6,432.59",HENLEY MANOR CARE HOME
http://statistics.data.gov.uk/id/local-authority/38,Oxfordshire County Council,Continuing Care - Care Homes - 65+,10/06/2022,5687,,3111195617,"-6,400.00",The Langston
http://statistics.data.gov.uk/id/local-authority/38,Oxfordshire County Council,CHC Fast Track - Care Homes - Over 65,10/06/2022,5687,,3111192477,"-6,214.29",ACER HEALTHCARE LTD
http://statistics.data.gov.uk/id/local-authority/38,Oxfordshire County Council,ABBEY HOUSE,09/06/2022,4525,Furniture,2200995016,"-6,111.99",Combined Office Interiors Ltd
http://statistics.data.gov.uk/id/local-authority/38,Oxfordshire County Council,Care Homes - Over 65 Mental Health,10/06/2022,5686,,3111194389,"-6,032.57",GCH (St Katherines) Ltd
http://statistics.data.gov.uk/id/local-authority/38,Oxfordshire County Council,Continuing Care - Support at Home - 65+,13/06/2022,5691,,3111197132,"-5,908.00",Day & Night Care Assistance
http://statistics.data.gov.uk/id/local-authority/38,Oxfordshire County Council,CHC Fast Track - Care Homes - Over 65,10/06/2022,5687,,3111195864,"-5,800.00",MARIA MALLABAND CARE GROUP
http://statistics.data.gov.uk/id/local-authority/38,Oxfordshire County Council,Planned Maintenance,09/06/2022,4232,Vehicle Fuel,2200995252,"-5,744.04",Allstar Business Solutions Ltd
http://statistics.data.gov.uk/id/local-authority/38,Oxfordshire County Council,Support at Home 65+ Physical Support,21/06/2022,5699,,3111201368,"-5,300.85",Xperience Recruitment Ltd
http://statistics.data.gov.uk/id/local-authority/38,Oxfordshire County Council,Support at Home U65 Learning Disability,15/06/2022,5899,Social Care - Direct Payments,3111198022,"-5,169.58",Personal Redacted Data
http://statistics.data.gov.uk/id/local-authority/38,Oxfordshire County Council,Care Homes - Over 65 Physical Sypport,10/06/2022,5685,B*Cycle tracks,3111195536,"-5,151.35",The Grange Care Centre
http://statistics.data.gov.uk/id/local-authority/38,Oxfordshire County Council,Support at Home 65+ Learning Disability,10/06/2022,5688,,3111193279,"-4,736.47",Dimensions (UK) Ltd
http://statistics.data.gov.uk/id/local-authority/38,Oxfordshire County Council,Care Homes - Over 65 Physical Sypport,10/06/2022,5686,,3111195888,"-4,721.14",MARIA MALLABAND CARE GROUP
http://statistics.data.gov.uk/id/local-authority/38,Oxfordshire County Council,YP PATHWAY,29/06/2022,5603,,3111204088,"-4,620.18",Connection
http://statistics.data.gov.uk/id/local-authority/38,Oxfordshire County Council,Care Homes - Over 65 Memory & Cognition,10/06/2022,5687,,3111192579,"-4,600.00",Acacia Lodge Care Home
http://statistics.data.gov.uk/id/local-authority/38,Oxfordshire County Council,Funded Nursing Care  - Over 65,10/06/2022,5692,,3111195374,"-4,475.60",St. Lukes Oxford - Free Nursing
http://statistics.data.gov.uk/id/local-authority/38,Oxfordshire County Council,Care Homes - Over 65 Physical Sypport,10/06/2022,5687,,3111194429,"-4,468.57",Gracewell Healthcare 3 Ltd
http://statistics.data.gov.uk/id/local-authority/38,Oxfordshire County Council,Care Homes - Over 65 Memory & Cognition,10/06/2022,5686,,3111193289,"-4,361.14",Grace Care Service Ltd T/A Burford
http://statistics.data.gov.uk/id/local-authority/38,Oxfordshire County Council,Unregistered Placements,26/06/2022,5526,Payments to Private Contractors,2201001027,"-4,261.91",MEDGEN LTD
http://statistics.data.gov.uk/id/local-authority/38,Oxfordshire County Council,LEGAL BUDGET,30/06/2022,5251,Legal Costs,2201003090,"-4,167.00",GC Factoring ltd t/a GRENKE Factori
http://statistics.data.gov.uk/id/local-authority/38,Oxfordshire County Council,CHC Fast Track - Care Homes - Over 65,10/06/2022,5687,,3111194834,"-4,128.57",Lincroft Meadow
http://statistics.data.gov.uk/id/local-authority/38,Oxfordshire County Council,Continuing Care - Support at Home - 65+,13/06/2022,5691,,3111197133,"-4,100.00",Day & Night Care Assistance
http://statistics.data.gov.uk/id/local-authority/38,Oxfordshire County Council,Continuing Care - Support at Home - 65+,13/06/2022,5691,,3111197137,"-4,100.00",Day & Night Care Assistance
http://statistics.data.gov.uk/id/local-authority/38,Oxfordshire County Council,Continuing Care - Support at Home - 65+,13/06/2022,5691,,3111197141,"-4,100.00",Day & Night Care Assistance
http://statistics.data.gov.uk/id/local-authority/38,Oxfordshire County Council,Continuing Care - Support at Home - 65+,13/06/2022,5691,,3111197144,"-4,100.00",Day & Night Care Assistance
http://statistics.data.gov.uk/id/local-authority/38,Oxfordshire County Council,Funded Nursing Care  - Over 65,10/06/2022,5692,,3111195771,"-3,966.40",Wardington House Nursing Home
http://statistics.data.gov.uk/id/local-authority/38,Oxfordshire County Council,Support at Home 65+ Physical Support,10/06/2022,5686,,3111192204,"-3,856.58",Orders of St John
http://statistics.data.gov.uk/id/local-authority/38,Oxfordshire County Council,Support at Home 65+ Physical Support,10/06/2022,5686,,3111192192,"-3,745.00",Orders of St John
http://statistics.data.gov.uk/id/local-authority/38,Oxfordshire County Council,PROPERTY SERVICE MANAGEMENT,24/06/2022,4525,Furniture,2201001241,"-3,597.66",Combined Office Interiors Ltd
http://statistics.data.gov.uk/id/local-authority/38,Oxfordshire County Council,Care Homes - Over 65 Physical Sypport,10/06/2022,5687,,3111195692,"-3,438.97",The Triangle Nursing Home
http://statistics.data.gov.uk/id/local-authority/38,Oxfordshire County Council,Support at Home 65+ Memory & Cognition,10/06/2022,5685,B*Cycle tracks,3111192672,"-3,367.32",AUSTEN HOUSE
http://statistics.data.gov.uk/id/local-authority/38,Oxfordshire County Council,Care Homes - Over 65 Physical Sypport,10/06/2022,5687,,3111195277,"-3,342.86",Barchester Healthcare Homes Ltd
http://statistics.data.gov.uk/id/local-authority/38,Oxfordshire County Council,Support at Home 65+ Physical Support,10/06/2022,5686,,3111191834,"-3,289.43",Orders of St John
http://statistics.data.gov.uk/id/local-authority/38,Oxfordshire County Council,Care Homes - Over 65 Physical Sypport,10/06/2022,5686,,3111192712,"-3,211.43",Orders of St John
http://statistics.data.gov.uk/id/local-authority/38,Oxfordshire County Council,Support at Home 65+ Physical Support,10/06/2022,5687,,3111192388,"-3,200.00",ACER HEALTHCARE LTD
http://statistics.data.gov.uk/id/local-authority/38,Oxfordshire County Council,Support at Home 65+ Physical Support,21/06/2022,5699,,3111201325,"-3,134.56",PLL Care Services
http://statistics.data.gov.uk/id/local-authority/38,Oxfordshire County Council,Care Homes - Over 65 Physical Sypport,10/06/2022,5686,,3111195345,"-3,117.16",St Johns Residential Home
http://statistics.data.gov.uk/id/local-authority/38,Oxfordshire County Council,Care Homes - Over 65 Physical Sypport,10/06/2022,5685,B*Cycle tracks,3111192720,"-3,081.40",Orders of St John
http://statistics.data.gov.uk/id/local-authority/38,Oxfordshire County Council,Care Homes - Over 65 Physical Sypport,10/06/2022,5686,,3111194315,"-3,045.43",LAWTON GROUP LTD
http://statistics.data.gov.uk/id/local-authority/38,Oxfordshire County Council,RESIDENTIAL TREATMEN,27/06/2022,5686,,2201001660,"-3,000.00",Adferiad Recovery
http://statistics.data.gov.uk/id/local-authority/38,Oxfordshire County Council,Support at Home 65+ Physical Support,10/06/2022,5685,B*Cycle tracks,3111193669,"-2,972.00",Cherwood House Care Centre
http://statistics.data.gov.uk/id/local-authority/38,Oxfordshire County Council,Care Homes - Over 65 Physical Sypport,10/06/2022,5685,B*Cycle tracks,3111192641,"-2,939.72",Didcot Care Home Ltd
http://statistics.data.gov.uk/id/local-authority/38,Oxfordshire County Council,Care Homes - Over 65 Physical Sypport,10/06/2022,5687,,3111194439,"-2,934.83",Green Gates NH (BUPA)
http://statistics.data.gov.uk/id/local-authority/38,Oxfordshire County Council,Care Homes - Over 65 Physical Sypport,10/06/2022,5687,,3111192398,"-2,929.74",ACER HEALTHCARE LTD
http://statistics.data.gov.uk/id/local-authority/38,Oxfordshire County Council,Care Homes - Over 65 Memory & Cognition,10/06/2022,5686,,3111192528,"-2,914.29",Acacia Lodge Care Home
http://statistics.data.gov.uk/id/local-authority/38,Oxfordshire County Council,Support at Home 65+ Learning Disability,10/06/2022,5688,,3111192775,"-2,905.18",ADVANCE HOUSING & SUPPORT LTD
http://statistics.data.gov.uk/id/local-authority/38,Oxfordshire County Council,SEN TRANSPORT,23/06/2022,5500,Payments to Other Local Authorities,3111201902,"-2,880.00",St Mary's School and College
http://statistics.data.gov.uk/id/local-authority/38,Oxfordshire County Council,Care Homes - Over 65 Mental Health,10/06/2022,5687,,3111195586,"-2,877.17",Four Seasons (Headington) Ltd
http://statistics.data.gov.uk/id/local-authority/38,Oxfordshire County Council,CHC Fast Track - Care Homes - Over 65,10/06/2022,5687,,3111195199,"-2,845.71",SANCTUARY CARE PROPERTY (2) LTD
http://statistics.data.gov.uk/id/local-authority/38,Oxfordshire County Council,RON GROVES HOUSE,24/06/2022,4525,Furniture,2201001235,"-2,780.01",Combined Office Interiors Ltd
http://statistics.data.gov.uk/id/local-authority/38,Oxfordshire County Council,Care Homes - Over 65 Physical Sypport,10/06/2022,5687,,3111195241,"-2,585.27",Barchester Healthcare Homes Ltd
http://statistics.data.gov.uk/id/local-authority/38,Oxfordshire County Council,Unregistered Placements,01/06/2022,2040,Agency Staff,2200993592,"-2,574.08",MEDGEN LTD
http://statistics.data.gov.uk/id/local-authority/38,Oxfordshire County Council,Care Homes - Over 65 Physical Sypport,10/06/2022,5686,,3111192148,"-2,495.43",Orders of St John
http://statistics.data.gov.uk/id/local-authority/38,Oxfordshire County Council,Care Homes - Over 65 Physical Sypport,10/06/2022,5686,,3111192315,"-2,338.00",Orders of St John
http://statistics.data.gov.uk/id/local-authority/38,Oxfordshire County Council,Early Help - Witney,24/06/2022,4525,Furniture,2201001247,"-2,314.00",Combined Office Interiors Ltd
http://statistics.data.gov.uk/id/local-authority/38,Oxfordshire County Council,Care Homes - Over 65 Physical Sypport,10/06/2022,5685,B*Cycle tracks,3111194632,"-2,304.63",Heathfield House Nursing Home
http://statistics.data.gov.uk/id/local-authority/38,Oxfordshire County Council,NURSERY ED FUND,29/06/2022,5537,Payments to Other Establishments,3111203971,"-2,257.20",Bainton Road Nursery
http://statistics.data.gov.uk/id/local-authority/38,Oxfordshire County Council,LEGAL BUDGET,20/06/2022,5251,Legal Costs,2200999339,"-2,250.00",Boardman Hawkins and Osborne
http://statistics.data.gov.uk/id/local-authority/38,Oxfordshire County Council,Funded Nursing Care  - Over 65,10/06/2022,5692,,3111194643,"-2,238.53",HENLEY MANOR CARE HOME
http://statistics.data.gov.uk/id/local-authority/38,Oxfordshire County Council,Support at Home 65+ Physical Support,10/06/2022,5685,B*Cycle tracks,3111192750,"-2,214.86",Orders of St John
http://statistics.data.gov.uk/id/local-authority/38,Oxfordshire County Council,COMMUNITY & ROAD SAFETY,09/06/2022,3103,Other Training Courses and Qualification,2200995155,"-2,205.00",The Bike Academy (South) Ltd
http://statistics.data.gov.uk/id/local-authority/38,Oxfordshire County Council,Support at Home U65 Learning Disability,10/06/2022,5690,,3111191438,"-2,204.36",ADVANCE HOUSING & SUPPORT LTD
http://statistics.data.gov.uk/id/local-authority/38,Oxfordshire County Council,SEN Additional Funding,07/06/2022,5537,Payments to Other Establishments,3111188240,"-2,174.25",St Gregory the Great
http://statistics.data.gov.uk/id/local-authority/38,Oxfordshire County Council,Support at Home 65+ Physical Support,10/06/2022,5686,,3111192488,"-2,155.14",OSJ  - Old Station House
http://statistics.data.gov.uk/id/local-authority/38,Oxfordshire County Council,Support at Home 65+ Physical Support,10/06/2022,5686,,3111192938,"-2,142.86",Bondcare (Henley) Ltd
http://statistics.data.gov.uk/id/local-authority/38,Oxfordshire County Council,Support at Home 65+ Physical Support,10/06/2022,5686,,3111192395,"-2,041.72",Orders of St John
http://statistics.data.gov.uk/id/local-authority/38,Oxfordshire County Council,Care Homes - Over 65 Physical Sypport,10/06/2022,5687,,3111193242,"-1,998.38",METHODIST HOMES
http://statistics.data.gov.uk/id/local-authority/38,Oxfordshire County Council,NURSERY ED FUND,15/06/2022,5537,Payments to Other Establishments,3111196440,"-1,993.80",Rose Hill Pre-School
http://statistics.data.gov.uk/id/local-authority/38,Oxfordshire County Council,Care Homes - Over 65 Physical Sypport,10/06/2022,5687,,3111194372,"-1,964.29",GCH (St Katherines) Ltd
http://statistics.data.gov.uk/id/local-authority/38,Oxfordshire County Council,MOUNT HOUSE,24/06/2022,4525,Furniture,2201001245,"-1,962.36",Combined Office Interiors Ltd
http://statistics.data.gov.uk/id/local-authority/38,Oxfordshire County Council,Unregistered Placements,24/06/2022,5526,Payments to Private Contractors,2201001300,"-1,910.34",MEDGEN LTD
http://statistics.data.gov.uk/id/local-authority/38,Oxfordshire County Council,Care Homes - Over 65 Memory & Cognition,10/06/2022,5687,,3111193071,"-1,818.24",Vale House
http://statistics.data.gov.uk/id/local-authority/38,Oxfordshire County Council,Support at Home U65 Learning Disability,10/06/2022,5690,,3111191485,"-1,800.18",MacIntyre Care (Womaston)
http://statistics.data.gov.uk/id/local-authority/38,Oxfordshire County Council,LEGAL BUDGET,15/06/2022,5251,Legal Costs,2200997404,"-1,755.00",Dr DBR Bailham
http://statistics.data.gov.uk/id/local-authority/38,Oxfordshire County Council,Delegated Health Tasks  - Over 65,20/06/2022,5691,,3111199152,"-1,736.00",HOME INSTEAD SENIOR CARE AYLESBURY
http://statistics.data.gov.uk/id/local-authority/38,Oxfordshire County Council,Care Homes - Over 65 Physical Sypport,10/06/2022,5685,B*Cycle tracks,3111192448,"-1,710.65",Orders of St John
http://statistics.data.gov.uk/id/local-authority/38,Oxfordshire County Council,Support at Home 65+ Physical Support,10/06/2022,5686,,3111191857,"-1,588.00",Orders of St John
http://statistics.data.gov.uk/id/local-authority/38,Oxfordshire County Council,Support at Home 65+ Physical Support,10/06/2022,5685,B*Cycle tracks,3111195517,"-1,573.65",The Grange Care Centre
http://statistics.data.gov.uk/id/local-authority/38,Oxfordshire County Council,Staff Travel Benefits,08/06/2022,5460,Entertainment Expenses,2200994735,"-1,535.00",Cyclescheme Ltd
http://statistics.data.gov.uk/id/local-authority/38,Oxfordshire County Council,Care Homes - Over 65 Physical Sypport,10/06/2022,5685,B*Cycle tracks,3111195315,"-1,516.21",Stowford House
http://statistics.data.gov.uk/id/local-authority/38,Oxfordshire County Council,Funded Nursing Care  - Over 65,10/06/2022,5692,,3111193872,"-1,515.26",CHURCHFIELDS CARE HOME
http://statistics.data.gov.uk/id/local-authority/38,Oxfordshire County Council,Support at Home U65 Learning Disability,10/06/2022,5690,,3111191440,"-1,507.23",ADVANCE HOUSING & SUPPORT LTD
http://statistics.data.gov.uk/id/local-authority/38,Oxfordshire County Council,Care Homes - Over 65 Physical Sypport,10/06/2022,5686,,3111195297,"-1,505.96",ST ANNES RESIDENTIAL  HOME
http://statistics.data.gov.uk/id/local-authority/38,Oxfordshire County Council,Care Homes - Over 65 Memory & Cognition,10/06/2022,5687,,3111194584,"-1,495.97",HEALTHCARE HOMES (SPRING) LIMITED
http://statistics.data.gov.uk/id/local-authority/38,Oxfordshire County Council,Care Homes - Under 65 Physical Sypport,10/06/2022,5687,,3111195521,"-1,414.17",The Grange Care Centre
http://statistics.data.gov.uk/id/local-authority/38,Oxfordshire County Council,COMMUNITY & ROAD SAFETY,01/06/2022,3103,Other Training Courses and Qualification,2200993734,"-1,395.00",The Bike Academy (South) Ltd
http://statistics.data.gov.uk/id/local-authority/38,Oxfordshire County Council,COMMUNITY & ROAD SAFETY,09/06/2022,3103,Other Training Courses and Qualification,2200995152,"-1,395.00",The Bike Academy (South) Ltd
http://statistics.data.gov.uk/id/local-authority/38,Oxfordshire County Council,Support at Home U65 Learning Disability,10/06/2022,5688,,3111192769,"-1,384.52",ADVANCE HOUSING & SUPPORT LTD
http://statistics.data.gov.uk/id/local-authority/38,Oxfordshire County Council,Support at Home U65 Learning Disability,10/06/2022,5688,,3111193833,"-1,380.80",The Brandon Trust
http://statistics.data.gov.uk/id/local-authority/38,Oxfordshire County Council,Support at Home U65 Learning Disability,10/06/2022,5688,,3111192783,"-1,357.26",ADVANCE HOUSING & SUPPORT LTD
http://statistics.data.gov.uk/id/local-authority/38,Oxfordshire County Council,Care Homes - Over 65 Memory & Cognition,10/06/2022,5687,,3111195527,"-1,200.00",The Grange Care Centre
http://statistics.data.gov.uk/id/local-authority/38,Oxfordshire County Council,COMM DRAWDOWN FUNDNG,21/06/2022,8102,Payments to main contractor,2200999876,"-1,169.21",Milestone Infrastructure Limited
http://statistics.data.gov.uk/id/local-authority/38,Oxfordshire County Council,Care Homes - Over 65 Physical Sypport,10/06/2022,5686,,3111192569,"-1,134.29",Orders of St John
http://statistics.data.gov.uk/id/local-authority/38,Oxfordshire County Council,Care Homes - Over 65 Mental Health,10/06/2022,5687,,3111194507,"-1,120.32",Green Pastures Christian NH
http://statistics.data.gov.uk/id/local-authority/38,Oxfordshire County Council,Care Homes - Over 65 Physical Sypport,10/06/2022,5687,,3111194208,"-1,118.35",Fewcott Healthcare Ltd
http://statistics.data.gov.uk/id/local-authority/38,Oxfordshire County Council,DISABILITIES TEAM S,14/06/2022,4685,Clothing and Uniforms,9300056027,"-1,097.50",OCC SS Vale of White Horse Bank
http://statistics.data.gov.uk/id/local-authority/38,Oxfordshire County Council,Unregistered Placements,23/06/2022,5526,Payments to Private Contractors,2201001547,"-1,080.99",MEDGEN LTD
http://statistics.data.gov.uk/id/local-authority/38,Oxfordshire County Council,Unregistered Placements,27/06/2022,5526,Payments to Private Contractors,2201001548,"-1,080.99",MEDGEN LTD
http://statistics.data.gov.uk/id/local-authority/38,Oxfordshire County Council,Continuing Care - Care Homes - 65+,10/06/2022,5687,,3111195325,"-1,045.20",Stowford House
http://statistics.data.gov.uk/id/local-authority/38,Oxfordshire County Council,Care Homes - Over 65 Memory & Cognition,10/06/2022,5687,,3111194255,"-1,021.36",Freeland House
http://statistics.data.gov.uk/id/local-authority/38,Oxfordshire County Council,Wokingham Adoption Support Fund,22/06/2022,4861,Hired and Contracted Services,2201000260,-976.92,Post Adoption Centre
http://statistics.data.gov.uk/id/local-authority/38,Oxfordshire County Council,Support at Home 65+ Physical Support,21/06/2022,5699,,3111201143,-957.6,Calvary Care Ltd
http://statistics.data.gov.uk/id/local-authority/38,Oxfordshire County Council,Unregistered Placements,06/06/2022,2040,Agency Staff,2200993940,-942.67,MEDGEN LTD
http://statistics.data.gov.uk/id/local-authority/38,Oxfordshire County Council,SEN TRANSPORT,14/06/2022,4330,Transport to School Activities,3111197964,-916.67,Unitaxi Ltd
http://statistics.data.gov.uk/id/local-authority/38,Oxfordshire County Council,Delegated Health Tasks  - Over 65,20/06/2022,5691,,3111199151,-868,HOME INSTEAD SENIOR CARE AYLESBURY
http://statistics.data.gov.uk/id/local-authority/38,Oxfordshire County Council,Test and Trace Grant,07/06/2022,5500,Payments to Other Local Authorities,2200994408,-860,Cherwell DC
http://statistics.data.gov.uk/id/local-authority/38,Oxfordshire County Council,Funded Nursing Care  - Over 65,10/06/2022,5692,,3111195905,-857.6,Caring Homes Healthcare Group Ltd
http://statistics.data.gov.uk/id/local-authority/38,Oxfordshire County Council,Care Homes - Over 65 Physical Sypport,10/06/2022,5687,,3111192215,-817.97,Orders of St John
http://statistics.data.gov.uk/id/local-authority/38,Oxfordshire County Council,Test and Trace Grant,07/06/2022,5500,Payments to Other Local Authorities,2200994404,-800,Cherwell DC
http://statistics.data.gov.uk/id/local-authority/38,Oxfordshire County Council,SECURE,21/06/2022,5558,,3111201414,-784,Kibble Education and Care Centre
http://statistics.data.gov.uk/id/local-authority/38,Oxfordshire County Council,DISABILITIES TEAM-C,23/06/2022,2040,Agency Staff,2201000972,-776.4,THORNBURY NURSING SERVICES
http://statistics.data.gov.uk/id/local-authority/38,Oxfordshire County Council,Funded Nursing Care  - Over 65,10/06/2022,5692,,3111193679,-768.16,Cherwood House Care Centre
http://statistics.data.gov.uk/id/local-authority/38,Oxfordshire County Council,Care Homes - Over 65 Physical Sypport,10/06/2022,5685,B*Cycle tracks,3111194200,-754.57,Fewcott Healthcare Ltd
http://statistics.data.gov.uk/id/local-authority/38,Oxfordshire County Council,RESIDENTIAL TREATMEN,08/06/2022,5686,,2200994900,-750,WESTERN COUNSELLING SERVICES LTD
http://statistics.data.gov.uk/id/local-authority/38,Oxfordshire County Council,Test and Trace Grant,07/06/2022,5500,Payments to Other Local Authorities,2200994413,-748,Cherwell DC
http://statistics.data.gov.uk/id/local-authority/38,Oxfordshire County Council,Care Homes - Over 65 Physical Sypport,10/06/2022,5686,,3111194925,-741.39,Middletown Grange Care Home
http://statistics.data.gov.uk/id/local-authority/38,Oxfordshire County Council,Unregistered Placements,06/06/2022,2040,Agency Staff,2200993943,-739.2,MEDGEN LTD
http://statistics.data.gov.uk/id/local-authority/38,Oxfordshire County Council,Care Homes - Over 65 Physical Sypport,10/06/2022,5686,,3111192405,-719,Orders of St John
http://statistics.data.gov.uk/id/local-authority/38,Oxfordshire County Council,LD Continuing Care - Sup at Home - U65,13/06/2022,5691,,3111197174,-713.64,Paterson Recruitment
http://statistics.data.gov.uk/id/local-authority/38,Oxfordshire County Council,LD Continuing Care - Sup at Home - U65,28/06/2022,5691,,3111203962,-702.22,Paterson Recruitment
http://statistics.data.gov.uk/id/local-authority/38,Oxfordshire County Council,RBWM Adoption Support Fund,13/06/2022,4859,Medical and Counselling Fees,2200996394,-700,The Annex Project
http://statistics.data.gov.uk/id/local-authority/38,Oxfordshire County Council,Community Support Service - Witney,22/06/2022,2040,Agency Staff,2201000212,-693.88,Completely Care Ltd
http://statistics.data.gov.uk/id/local-authority/38,Oxfordshire County Council,Test and Trace Grant,07/06/2022,5500,Payments to Other Local Authorities,2200994406,-688,Cherwell DC
http://statistics.data.gov.uk/id/local-authority/38,Oxfordshire County Council,Funded Nursing Care  - Over 65,10/06/2022,5692,,3111194813,-678.5,Lincroft Meadow
http://statistics.data.gov.uk/id/local-authority/38,Oxfordshire County Council,Support at Home 65+ Physical Support,10/06/2022,5690,,3111191439,-642.94,ADVANCE HOUSING & SUPPORT LTD
http://statistics.data.gov.uk/id/local-authority/38,Oxfordshire County Council,2 YEAR OLD FUNDING,15/06/2022,5537,Payments to Other Establishments,3111197219,-636.12,Fundamentals Childcare Ltd
http://statistics.data.gov.uk/id/local-authority/38,Oxfordshire County Council,2 YEAR OLD FUNDING,15/06/2022,5537,Payments to Other Establishments,3111197223,-636.12,Vikki Callaghan
http://statistics.data.gov.uk/id/local-authority/38,Oxfordshire County Council,NURSERY ED FUND,15/06/2022,5537,Payments to Other Establishments,3111196433,-611.23,Kidsunlimited (Milton Park)
http://statistics.data.gov.uk/id/local-authority/38,Oxfordshire County Council,Care Homes - Over 65 Memory & Cognition,10/06/2022,5687,,3111192497,-601.6,ACER HEALTHCARE LTD
http://statistics.data.gov.uk/id/local-authority/38,Oxfordshire County Council,MAINSTREAM-PRIMARY,21/06/2022,4330,Transport to School Activities,3111199200,-600,Bicester Cars UK Ltd
http://statistics.data.gov.uk/id/local-authority/38,Oxfordshire County Council,Funded Nursing Care  - Over 65,10/06/2022,5692,,3111195018,-588.85,Oakenholt Care Ltd
http://statistics.data.gov.uk/id/local-authority/38,Oxfordshire County Council,LIBRARY COLLECTIONS,10/06/2022,4539,"Books, DVDs and CDs",2200995537,-569.68,ULVERSCROFT LARGE PRINT BOOKS LTD
http://statistics.data.gov.uk/id/local-authority/38,Oxfordshire County Council,LIBRARY COLLECTIONS,10/06/2022,4539,"Books, DVDs and CDs",2200995541,-569.68,ULVERSCROFT LARGE PRINT BOOKS LTD
http://statistics.data.gov.uk/id/local-authority/38,Oxfordshire County Council,Funded Nursing Care  - Over 65,10/06/2022,5692,,3111192639,-558.96,Didcot Care Home Ltd
http://statistics.data.gov.uk/id/local-authority/38,Oxfordshire County Council,Funded Nursing Care  - Over 65,10/06/2022,5692,,3111194534,-529.08,Cedar Court Care Home
http://statistics.data.gov.uk/id/local-authority/38,Oxfordshire County Council,Funded Nursing Care  - Over 65,10/06/2022,5692,,3111195777,-529.08,Wardington House Nursing Home
http://statistics.data.gov.uk/id/local-authority/38,Oxfordshire County Council,MUSEUM RETAIL,01/06/2022,4531,Materials,2200993660,-515.18,Baker & Taylor (UK) Ltd
http://statistics.data.gov.uk/id/local-authority/38,Oxfordshire County Council,Family Solutions Plus Non-staff - North,01/06/2022,4940,Other Services,2200993711,-512,Complete Childcare Ltd
http://statistics.data.gov.uk/id/local-authority/38,Oxfordshire County Council,LEGAL SERVICES,28/06/2022,5251,Legal Costs,2201002139,500,Alex Leonhardt
http://statistics.data.gov.uk/id/local-authority/38,Oxfordshire County Council,LAC PUPIL PREMIUM,21/06/2022,5537,Payments to Other Establishments,3111199231,500,Aureus School
http://statistics.data.gov.uk/id/local-authority/38,Oxfordshire County Council,OXF. EMPLOYMENT SERV,14/06/2022,3103,Other Training Courses and Qualification,2200996725,500,BASE
http://statistics.data.gov.uk/id/local-authority/38,Oxfordshire County Council,OXF. EMPLOYMENT SERV,14/06/2022,3103,Other Training Courses and Qualification,2200996804,500,BASE
http://statistics.data.gov.uk/id/local-authority/38,Oxfordshire County Council,OXF. EMPLOYMENT SERV,28/06/2022,3103,Other Training Courses and Qualification,2201002219,500,BASE
http://statistics.data.gov.uk/id/local-authority/38,Oxfordshire County Council,LAC PUPIL PREMIUM,21/06/2022,5537,Payments to Other Establishments,3111199262,500,Cheney School
http://statistics.data.gov.uk/id/local-authority/38,Oxfordshire County Council,LAC PUPIL PREMIUM,21/06/2022,5537,Payments to Other Establishments,3111199263,500,Cheney School
http://statistics.data.gov.uk/id/local-authority/38,Oxfordshire County Council,LAC PUPIL PREMIUM,21/06/2022,5537,Payments to Other Establishments,3111199221,500,Faringdon Learning Trust
http://statistics.data.gov.uk/id/local-authority/38,Oxfordshire County Council,LAC PUPIL PREMIUM,21/06/2022,5537,Payments to Other Establishments,3111199222,500,Faringdon Learning Trust
http://statistics.data.gov.uk/id/local-authority/38,Oxfordshire County Council,LEGAL SERVICES,28/06/2022,5251,Legal Costs,2201002170,500,Francesca Gardner
http://statistics.data.gov.uk/id/local-authority/38,Oxfordshire County Council,FOSTERING TEAM,28/06/2022,4861,Hired and Contracted Services,2201002359,500,Green Light People Solutions
http://statistics.data.gov.uk/id/local-authority/38,Oxfordshire County Council,FOSTERING TEAM,28/06/2022,4861,Hired and Contracted Services,2201002361,500,Green Light People Solutions
http://statistics.data.gov.uk/id/local-authority/38,Oxfordshire County Council,FOSTERING TEAM,28/06/2022,4861,Hired and Contracted Services,2201002362,500,Green Light People Solutions
http://statistics.data.gov.uk/id/local-authority/38,Oxfordshire County Council,FOSTERING TEAM,28/06/2022,4861,Hired and Contracted Services,2201002364,500,Green Light People Solutions
http://statistics.data.gov.uk/id/local-authority/38,Oxfordshire County Council,FOSTERING TEAM,28/06/2022,4861,Hired and Contracted Services,2201002365,500,Green Light People Solutions
http://statistics.data.gov.uk/id/local-authority/38,Oxfordshire County Council,"Marketing, Communications & Engagement",09/06/2022,4790,"Publicity, Promotions and Advertisement",2200995499,500,Headline Media UK
http://statistics.data.gov.uk/id/local-authority/38,Oxfordshire County Council,Support at Home U65 Physical Support,17/06/2022,5227,Other Transport Arrangements,3111198734,500,LINK SHIRES LTD
http://statistics.data.gov.uk/id/local-authority/38,Oxfordshire County Council,LAC PUPIL PREMIUM,21/06/2022,5537,Payments to Other Establishments,3111199226,500,Millbrook Primary School
http://statistics.data.gov.uk/id/local-authority/38,Oxfordshire County Council,MultiCAV,10/06/2022,4861,Hired and Contracted Services,2200995629,500,Nova Modus
http://statistics.data.gov.uk/id/local-authority/38,Oxfordshire County Council,Afghanistan settler holding hotel fund,06/06/2022,5668,Technical and Professional Consultant F,3111187876,500,OCC One Time Vendor
http://statistics.data.gov.uk/id/local-authority/38,Oxfordshire County Council,HIGHWAYS GENERAL,15/06/2022,5055,Insurance Costs,3111198030,500,OCC One Time Vendor
http://statistics.data.gov.uk/id/local-authority/38,Oxfordshire County Council,HIGHWAYS GENERAL,15/06/2022,5055,Insurance Costs,3111198033,500,OCC One Time Vendor
http://statistics.data.gov.uk/id/local-authority/38,Oxfordshire County Council,RBWM Adoption Support Fund,21/06/2022,4859,Medical and Counselling Fees,3111199188,500,OCC One Time Vendor
http://statistics.data.gov.uk/id/local-authority/38,Oxfordshire County Council,Wokingham Adoption Support Fund,21/06/2022,4859,Medical and Counselling Fees,3111199194,500,OCC One Time Vendor
http://statistics.data.gov.uk/id/local-authority/38,Oxfordshire County Council,HIGHWAYS GENERAL,27/06/2022,5055,Insurance Costs,3111202996,500,OCC One Time Vendor
http://statistics.data.gov.uk/id/local-authority/38,Oxfordshire County Council,Reading Adoption Support Fund,30/06/2022,6500,Government Grants (Revenue),3111204574,500,OCC One Time Vendor
http://statistics.data.gov.uk/id/local-authority/38,Oxfordshire County Council,SCHOOLS H&S,20/06/2022,3105,Training related expenditure,2200999491,500,OCCUPATIONAL SAFETY & HEALTH
http://statistics.data.gov.uk/id/local-authority/38,Oxfordshire County Council,CORONER,13/06/2022,5202,Use of Mortuary Services,2200996169,500,ORAMIS DIGITAL AUTOPSY LTD
http://statistics.data.gov.uk/id/local-authority/38,Oxfordshire County Council,CORONER,16/06/2022,5202,Use of Mortuary Services,2200997865,500,ORAMIS DIGITAL AUTOPSY LTD
http://statistics.data.gov.uk/id/local-authority/38,Oxfordshire County Council,LANDLORD & TENANT,09/06/2022,3945,Rent,3500084241,500,Oxford City Council
http://statistics.data.gov.uk/id/local-authority/38,Oxfordshire County Council,Wokingham Adoption Support Fund,17/06/2022,4861,Hired and Contracted Services,2200997978,500,SWAAY
http://statistics.data.gov.uk/id/local-authority/38,Oxfordshire County Council,SEN Alternative Provision,28/06/2022,4861,Hired and Contracted Services,2201002138,500,THE DARE2DREAM FOUNDATION
http://statistics.data.gov.uk/id/local-authority/38,Oxfordshire County Council,Councillors Priorities Fund,22/06/2022,4940,Other Services,3111201419,500,Witney and District Museum
http://statistics.data.gov.uk/id/local-authority/38,Oxfordshire County Council,Independent Foster,22/06/2022,5559,,3111201854,500,Young People at Heart
http://statistics.data.gov.uk/id/local-authority/38,Oxfordshire County Council,Support at Home U65 Physical Support,07/06/2022,5899,Social Care - Direct Payments,3111189731,500.11,Purple Conversation Com In Co (DP)
http://statistics.data.gov.uk/id/local-authority/38,Oxfordshire County Council,Support at Home U65 Physical Support,07/06/2022,5899,Social Care - Direct Payments,3111189825,500.11,Purple Conversation Com In Co (DP)
http://statistics.data.gov.uk/id/local-authority/38,Oxfordshire County Council,Support at Home U65 Other /Soc Isolation,07/06/2022,5899,Social Care - Direct Payments,3111190127,500.11,Purple Conversation Com In Co (DP)
http://statistics.data.gov.uk/id/local-authority/38,Oxfordshire County Council,Support at Home U65 Physical Support,29/06/2022,5693,,3111204130,500.6,SAINT CATHERINE'S CARE LTD
http://statistics.data.gov.uk/id/local-authority/38,Oxfordshire County Council,Support at Home U65 Learning Disability,10/06/2022,5690,,3111191779,500.66,MacIntyre Care (Womaston)
http://statistics.data.gov.uk/id/local-authority/38,Oxfordshire County Council,Support at Home 65+ Physical Support,21/06/2022,5698,,3111200560,501.03,Oxfordshire Crossroads
http://statistics.data.gov.uk/id/local-authority/38,Oxfordshire County Council,NURSERY ED FUND,15/06/2022,5537,Payments to Other Establishments,3111196289,501.12,Amanda Sinclair
http://statistics.data.gov.uk/id/local-authority/38,Oxfordshire County Council,NURSERY ED FUND,15/06/2022,5537,Payments to Other Establishments,3111196577,501.12,Marie Letchworth
http://statistics.data.gov.uk/id/local-authority/38,Oxfordshire County Council,NURSERY ED FUND,15/06/2022,5537,Payments to Other Establishments,3111196603,501.12,Nicola Broome
http://statistics.data.gov.uk/id/local-authority/38,Oxfordshire County Council,Support at Home 65+ Physical Support,01/06/2022,5693,,3111187638,502.57,Oasis Private Care Ltd
http://statistics.data.gov.uk/id/local-authority/38,Oxfordshire County Council,Support at Home 65+ Physical Support,24/06/2022,5696,,3111202241,502.74,Orders of St John Care Trust
http://statistics.data.gov.uk/id/local-authority/38,Oxfordshire County Council,VACANT PROPERTY,28/06/2022,4000,Council Tax,3500084622,503,West Oxfordshire District Council
http://statistics.data.gov.uk/id/local-authority/38,Oxfordshire County Council,LANDLORD & TENANT,09/06/2022,8004,Design Consultant,2200994963,503.33,Comensura Ltd
http://statistics.data.gov.uk/id/local-authority/38,Oxfordshire County Council,FOSTERING MAIN,14/06/2022,5227,Other Transport Arrangements,3111197438,503.42,Personal Redacted Data
http://statistics.data.gov.uk/id/local-authority/38,Oxfordshire County Council,Support at Home 65+ Mental Health,21/06/2022,5698,,3111200513,503.69,Oxford Private Care
http://statistics.data.gov.uk/id/local-authority/38,Oxfordshire County Council,Support at Home 65+ Physical Support,01/06/2022,5693,,3111187603,504,BETTER LIFE CARE LTD
http://statistics.data.gov.uk/id/local-authority/38,Oxfordshire County Council,Support at Home U65 Physical Support,21/06/2022,5699,,3111201151,504,Calvary Care Ltd
http://statistics.data.gov.uk/id/local-authority/38,Oxfordshire County Council,Support at Home 65+ Physical Support,07/06/2022,5899,Social Care - Direct Payments,3111188567,504,Personal Redacted Data
http://statistics.data.gov.uk/id/local-authority/38,Oxfordshire County Council,Support at Home U65 Physical Support,22/06/2022,5693,,3111201485,504,HEALTHCARE ACCESS LTD
http://statistics.data.gov.uk/id/local-authority/38,Oxfordshire County Council,MUSEUM CAFE,22/06/2022,4665,Catering,2201000211,504,Illycaffe UK Ltd
http://statistics.data.gov.uk/id/local-authority/38,Oxfordshire County Council,Children in Care Non-staffing - North,14/06/2022,4330,Transport to School Activities,3111197195,504,Schon Executive Cars Ltd
http://statistics.data.gov.uk/id/local-authority/38,Oxfordshire County Council,Support at Home 65+ Learning Disability,10/06/2022,5690,,3111191764,504.26,HF TRUST Ltd
http://statistics.data.gov.uk/id/local-authority/38,Oxfordshire County Council,SHARED LIVES,10/06/2022,5555,Payments to Carers,3111193447,504.52,Personal Redacted Data
http://statistics.data.gov.uk/id/local-authority/38,Oxfordshire County Council,SM DISABILITIES,27/06/2022,5554,Childrens' Social Care - Direct Payments,3111202888,504.55,Personal Redacted Data
http://statistics.data.gov.uk/id/local-authority/38,Oxfordshire County Council,SM DISABILITIES,27/06/2022,5554,Childrens' Social Care - Direct Payments,3111202889,504.55,Personal Redacted Data
http://statistics.data.gov.uk/id/local-authority/38,Oxfordshire County Council,Support at Home 65+ Physical Support,21/06/2022,5689,,3111200610,504.62,Greigcare Home Service
http://statistics.data.gov.uk/id/local-authority/38,Oxfordshire County Council,FAM GRP CONFERENCES,14/06/2022,4940,Other Services,2200996821,505,Jessica Howards
http://statistics.data.gov.uk/id/local-authority/38,Oxfordshire County Council,Family Solutions Plus Non-staff - Centra,17/06/2022,5227,Other Transport Arrangements,3111198766,505,LINK SHIRES LTD
http://statistics.data.gov.uk/id/local-authority/38,Oxfordshire County Council,SEN TRANSPORT,06/06/2022,4320,Pupil / Client Travel Reimbursement,3111188187,505.12,Personal Redacted Data
http://statistics.data.gov.uk/id/local-authority/38,Oxfordshire County Council,SEN TRANSPORT,06/06/2022,4320,Pupil / Client Travel Reimbursement,3111187885,505.12,Personal Redacted Data
http://statistics.data.gov.uk/id/local-authority/38,Oxfordshire County Council,SCH&SOC CARE TRANSP,17/06/2022,4706,Stationery and other office consumables,2200997925,505.9,ID Management Systems
http://statistics.data.gov.uk/id/local-authority/38,Oxfordshire County Council,Support at Home U65 Mental Health,07/06/2022,5899,Social Care - Direct Payments,3111190353,505.91,Purple Conversation Com In Co (DP)
http://statistics.data.gov.uk/id/local-authority/38,Oxfordshire County Council,CHC Fast Track - Sup at Homes - Over 65,10/06/2022,5691,,3111191380,506,Sue Ryder
http://statistics.data.gov.uk/id/local-authority/38,Oxfordshire County Council,Family Solutions Plus Non-staff - Centra,16/06/2022,5365,Non-Staff Subsistence and Expenses,9300056066,506.14,OCC SS Oxford City Div 1 Cash
http://statistics.data.gov.uk/id/local-authority/38,Oxfordshire County Council,Support at Home U65 Learning Disability,21/06/2022,5682,,3111200930,506.62,The Brandon Trust
http://statistics.data.gov.uk/id/local-authority/38,Oxfordshire County Council,Support at Home U65 HFA,10/06/2022,5688,,3111192100,506.7,The Laurels (Witney)
http://statistics.data.gov.uk/id/local-authority/38,Oxfordshire County Council,Support at Home U65 Memory & Cognition,07/06/2022,5899,Social Care - Direct Payments,3111190235,506.86,Purple Conversation Com In Co (DP)
http://statistics.data.gov.uk/id/local-authority/38,Oxfordshire County Council,TVERC,27/06/2022,4494,Purchase of IT Equipment,2201001780,507,TOTAL COMPUTERS NETWORK LTD
http://statistics.data.gov.uk/id/local-authority/38,Oxfordshire County Council,LIBRARY COLLECTIONS,29/06/2022,4539,"Books, DVDs and CDs",3111204181,507.03,ASKEWS & HOLTS LIBRARY SERVICES LTD
http://statistics.data.gov.uk/id/local-authority/38,Oxfordshire County Council,Support at Home U65 Physical Support,07/06/2022,5899,Social Care - Direct Payments,3111190384,507.88,Purple Conversation Com In Co (DP)
http://statistics.data.gov.uk/id/local-authority/38,Oxfordshire County Council,Planned Maintenance,24/06/2022,3787,Premises Repairs,2201001316,508,Ambiflex Ltd
http://statistics.data.gov.uk/id/local-authority/38,Oxfordshire County Council,Early Years SEN Funding,01/06/2022,5537,Payments to Other Establishments,3111187760,508.2,Culham After School Club LTD
http://statistics.data.gov.uk/id/local-authority/38,Oxfordshire County Council,Early Years SEN Funding,10/06/2022,5537,Payments to Other Establishments,3111191303,508.2,Cumnor Pre-School Nurser
http://statistics.data.gov.uk/id/local-authority/38,Oxfordshire County Council,COMM DRAWDOWN FUNDNG,17/06/2022,8004,Design Consultant,2200998850,508.27,Milestone Infrastructure Limited
http://statistics.data.gov.uk/id/local-authority/38,Oxfordshire County Council,FAM GRP CONFERENCES,24/06/2022,4940,Other Services,2201001348,508.4,Jessica Howards
http://statistics.data.gov.uk/id/local-authority/38,Oxfordshire County Council,Construction Management,06/06/2022,4940,Other Services,2200994081,509,Thomas Telford Ltd
http://statistics.data.gov.uk/id/local-authority/38,Oxfordshire County Council,Support at Home 65+ Physical Support,10/06/2022,5685,B*Cycle tracks,3111194287,509.2,Freeland House
http://statistics.data.gov.uk/id/local-authority/38,Oxfordshire County Council,Support at Home 65+ Learning Disability,07/06/2022,5899,Social Care - Direct Payments,3111189760,509.84,Purple Conversation Com In Co (DP)
http://statistics.data.gov.uk/id/local-authority/38,Oxfordshire County Council,Support at Home U65 Physical Support,07/06/2022,5899,Social Care - Direct Payments,3111189865,509.84,Purple Conversation Com In Co (DP)
http://statistics.data.gov.uk/id/local-authority/38,Oxfordshire County Council,Support at Home U65 Learning Disability,07/06/2022,5899,Social Care - Direct Payments,3111189928,509.84,Purple Conversation Com In Co (DP)
http://statistics.data.gov.uk/id/local-authority/38,Oxfordshire County Council,Support at Home 65+ Physical Support,10/06/2022,5693,,3111191222,510,Care with Care Ltd
http://statistics.data.gov.uk/id/local-authority/38,Oxfordshire County Council,ON ST PARK OXFD P&D,13/06/2022,4861,Hired and Contracted Services,2200996084,510,Flowbird Smart City
http://statistics.data.gov.uk/id/local-authority/38,Oxfordshire County Council,Planned Maintenance,16/06/2022,3787,Premises Repairs,2200997541,510,SI Pumps Ltd
http://statistics.data.gov.uk/id/local-authority/38,Oxfordshire County Council,Reviewing Team,25/06/2022,5227,Other Transport Arrangements,3111202530,510,The Oxfordshire Taxi Company Ltd T/
http://statistics.data.gov.uk/id/local-authority/38,Oxfordshire County Council,DISABILITIES TEAM-N,08/06/2022,5526,Payments to Private Contractors,2200994768,510.3,PB Moinville Care Limited
http://statistics.data.gov.uk/id/local-authority/38,Oxfordshire County Council,LD Continuing Care - Sup at Home - U65,08/06/2022,5691,,3111190897,510.3,PB Moinville Care Limited
http://statistics.data.gov.uk/id/local-authority/38,Oxfordshire County Council,DISABILITIES TEAM-N,09/06/2022,5526,Payments to Private Contractors,2200995170,510.3,PB Moinville Care Limited
http://statistics.data.gov.uk/id/local-authority/38,Oxfordshire County Council,DISABILITIES TEAM-N,23/06/2022,5526,Payments to Private Contractors,2201000584,510.3,PB Moinville Care Limited
http://statistics.data.gov.uk/id/local-authority/38,Oxfordshire County Council,DISABILITIES TEAM-N,30/06/2022,5526,Payments to Private Contractors,2201003233,510.3,PB Moinville Care Limited
http://statistics.data.gov.uk/id/local-authority/38,Oxfordshire County Council,DISABILITIES TEAM-N,30/06/2022,5526,Payments to Private Contractors,2201003236,510.3,PB Moinville Care Limited
http://statistics.data.gov.uk/id/local-authority/38,Oxfordshire County Council,Support at Home 65+ Physical Support,21/06/2022,5699,,3111201381,510.3,YOD Ltd
http://statistics.data.gov.uk/id/local-authority/38,Oxfordshire County Council,LEGAL BUDGET,22/06/2022,5251,Legal Costs,2201000534,511,DNA WORLDWIDE GROUP
http://statistics.data.gov.uk/id/local-authority/38,Oxfordshire County Council,Support at Home 65+ Physical Support,24/06/2022,5696,,3111202238,511.25,Orders of St John Care Trust
http://statistics.data.gov.uk/id/local-authority/38,Oxfordshire County Council,Delegated Health Tasks  - Over 65,10/06/2022,5691,,3111191340,511.63,Allied Health-Services Limited
http://statistics.data.gov.uk/id/local-authority/38,Oxfordshire County Council,Family Solutions Plus Non-staff - North,01/06/2022,4940,Other Services,2200993713,512,Complete Childcare Ltd
http://statistics.data.gov.uk/id/local-authority/38,Oxfordshire County Council,Support at Home 65+ Other /Soc Isolation,08/06/2022,5693,,3111190587,512,Personal Redacted Data
http://statistics.data.gov.uk/id/local-authority/38,Oxfordshire County Council,Community Support Service Bicester,24/06/2022,2040,Agency Staff,2201001313,512.4,Completely Care Ltd
http://statistics.data.gov.uk/id/local-authority/38,Oxfordshire County Council,Support at Home 65+ Physical Support,21/06/2022,5689,,3111200566,512.94,Goldsmith Personnel Ltd
http://statistics.data.gov.uk/id/local-authority/38,Oxfordshire County Council,Support at Home U65 Learning Disability,07/06/2022,5899,Social Care - Direct Payments,3111188291,513,Purple Conversation Com In Co (DP)
http://statistics.data.gov.uk/id/local-authority/38,Oxfordshire County Council,Support at Home U65 Physical Support,21/06/2022,5696,,3111200986,513.57,All Care GB Ltd
http://statistics.data.gov.uk/id/local-authority/38,Oxfordshire County Council,Support at Home 65+ Physical Support,21/06/2022,5696,,3111201044,513.57,All Care GB Ltd
http://statistics.data.gov.uk/id/local-authority/38,Oxfordshire County Council,HOUSING & IMMIGRATION & SOUTHWARK S17,08/06/2022,5365,Non-Staff Subsistence and Expenses,9300055942,514.1,OCC SS Banbury Area Off Cash
http://statistics.data.gov.uk/id/local-authority/38,Oxfordshire County Council,HOUSING & IMMIGRATION & SOUTHWARK S17,13/06/2022,5365,Non-Staff Subsistence and Expenses,9300056007,514.15,OCC SS Banbury Area Off Cash
http://statistics.data.gov.uk/id/local-authority/38,Oxfordshire County Council,2 YEAR OLD FUNDING,15/06/2022,5537,Payments to Other Establishments,3111196838,514.2,Blewbury Preschool
http://statistics.data.gov.uk/id/local-authority/38,Oxfordshire County Council,UASC 16&17,20/06/2022,5365,Non-Staff Subsistence and Expenses,9300056088,514.37,OCC SS Oxford City Div 1 Cash
http://statistics.data.gov.uk/id/local-authority/38,Oxfordshire County Council,Planned Maintenance,29/06/2022,3787,Premises Repairs,2201002806,515,Metro Rod Ltd (Oxon & West Bucks)
http://statistics.data.gov.uk/id/local-authority/38,Oxfordshire County Council,Support at Home U65 Learning Disability,07/06/2022,5899,Social Care - Direct Payments,3111189807,515.06,Purple Conversation Com In Co (DP)
http://statistics.data.gov.uk/id/local-authority/38,Oxfordshire County Council,Support at Home U65 Physical Support,07/06/2022,5899,Social Care - Direct Payments,3111188531,515.1,Personal Redacted Data
http://statistics.data.gov.uk/id/local-authority/38,Oxfordshire County Council,COMM DRAWDOWN FUNDNG,29/06/2022,8004,Design Consultant,2201002369,515.95,Milestone Infrastructure(Major Proj
http://statistics.data.gov.uk/id/local-authority/38,Oxfordshire County Council,CHC Fast Track - Sup at Homes - Over 65,15/06/2022,5691,,3111198282,516,FiNN Homecare Ltd
http://statistics.data.gov.uk/id/local-authority/38,Oxfordshire County Council,Oxfordshire Adoption Support Fund,17/06/2022,4861,Hired and Contracted Services,2200997977,516,SWAAY
http://statistics.data.gov.uk/id/local-authority/38,Oxfordshire County Council,Support at Home U65 HFA,07/06/2022,5899,Social Care - Direct Payments,3111190405,516.01,Rosekel Resourcing Ltd
http://statistics.data.gov.uk/id/local-authority/38,Oxfordshire County Council,Support at Home 65+ Memory & Cognition,21/06/2022,5689,,3111200393,516.37,Casa Care Ltd
http://statistics.data.gov.uk/id/local-authority/38,Oxfordshire County Council,Support at Home U65 Physical Support,24/06/2022,5696,,3111202275,516.5,Orders of St John Care Trust
http://statistics.data.gov.uk/id/local-authority/38,Oxfordshire County Council,POST 16 SEN,24/06/2022,4330,Transport to School Activities,3111202464,517.12,Bicester Cars UK Ltd
http://statistics.data.gov.uk/id/local-authority/38,Oxfordshire County Council,Support at Home 65+ Physical Support,07/06/2022,5899,Social Care - Direct Payments,3111189946,517.14,Purple Conversation Com In Co (DP)
http://statistics.data.gov.uk/id/local-authority/38,Oxfordshire County Council,Planned Maintenance,10/06/2022,3787,Premises Repairs,2200995833,517.52,Flex-E-Rent
http://statistics.data.gov.uk/id/local-authority/38,Oxfordshire County Council,Family Solutions Plus Non-staff - South,27/06/2022,5227,Other Transport Arrangements,9300056188,517.65,OCC SS Vale of White Horse Cash
http://statistics.data.gov.uk/id/local-authority/38,Oxfordshire County Council,GRASS CUTTING DIST.,06/06/2022,5526,Payments to Private Contractors,3111187871,517.98,OCC One Time Vendor
http://statistics.data.gov.uk/id/local-authority/38,Oxfordshire County Council,GRASS CUTTING DIST.,08/06/2022,5526,Payments to Private Contractors,3111190504,517.98,OCC One Time Vendor
http://statistics.data.gov.uk/id/local-authority/38,Oxfordshire County Council,TRAINING MANAGEMENT,13/06/2022,3100,Educational and Vocational Training,2200995924,518,Premier Partnership
http://statistics.data.gov.uk/id/local-authority/38,Oxfordshire County Council,High Cost INMSS Placements,02/06/2022,5537,Payments to Other Establishments,3500084202,519,LVS Oxford
http://statistics.data.gov.uk/id/local-authority/38,Oxfordshire County Council,Support at Home U65 Physical Support,24/06/2022,5696,,3111202219,519.24,Orders of St John Care Trust
http://statistics.data.gov.uk/id/local-authority/38,Oxfordshire County Council,Support at Home 65+ Learning Disability,24/06/2022,5696,,3111202225,519.24,Orders of St John Care Trust
http://statistics.data.gov.uk/id/local-authority/38,Oxfordshire County Council,Support at Home 65+ Physical Support,21/06/2022,5689,,3111200738,519.77,Pechiv Ltd
http://statistics.data.gov.uk/id/local-authority/38,Oxfordshire County Council,Household Support Fund,09/06/2022,4939,,3111191025,520,Co-Op Carterton Nursery
http://statistics.data.gov.uk/id/local-authority/38,Oxfordshire County Council,Support at Home U65 Physical Support,07/06/2022,5227,Other Transport Arrangements,3111190433,520,Go Green Taxis
http://statistics.data.gov.uk/id/local-authority/38,Oxfordshire County Council,Support at Home 65+ Physical Support,17/06/2022,5227,Other Transport Arrangements,3111198721,520,LINK SHIRES LTD
http://statistics.data.gov.uk/id/local-authority/38,Oxfordshire County Council,REGISTRAR,06/06/2022,7382,Ceremonies,3111187845,520,OCC One Time Vendor
http://statistics.data.gov.uk/id/local-authority/38,Oxfordshire County Council,FOSTERING TEAM,30/06/2022,4861,Hired and Contracted Services,3111204488,520,Personal Redacted Data
http://statistics.data.gov.uk/id/local-authority/38,Oxfordshire County Council,FOSTERING MAIN,07/06/2022,5227,Other Transport Arrangements,3111188826,520.01,Personal Redacted Data
http://statistics.data.gov.uk/id/local-authority/38,Oxfordshire County Council,Support at Home 65+ Physical Support,28/06/2022,5899,Social Care - Direct Payments,3111203179,520.37,Personal Redacted Data
http://statistics.data.gov.uk/id/local-authority/38,Oxfordshire County Council,Support at Home 65+ Learning Disability,10/06/2022,5690,,3111191460,520.46,The Ice Centre
http://statistics.data.gov.uk/id/local-authority/38,Oxfordshire County Council,Support at Home 65+ Physical Support,07/06/2022,5899,Social Care - Direct Payments,3111188478,520.47,Personal Redacted Data
http://statistics.data.gov.uk/id/local-authority/38,Oxfordshire County Council,Support at Home 65+ Physical Support,21/06/2022,5689,,3111200640,520.8,Home Helpers Care Ltd
http://statistics.data.gov.uk/id/local-authority/38,Oxfordshire County Council,FOSTERING MAIN,21/06/2022,5227,Other Transport Arrangements,3111199667,521.14,Personal Redacted Data
http://statistics.data.gov.uk/id/local-authority/38,Oxfordshire County Council,COUNTY PRINT FINSHRS,27/06/2022,2040,Agency Staff,2201001777,521.4,Completely Care Ltd
http://statistics.data.gov.uk/id/local-authority/38,Oxfordshire County Council,Oxfordshire Adoption Support Fund,30/06/2022,6500,Government Grants (Revenue),3111204515,521.5,OCC One Time Vendor
http://statistics.data.gov.uk/id/local-authority/38,Oxfordshire County Council,NURSERY ED FUND,15/06/2022,5537,Payments to Other Establishments,3111196674,522,Sarah Threlfall
http://statistics.data.gov.uk/id/local-authority/38,Oxfordshire County Council,Children in Care Non-staffing - Centrl 1,07/06/2022,4685,Clothing and Uniforms,3111188313,522.1,Personal Redacted Data
http://statistics.data.gov.uk/id/local-authority/38,Oxfordshire County Council,SEN Additional Funding,06/06/2022,5537,Payments to Other Establishments,3111188048,522.11,St Peters Church of England Primary
http://statistics.data.gov.uk/id/local-authority/38,Oxfordshire County Council,Support at Home 65+ Physical Support,07/06/2022,5899,Social Care - Direct Payments,3111188427,522.16,Personal Redacted Data
http://statistics.data.gov.uk/id/local-authority/38,Oxfordshire County Council,FAM GRP CONFERENCES,24/06/2022,4940,Other Services,2201001355,522.2,Cary Dunnet
http://statistics.data.gov.uk/id/local-authority/38,Oxfordshire County Council,Support at Home U65 Mental Health,24/06/2022,5696,,3111202253,522.22,Orders of St John Care Trust
http://statistics.data.gov.uk/id/local-authority/38,Oxfordshire County Council,Support at Home 65+ Physical Support,24/06/2022,5696,,3111202181,522.33,Orders of St John Care Trust
http://statistics.data.gov.uk/id/local-authority/38,Oxfordshire County Council,GRASS CUTTING DIST.,15/06/2022,5526,Payments to Private Contractors,3111198300,522.4,OCC One Time Vendor
http://statistics.data.gov.uk/id/local-authority/38,Oxfordshire County Council,Support at Home 65+ Physical Support,21/06/2022,5689,,3111200699,522.48,My Carer Ltd
http://statistics.data.gov.uk/id/local-authority/38,Oxfordshire County Council,Support at Home 65+ Physical Support,21/06/2022,5699,,3111201114,522.9,Agincare UK Ltd
http://statistics.data.gov.uk/id/local-authority/38,Oxfordshire County Council,FOSTERING MAIN,07/06/2022,5549,B*Fostering Allowance - Regulation 38,3111188688,523,Personal Redacted Data
http://statistics.data.gov.uk/id/local-authority/38,Oxfordshire County Council,FOSTERING MAIN,14/06/2022,5549,B*Fostering Allowance - Regulation 38,3111197429,523,Personal Redacted Data
http://statistics.data.gov.uk/id/local-authority/38,Oxfordshire County Council,FOSTERING MAIN,21/06/2022,5549,B*Fostering Allowance - Regulation 38,3111199702,523,Personal Redacted Data
http://statistics.data.gov.uk/id/local-authority/38,Oxfordshire County Council,FOSTERING MAIN,28/06/2022,5549,B*Fostering Allowance - Regulation 38,3111203615,523,Personal Redacted Data
http://statistics.data.gov.uk/id/local-authority/38,Oxfordshire County Council,Swindon Adoption Support Fund,30/06/2022,6500,Government Grants (Revenue),3111204510,523,OCC One Time Vendor
http://statistics.data.gov.uk/id/local-authority/38,Oxfordshire County Council,Oxfordshire Adoption Support Fund,30/06/2022,6500,Government Grants (Revenue),3111204511,523,OCC One Time Vendor
http://statistics.data.gov.uk/id/local-authority/38,Oxfordshire County Council,Delegated Health Tasks  - Over 65,21/06/2022,5689,,3111200425,523.1,Oxfordshire Crossroads
http://statistics.data.gov.uk/id/local-authority/38,Oxfordshire County Council,SM DISABILITIES,27/06/2022,5554,Childrens' Social Care - Direct Payments,3111202950,523.24,Purple Conversation Com In Co (DP)
http://statistics.data.gov.uk/id/local-authority/38,Oxfordshire County Council,Support at Home 65+ Mental Health,07/06/2022,5899,Social Care - Direct Payments,3111188410,523.27,Personal Redacted Data
http://statistics.data.gov.uk/id/local-authority/38,Oxfordshire County Council,Support at Home 65+ Physical Support,08/06/2022,5693,,3111190614,523.48,We-Care-Recruitment Ltd
http://statistics.data.gov.uk/id/local-authority/38,Oxfordshire County Council,Support at Home 65+ Physical Support,21/06/2022,5689,,3111200774,523.63,PLL Care Services
http://statistics.data.gov.uk/id/local-authority/38,Oxfordshire County Council,Support at Home U65 Mental Health,07/06/2022,5899,Social Care - Direct Payments,3111190156,524.43,Purple Conversation Com In Co (DP)
http://statistics.data.gov.uk/id/local-authority/38,Oxfordshire County Council,Support at Home U65 Learning Disability,07/06/2022,5899,Social Care - Direct Payments,3111190333,524.43,Purple Conversation Com In Co (DP)
http://statistics.data.gov.uk/id/local-authority/38,Oxfordshire County Council,Support at Home U65 Other /Soc Isolation,07/06/2022,5899,Social Care - Direct Payments,3111190357,524.43,Purple Conversation Com In Co (DP)
http://statistics.data.gov.uk/id/local-authority/38,Oxfordshire County Council,SM DISABILITIES,27/06/2022,5554,Childrens' Social Care - Direct Payments,3111202934,524.56,Purple Conversation Com In Co (DP)
http://statistics.data.gov.uk/id/local-authority/38,Oxfordshire County Council,MAINSTREAM-SECONDARY,07/06/2022,4330,Transport to School Activities,3111190437,525,Go Green Taxis
http://statistics.data.gov.uk/id/local-authority/38,Oxfordshire County Council,POST18 UASC DCSF FND,09/06/2022,3942,Hire of Accommodation and Facilities,3111191111,525,Personal Redacted Data
http://statistics.data.gov.uk/id/local-authority/38,Oxfordshire County Council,FOSTERING MAIN,07/06/2022,5541,B*Foster Parents,3111188669,525,Personal Redacted Data
http://statistics.data.gov.uk/id/local-authority/38,Oxfordshire County Council,FOSTERING MAIN,14/06/2022,5541,B*Foster Parents,3111197416,525,Personal Redacted Data
http://statistics.data.gov.uk/id/local-authority/38,Oxfordshire County Council,FOSTERING MAIN,21/06/2022,5541,B*Foster Parents,3111199693,525,Personal Redacted Data
http://statistics.data.gov.uk/id/local-authority/38,Oxfordshire County Council,FOSTERING MAIN,28/06/2022,5541,B*Foster Parents,3111203604,525,Personal Redacted Data
http://statistics.data.gov.uk/id/local-authority/38,Oxfordshire County Council,SHORT BREAK ACTIVITIES,13/06/2022,5195,Grant Aid and Donations,3111196273,525,OCC One Time Vendor
http://statistics.data.gov.uk/id/local-authority/38,Oxfordshire County Council,Oxfordshire Adoption Support Fund,30/06/2022,6500,Government Grants (Revenue),3111204589,525,OCC One Time Vendor
http://statistics.data.gov.uk/id/local-authority/38,Oxfordshire County Council,FOSTERING MAIN,07/06/2022,5541,B*Foster Parents,3111189012,525,Personal Redacted Data
http://statistics.data.gov.uk/id/local-authority/38,Oxfordshire County Council,FOSTERING MAIN,14/06/2022,5541,B*Foster Parents,3111197660,525,Personal Redacted Data
http://statistics.data.gov.uk/id/local-authority/38,Oxfordshire County Council,FOSTERING MAIN,21/06/2022,5541,B*Foster Parents,3111199894,525,Personal Redacted Data
http://statistics.data.gov.uk/id/local-authority/38,Oxfordshire County Council,FOSTERING MAIN,28/06/2022,5541,B*Foster Parents,3111203832,525,Personal Redacted Data
http://statistics.data.gov.uk/id/local-authority/38,Oxfordshire County Council,Support at Home 65+ Memory & Cognition,29/06/2022,5693,,3111204135,525,Star Projections
http://statistics.data.gov.uk/id/local-authority/38,Oxfordshire County Council,ROW MAINT,24/06/2022,3787,Premises Repairs,2201001293,525,Sylva Trees Ltd
http://statistics.data.gov.uk/id/local-authority/38,Oxfordshire County Council,TRANSLATION,07/06/2022,5668,Technical and Professional Consultant F,2200994100,525.33,K International PLC
http://statistics.data.gov.uk/id/local-authority/38,Oxfordshire County Council,Support at Home 65+ Physical Support,21/06/2022,5689,,3111200692,525.42,My Carer Ltd
http://statistics.data.gov.uk/id/local-authority/38,Oxfordshire County Council,Support at Home 65+ Physical Support,07/06/2022,5899,Social Care - Direct Payments,3111188561,525.49,Personal Redacted Data
http://statistics.data.gov.uk/id/local-authority/38,Oxfordshire County Council,Route Treatment (Veg & Signs),21/06/2022,5526,Payments to Private Contractors,2200999813,525.5,Milestone Infrastructure Limited
http://statistics.data.gov.uk/id/local-authority/38,Oxfordshire County Council,FOSTERING MAIN,21/06/2022,5227,Other Transport Arrangements,3111200118,525.77,Personal Redacted Data
http://statistics.data.gov.uk/id/local-authority/38,Oxfordshire County Council,MEADOWBROOK TRANSPT,14/06/2022,4330,Transport to School Activities,3111198013,526,Bicester Cars UK Ltd
http://statistics.data.gov.uk/id/local-authority/38,Oxfordshire County Council,POST 16 SEN,24/06/2022,4330,Transport to School Activities,3111202473,526.13,Bicester Cars UK Ltd
http://statistics.data.gov.uk/id/local-authority/38,Oxfordshire County Council,Support at Home U65 Autism /Abated,10/06/2022,5690,,3111191774,526.5,Autism at Kingwood Limited
http://statistics.data.gov.uk/id/local-authority/38,Oxfordshire County Council,Support at Home U65 Learning Disability,10/06/2022,5690,,3111191542,527.14,Turnstyle
http://statistics.data.gov.uk/id/local-authority/38,Oxfordshire County Council,GRASS CUTTING DIST.,06/06/2022,5526,Payments to Private Contractors,3111187864,528.39,Watlington Parish Council
http://statistics.data.gov.uk/id/local-authority/38,Oxfordshire County Council,Support at Home 65+ Physical Support,21/06/2022,5689,,3111199978,528.44,Alina Homecare
http://statistics.data.gov.uk/id/local-authority/38,Oxfordshire County Council,Support at Home 65+ Physical Support,21/06/2022,5696,,3111201022,528.68,All Care GB Ltd
http://statistics.data.gov.uk/id/local-authority/38,Oxfordshire County Council,Support at Home 65+ Physical Support,21/06/2022,5696,,3111201031,528.68,All Care GB Ltd
http://statistics.data.gov.uk/id/local-authority/38,Oxfordshire County Council,Support at Home 65+ Physical Support,21/06/2022,5696,,3111201049,528.68,All Care GB Ltd
http://statistics.data.gov.uk/id/local-authority/38,Oxfordshire County Council,Support at Home U65 Learning Disability,10/06/2022,5690,,3111191532,529.16,Turnstyle
http://statistics.data.gov.uk/id/local-authority/38,Oxfordshire County Council,Support at Home 65+ Learning Disability,10/06/2022,5690,,3111191551,529.16,Turnstyle
http://statistics.data.gov.uk/id/local-authority/38,Oxfordshire County Council,Support at Home 65+ Physical Support,21/06/2022,5699,,3111201091,529.2,Agincare UK Ltd
http://statistics.data.gov.uk/id/local-authority/38,Oxfordshire County Council,Support at Home U65 Physical Support,21/06/2022,5699,,3111201102,529.2,Agincare UK Ltd
http://statistics.data.gov.uk/id/local-authority/38,Oxfordshire County Council,Support at Home 65+ Physical Support,21/06/2022,5699,,3111201110,529.2,Agincare UK Ltd
http://statistics.data.gov.uk/id/local-authority/38,Oxfordshire County Council,Support at Home 65+ Physical Support,17/06/2022,5693,,3111198853,529.2,CARESTREAM HOME CARE
http://statistics.data.gov.uk/id/local-authority/38,Oxfordshire County Council,Support at Home 65+ Physical Support,17/06/2022,5693,,3111198861,529.2,Direct Link Care Ltd
http://statistics.data.gov.uk/id/local-authority/38,Oxfordshire County Council,Support at Home 65+ Physical Support,22/06/2022,5693,,3111201489,529.2,HEALTHCARE ACCESS LTD
http://statistics.data.gov.uk/id/local-authority/38,Oxfordshire County Council,Support at Home 65+ Physical Support,22/06/2022,5693,,3111201508,529.2,JMC Care Solutions Limited
http://statistics.data.gov.uk/id/local-authority/38,Oxfordshire County Council,Support at Home 65+ Physical Support,24/06/2022,5693,,3111202404,529.2,Oasis Private Care Ltd
http://statistics.data.gov.uk/id/local-authority/38,Oxfordshire County Council,Support at Home 65+ Physical Support,22/06/2022,5693,,3111201529,529.2,Oxford Private Care
http://statistics.data.gov.uk/id/local-authority/38,Oxfordshire County Council,Support at Home 65+ Physical Support,21/06/2022,5699,,3111201361,529.2,PLL Care Services
http://statistics.data.gov.uk/id/local-authority/38,Oxfordshire County Council,Support at Home 65+ Physical Support,22/06/2022,5693,,3111201561,529.2,We-Care-Recruitment Ltd
http://statistics.data.gov.uk/id/local-authority/38,Oxfordshire County Council,Support at Home U65 Physical Support,22/06/2022,5693,,3111201566,529.2,We-Care-Recruitment Ltd
http://statistics.data.gov.uk/id/local-authority/38,Oxfordshire County Council,Support at Home 65+ Physical Support,21/06/2022,5699,,3111201374,529.2,Xperience Recruitment Ltd
http://statistics.data.gov.uk/id/local-authority/38,Oxfordshire County Council,Support at Home 65+ Physical Support,17/06/2022,5693,,3111198825,529.4,A CARING HAND LTD
http://statistics.data.gov.uk/id/local-authority/38,Oxfordshire County Council,Support at Home 65+ Physical Support,17/06/2022,5693,,3111198837,529.4,A CARING HAND LTD
http://statistics.data.gov.uk/id/local-authority/38,Oxfordshire County Council,Support at Home U65 Learning Disability,21/06/2022,5682,,3111200944,529.97,The Brandon Trust
http://statistics.data.gov.uk/id/local-authority/38,Oxfordshire County Council,Support at Home U65 Learning Disability,21/06/2022,5682,,3111200921,531.56,The Brandon Trust
http://statistics.data.gov.uk/id/local-authority/38,Oxfordshire County Council,Support at Home U65 Learning Disability,21/06/2022,5682,,3111200975,531.56,The Brandon Trust
http://statistics.data.gov.uk/id/local-authority/38,Oxfordshire County Council,Support at Home U65 Learning Disability,21/06/2022,5682,,3111200900,531.73,The Brandon Trust
http://statistics.data.gov.uk/id/local-authority/38,Oxfordshire County Council,Support at Home U65 Learning Disability,21/06/2022,5682,,3111200916,531.73,The Brandon Trust
http://statistics.data.gov.uk/id/local-authority/38,Oxfordshire County Council,SEN TRANSPORT,16/06/2022,5227,Other Transport Arrangements,3111198514,532,Banbury Taxis
http://statistics.data.gov.uk/id/local-authority/38,Oxfordshire County Council,Delegated Health Tasks  - Over 65,28/06/2022,5691,,3111203152,532,Prime Social Care Services Ltd
http://statistics.data.gov.uk/id/local-authority/38,Oxfordshire County Council,Delegated Health Tasks  - Over 65,28/06/2022,5691,,3111203153,532,Prime Social Care Services Ltd
http://statistics.data.gov.uk/id/local-authority/38,Oxfordshire County Council,TREE MAINT OPS,23/06/2022,5526,Payments to Private Contractors,2201001055,532,Treetech Arboricultural Services Lt
http://statistics.data.gov.uk/id/local-authority/38,Oxfordshire County Council,SEN TRANSPORT,22/06/2022,5227,Other Transport Arrangements,3111201698,532.38,24/7 LTD
http://statistics.data.gov.uk/id/local-authority/38,Oxfordshire County Council,Wokingham Adoption Support Fund,30/06/2022,6500,Government Grants (Revenue),3111204508,532.39,OCC One Time Vendor
http://statistics.data.gov.uk/id/local-authority/38,Oxfordshire County Council,NURSERY ED FUND,15/06/2022,5537,Payments to Other Establishments,3111196573,532.44,Mandy Stone
http://statistics.data.gov.uk/id/local-authority/38,Oxfordshire County Council,Support at Home 65+ Physical Support,21/06/2022,5899,Social Care - Direct Payments,3111199589,532.89,Purple Conversation Com In Co (DP)
http://statistics.data.gov.uk/id/local-authority/38,Oxfordshire County Council,FOSTERING MAIN,07/06/2022,5549,B*Fostering Allowance - Regulation 38,3111188988,533,Personal Redacted Data
http://statistics.data.gov.uk/id/local-authority/38,Oxfordshire County Council,FOSTERING MAIN,14/06/2022,5549,B*Fostering Allowance - Regulation 38,3111197644,533,Personal Redacted Data
http://statistics.data.gov.uk/id/local-authority/38,Oxfordshire County Council,FOSTERING MAIN,21/06/2022,5549,B*Fostering Allowance - Regulation 38,3111199884,533,Personal Redacted Data
http://statistics.data.gov.uk/id/local-authority/38,Oxfordshire County Council,FOSTERING MAIN,28/06/2022,5549,B*Fostering Allowance - Regulation 38,3111203823,533,Personal Redacted Data
http://statistics.data.gov.uk/id/local-authority/38,Oxfordshire County Council,Support at Home 65+ Physical Support,21/06/2022,5689,,3111200696,533.16,My Carer Ltd
http://statistics.data.gov.uk/id/local-authority/38,Oxfordshire County Council,COUNTY PRINT FINSHRS,21/06/2022,2040,Agency Staff,2200999581,533.25,Completely Care Ltd
http://statistics.data.gov.uk/id/local-authority/38,Oxfordshire County Council,COUNTY PRINT FINSHRS,21/06/2022,2040,Agency Staff,2200999961,533.25,Completely Care Ltd
http://statistics.data.gov.uk/id/local-authority/38,Oxfordshire County Council,FOSTERING MAIN,07/06/2022,5549,B*Fostering Allowance - Regulation 38,3111188550,534,Personal Redacted Data
http://statistics.data.gov.uk/id/local-authority/38,Oxfordshire County Council,FOSTERING MAIN,14/06/2022,5549,B*Fostering Allowance - Regulation 38,3111197305,534,Personal Redacted Data
http://statistics.data.gov.uk/id/local-authority/38,Oxfordshire County Council,FOSTERING MAIN,21/06/2022,5549,B*Fostering Allowance - Regulation 38,3111199566,534,Personal Redacted Data
http://statistics.data.gov.uk/id/local-authority/38,Oxfordshire County Council,FOSTERING MAIN,28/06/2022,5549,B*Fostering Allowance - Regulation 38,3111203485,534,Personal Redacted Data
http://statistics.data.gov.uk/id/local-authority/38,Oxfordshire County Council,Support at Home U65 Learning Disability,07/06/2022,5899,Social Care - Direct Payments,3111189922,534.08,Purple Conversation Com In Co (DP)
http://statistics.data.gov.uk/id/local-authority/38,Oxfordshire County Council,Homes for Ukraine - Guests,20/06/2022,5902,Adult Social Care - Personal Allowance,9300056083,534.55,OCC SS Oxford City Div 1 Cash
http://statistics.data.gov.uk/id/local-authority/38,Oxfordshire County Council,Planned Maintenance,16/06/2022,3787,Premises Repairs,2200997591,534.74,R J Lift Services Ltd
http://statistics.data.gov.uk/id/local-authority/38,Oxfordshire County Council,Support at Home 65+ Memory & Cognition,21/06/2022,5698,,3111200264,534.76,Day & Night Care Assistance
http://statistics.data.gov.uk/id/local-authority/38,Oxfordshire County Council,Support at Home 65+ Mental Health,21/06/2022,5698,,3111200226,535.22,Day & Night Care Assistance
http://statistics.data.gov.uk/id/local-authority/38,Oxfordshire County Council,Support at Home 65+ Physical Support,24/06/2022,5693,,3111202379,535.5,Enable Health Ltd
http://statistics.data.gov.uk/id/local-authority/38,Oxfordshire County Council,LANDLORD & TENANT,28/06/2022,4001,Uniform Business Rates,3500084567,536,Oxford City Council
http://statistics.data.gov.uk/id/local-authority/38,Oxfordshire County Council,Support at Home U65 HFA,07/06/2022,5899,Social Care - Direct Payments,3111189630,536.25,Personal Redacted Data
http://statistics.data.gov.uk/id/local-authority/38,Oxfordshire County Council,Delegated Health Tasks  - Over 65,21/06/2022,5689,,3111200348,536.28,Caremark (West Oxfordshire & Cherwe
http://statistics.data.gov.uk/id/local-authority/38,Oxfordshire County Council,Support at Home U65 MH OBC Contract,29/06/2022,5693,,3111204137,536.75,SureCare Oxfordshire
http://statistics.data.gov.uk/id/local-authority/38,Oxfordshire County Council,Support at Home 65+ Physical Support,21/06/2022,5689,,3111200807,536.94,Prestige Nursing Ltd
http://statistics.data.gov.uk/id/local-authority/38,Oxfordshire County Council,Planned Maintenance,24/06/2022,3787,Premises Repairs,2201001335,537,SI Pumps Ltd
http://statistics.data.gov.uk/id/local-authority/38,Oxfordshire County Council,RESIDENTIAL TREATMEN,10/06/2022,5686,,2200995868,537.16,The Nelson Trust
http://statistics.data.gov.uk/id/local-authority/38,Oxfordshire County Council,Support at Home U65 Physical Support,10/06/2022,5690,,3111191738,537.42,ADVANCE HOUSING & SUPPORT LTD
http://statistics.data.gov.uk/id/local-authority/38,Oxfordshire County Council,REAL COST ALLOWANCES,14/06/2022,5662,B*Christmas Allowance,3111197452,537.43,Personal Redacted Data
http://statistics.data.gov.uk/id/local-authority/38,Oxfordshire County Council,SEN Additional Funding,06/06/2022,5537,Payments to Other Establishments,3111187978,537.47,Cherryfields Primary school
http://statistics.data.gov.uk/id/local-authority/38,Oxfordshire County Council,Support at Home U65 Physical Support,07/06/2022,5899,Social Care - Direct Payments,3111189481,538.33,Personal Redacted Data
http://statistics.data.gov.uk/id/local-authority/38,Oxfordshire County Council,Support at Home U65 Physical Support,24/06/2022,5696,,3111202187,538.71,Orders of St John Care Trust
http://statistics.data.gov.uk/id/local-authority/38,Oxfordshire County Council,Support at Home U65 Learning Disability,07/06/2022,5899,Social Care - Direct Payments,3111189789,539.03,Purple Conversation Com In Co (DP)
http://statistics.data.gov.uk/id/local-authority/38,Oxfordshire County Council,Support at Home U65 Physical Support,07/06/2022,5899,Social Care - Direct Payments,3111190314,539.03,Purple Conversation Com In Co (DP)
http://statistics.data.gov.uk/id/local-authority/38,Oxfordshire County Council,Support at Home 65+ Physical Support,21/06/2022,5689,,3111200603,539.19,Greigcare Home Service
http://statistics.data.gov.uk/id/local-authority/38,Oxfordshire County Council,Support at Home U65 Learning Disability,10/06/2022,5690,,3111191495,539.66,Oxford Wholefoods
http://statistics.data.gov.uk/id/local-authority/38,Oxfordshire County Council,GRASS CUTTING DIST.,06/06/2022,5526,Payments to Private Contractors,3111187855,539.77,Ramsden Parish Council
http://statistics.data.gov.uk/id/local-authority/38,Oxfordshire County Council,TRANSPORT COSTS,25/06/2022,4330,Transport to School Activities,3111202500,539.82,The Oxfordshire Taxi Company Ltd T/
http://statistics.data.gov.uk/id/local-authority/38,Oxfordshire County Council,Community Support Service Banbury,29/06/2022,5227,Other Transport Arrangements,3111203980,540,A2B Castle Cars Ltd
http://statistics.data.gov.uk/id/local-authority/38,Oxfordshire County Council,SEN Miscellaneous Expenditure,16/06/2022,4861,Hired and Contracted Services,2200997666,540,Develop My Child
http://statistics.data.gov.uk/id/local-authority/38,Oxfordshire County Council,MAINSTREAM-SECONDARY,07/06/2022,4330,Transport to School Activities,3111190438,540,Go Green Taxis
http://statistics.data.gov.uk/id/local-authority/38,Oxfordshire County Council,Voice of Customer,07/06/2022,4861,Hired and Contracted Services,2200994381,540,Isobel Morrow
http://statistics.data.gov.uk/id/local-authority/38,Oxfordshire County Council,SEN TRANSPORT,13/06/2022,5227,Other Transport Arrangements,3111196080,540,Oxon Transport Services Ltd
http://statistics.data.gov.uk/id/local-authority/38,Oxfordshire County Council,Support at Home U65 Learning Disability,22/06/2022,5697,,3111201430,540,Pennyhooks Farm Trust
http://statistics.data.gov.uk/id/local-authority/38,Oxfordshire County Council,MEADOWBROOK TRANSPT,15/06/2022,4330,Transport to School Activities,3111198131,540,Supreme Taxis
http://statistics.data.gov.uk/id/local-authority/38,Oxfordshire County Council,COMM DRAWDOWN FUNDNG,23/06/2022,8004,Design Consultant,2201000990,540,Telent Technology Services Limited
http://statistics.data.gov.uk/id/local-authority/38,Oxfordshire County Council,COMMUNITY & ROAD SAFETY,23/06/2022,3103,Other Training Courses and Qualification,2201000539,540,The Bike Academy (South) Ltd
http://statistics.data.gov.uk/id/local-authority/38,Oxfordshire County Council,Support at Home U65 Learning Disability,25/06/2022,5227,Other Transport Arrangements,3111202744,540,The Oxfordshire Taxi Company Ltd T/
http://statistics.data.gov.uk/id/local-authority/38,Oxfordshire County Council,LAC PUPIL PREMIUM,21/06/2022,5537,Payments to Other Establishments,3111199211,540,The Propeller Academy Trust
http://statistics.data.gov.uk/id/local-authority/38,Oxfordshire County Council,Councillors Priorities Fund,06/06/2022,4940,Other Services,3111187831,540,Wootton & Dry Sandford Community Ce
http://statistics.data.gov.uk/id/local-authority/38,Oxfordshire County Council,Support at Home U65 Physical Support,07/06/2022,5899,Social Care - Direct Payments,3111189618,540.1,Personal Redacted Data
http://statistics.data.gov.uk/id/local-authority/38,Oxfordshire County Council,Support at Home 65+ Physical Support,07/06/2022,5899,Social Care - Direct Payments,3111190326,540.3,Purple Conversation Com In Co (DP)
http://statistics.data.gov.uk/id/local-authority/38,Oxfordshire County Council,SEN Alternative Provision,16/06/2022,4878,Hired and Contracted Services (Curricul,2200997566,540.84,Teaching Personnel Ltd
http://statistics.data.gov.uk/id/local-authority/38,Oxfordshire County Council,SEN Alternative Provision,16/06/2022,4878,Hired and Contracted Services (Curricul,2200997610,540.84,Teaching Personnel Ltd
http://statistics.data.gov.uk/id/local-authority/38,Oxfordshire County Council,Support at Home 65+ Physical Support,24/06/2022,5696,,3111202274,540.85,Orders of St John Care Trust
http://statistics.data.gov.uk/id/local-authority/38,Oxfordshire County Council,SERVICE DELIVERY,22/06/2022,4685,Clothing and Uniforms,2201000345,541.1,Oxford Safety Supplies
http://statistics.data.gov.uk/id/local-authority/38,Oxfordshire County Council,SHARED LIVES,10/06/2022,5555,Payments to Carers,3111193437,541.44,Personal Redacted Data
http://statistics.data.gov.uk/id/local-authority/38,Oxfordshire County Council,NURSERY ED FUND,15/06/2022,5537,Payments to Other Establishments,3111196627,541.62,Pippa Ashton
http://statistics.data.gov.uk/id/local-authority/38,Oxfordshire County Council,Support at Home U65 Mental Health,22/06/2022,5693,,3111201443,541.8,BE WELL CARE LTD
http://statistics.data.gov.uk/id/local-authority/38,Oxfordshire County Council,Support at Home 65+ Physical Support,29/06/2022,5693,,3111204098,541.8,BETTER LIFE CARE LTD
http://statistics.data.gov.uk/id/local-authority/38,Oxfordshire County Council,Support at Home 65+ Physical Support,21/06/2022,5698,,3111200105,541.8,Bridges Home Care Ltd
http://statistics.data.gov.uk/id/local-authority/38,Oxfordshire County Council,Support at Home U65 HFA,17/06/2022,5693,,3111198870,541.8,Direct Link Care Ltd
http://statistics.data.gov.uk/id/local-authority/38,Oxfordshire County Council,Support at Home U65 Learning Disability,21/06/2022,5682,,3111200968,542.06,The Brandon Trust
http://statistics.data.gov.uk/id/local-authority/38,Oxfordshire County Council,Support at Home 65+ Physical Support,21/06/2022,5698,,3111200450,542.36,Oxford Private Care
http://statistics.data.gov.uk/id/local-authority/38,Oxfordshire County Council,SEN Additional Funding,06/06/2022,5537,Payments to Other Establishments,3111188036,542.59,St Christopher's CE Primary School
http://statistics.data.gov.uk/id/local-authority/38,Oxfordshire County Council,Support at Home 65+ Physical Support,21/06/2022,5689,,3111200215,542.78,Care Outlook Ltd
http://statistics.data.gov.uk/id/local-authority/38,Oxfordshire County Council,Support at Home 65+ Physical Support,21/06/2022,5689,,3111200397,542.86,Oxfordshire Crossroads
http://statistics.data.gov.uk/id/local-authority/38,Oxfordshire County Council,Support at Home U65 Learning Disability,10/06/2022,5688,,3111194100,543.18,Autism at Kingwood Limited
http://statistics.data.gov.uk/id/local-authority/38,Oxfordshire County Council,Delegated Health Tasks  - Over 65,10/06/2022,5691,,3111191429,543.2,The Caring Company (Oxon)
http://statistics.data.gov.uk/id/local-authority/38,Oxfordshire County Council,Support at Home 65+ Physical Support,21/06/2022,5698,,3111200459,543.73,Oxford Private Care
http://statistics.data.gov.uk/id/local-authority/38,Oxfordshire County Council,Support at Home U65 Memory & Cognition,21/06/2022,5696,,3111200980,543.78,All Care GB Ltd
http://statistics.data.gov.uk/id/local-authority/38,Oxfordshire County Council,SEN TRANSPORT,09/06/2022,5227,Other Transport Arrangements,3111190958,544,My Cabbie LTD t/a J and A Transport
http://statistics.data.gov.uk/id/local-authority/38,Oxfordshire County Council,FAM GRP CONFERENCES,16/06/2022,4940,Other Services,2200997554,544.5,Jessica Howards
http://statistics.data.gov.uk/id/local-authority/38,Oxfordshire County Council,SEN TRANSPORT,06/06/2022,4320,Pupil / Client Travel Reimbursement,3111188181,544.64,Personal Redacted Data
http://statistics.data.gov.uk/id/local-authority/38,Oxfordshire County Council,Support at Home U65 Learning Disability,07/06/2022,5899,Social Care - Direct Payments,3111190264,544.84,Purple Conversation Com In Co (DP)
http://statistics.data.gov.uk/id/local-authority/38,Oxfordshire County Council,Delegated Health Tasks  - Over 65,28/06/2022,5691,,3111203953,545.05,Bluebird Care (Oxford South & West)
http://statistics.data.gov.uk/id/local-authority/38,Oxfordshire County Council,Support at Home U65 Learning Disability,07/06/2022,5899,Social Care - Direct Payments,3111189991,545.71,Purple Conversation Com In Co (DP)
http://statistics.data.gov.uk/id/local-authority/38,Oxfordshire County Council,MAINSTREAM-PRIMARY,22/06/2022,4330,Transport to School Activities,3111201674,546,24/7 LTD
http://statistics.data.gov.uk/id/local-authority/38,Oxfordshire County Council,MAINSTREAM-SECONDARY,22/06/2022,4330,Transport to School Activities,3111201673,546.5,24/7 LTD
http://statistics.data.gov.uk/id/local-authority/38,Oxfordshire County Council,VOIDS/VACANCY COSTS,10/06/2022,3945,Rent,3111192831,546.51,Cherwell District Council
http://statistics.data.gov.uk/id/local-authority/38,Oxfordshire County Council,VOIDS/VACANCY COSTS,10/06/2022,3945,Rent,3111192833,546.51,Cherwell District Council
http://statistics.data.gov.uk/id/local-authority/38,Oxfordshire County Council,Support at Home U65 Learning Disability,21/06/2022,5682,,3111200965,546.63,The Brandon Trust
http://statistics.data.gov.uk/id/local-authority/38,Oxfordshire County Council,GRASS CUTTING DIST.,06/06/2022,5526,Payments to Private Contractors,3111187867,546.8,OCC One Time Vendor
http://statistics.data.gov.uk/id/local-authority/38,Oxfordshire County Council,GRASS CUTTING DIST.,08/06/2022,5526,Payments to Private Contractors,3111190500,546.8,OCC One Time Vendor
http://statistics.data.gov.uk/id/local-authority/38,Oxfordshire County Council,LAC PUPIL PREMIUM,21/06/2022,5537,Payments to Other Establishments,3111199213,547,Blessed George Napier C School
http://statistics.data.gov.uk/id/local-authority/38,Oxfordshire County Council,HN IN SEC SCHOOLS,20/06/2022,5537,Payments to Other Establishments,3111201599,547,FUTURES INSTITUTE BANBURY
http://statistics.data.gov.uk/id/local-authority/38,Oxfordshire County Council,Support at Home U65 Learning Disability,21/06/2022,5682,,3111200963,547.07,The Brandon Trust
http://statistics.data.gov.uk/id/local-authority/38,Oxfordshire County Council,Support at Home 65+ Physical Support,10/06/2022,5696,,3111191703,547.17,All Care GB Ltd
http://statistics.data.gov.uk/id/local-authority/38,Oxfordshire County Council,Support at Home U65 Physical Support,10/06/2022,5696,,3111191709,547.17,All Care GB Ltd
http://statistics.data.gov.uk/id/local-authority/38,Oxfordshire County Council,Support at Home 65+ Physical Support,10/06/2022,5696,,3111191710,547.17,All Care GB Ltd
http://statistics.data.gov.uk/id/local-authority/38,Oxfordshire County Council,Support at Home 65+ Physical Support,10/06/2022,5696,,3111191711,547.17,All Care GB Ltd
http://statistics.data.gov.uk/id/local-authority/38,Oxfordshire County Council,Support at Home 65+ Physical Support,10/06/2022,5696,,3111191713,547.17,All Care GB Ltd
http://statistics.data.gov.uk/id/local-authority/38,Oxfordshire County Council,Support at Home 65+ Physical Support,10/06/2022,5696,,3111191714,547.17,All Care GB Ltd
http://statistics.data.gov.uk/id/local-authority/38,Oxfordshire County Council,Support at Home 65+ Physical Support,10/06/2022,5696,,3111191715,547.17,All Care GB Ltd
http://statistics.data.gov.uk/id/local-authority/38,Oxfordshire County Council,Support at Home 65+ Physical Support,10/06/2022,5696,,3111191716,547.17,All Care GB Ltd
http://statistics.data.gov.uk/id/local-authority/38,Oxfordshire County Council,Support at Home U65 Learning Disability,10/06/2022,5696,,3111191717,547.17,All Care GB Ltd
http://statistics.data.gov.uk/id/local-authority/38,Oxfordshire County Council,Support at Home U65 Learning Disability,10/06/2022,5696,,3111191718,547.17,All Care GB Ltd
http://statistics.data.gov.uk/id/local-authority/38,Oxfordshire County Council,Support at Home U65 Physical Support,10/06/2022,5696,,3111191719,547.17,All Care GB Ltd
http://statistics.data.gov.uk/id/local-authority/38,Oxfordshire County Council,Support at Home 65+ Memory & Cognition,10/06/2022,5696,,3111191720,547.17,All Care GB Ltd
http://statistics.data.gov.uk/id/local-authority/38,Oxfordshire County Council,Support at Home 65+ Physical Support,10/06/2022,5696,,3111191721,547.17,All Care GB Ltd
http://statistics.data.gov.uk/id/local-authority/38,Oxfordshire County Council,Support at Home 65+ Memory & Cognition,10/06/2022,5696,,3111191725,547.17,All Care GB Ltd
http://statistics.data.gov.uk/id/local-authority/38,Oxfordshire County Council,Support at Home 65+ Physical Support,10/06/2022,5696,,3111191726,547.17,All Care GB Ltd
http://statistics.data.gov.uk/id/local-authority/38,Oxfordshire County Council,Planned Maintenance,13/06/2022,3787,Premises Repairs,2200996002,548,Windrush Door & Window Services Ltd
http://statistics.data.gov.uk/id/local-authority/38,Oxfordshire County Council,Support at Home U65 Physical Support,21/06/2022,5698,,3111200012,548.21,Acquire Care Ltd
http://statistics.data.gov.uk/id/local-authority/38,Oxfordshire County Council,Support at Home U65 HFA,07/06/2022,5899,Social Care - Direct Payments,3111188579,548.34,Personal Redacted Data
http://statistics.data.gov.uk/id/local-authority/38,Oxfordshire County Council,Support at Home U65 Mental Health,21/06/2022,5689,,3111200177,548.7,Care Outlook Ltd
http://statistics.data.gov.uk/id/local-authority/38,Oxfordshire County Council,Support at Home 65+ Physical Support,07/06/2022,5899,Social Care - Direct Payments,3111190009,548.76,Purple Conversation Com In Co (DP)
http://statistics.data.gov.uk/id/local-authority/38,Oxfordshire County Council,Support at Home U65 Physical Support,07/06/2022,5899,Social Care - Direct Payments,3111190054,548.76,Purple Conversation Com In Co (DP)
http://statistics.data.gov.uk/id/local-authority/38,Oxfordshire County Council,Support at Home 65+ Physical Support,21/06/2022,5689,,3111200666,549.07,Kare Plus Oxford
http://statistics.data.gov.uk/id/local-authority/38,Oxfordshire County Council,FAM GRP CONFERENCES,29/06/2022,4940,Other Services,2201002567,549.2,Cary Dunnet
http://statistics.data.gov.uk/id/local-authority/38,Oxfordshire County Council,LEGAL SERVICES,14/06/2022,5251,Legal Costs,2200996585,550,Alex Perry
http://statistics.data.gov.uk/id/local-authority/38,Oxfordshire County Council,LEGAL SERVICES,10/06/2022,5251,Legal Costs,2200995640,550,Amy Ephgrave
http://statistics.data.gov.uk/id/local-authority/38,Oxfordshire County Council,LEGAL SERVICES,01/06/2022,5251,Legal Costs,2200993689,550,Eleanor Howard
http://statistics.data.gov.uk/id/local-authority/38,Oxfordshire County Council,LEGAL SERVICES,01/06/2022,5251,Legal Costs,2200993704,550,Eleanor Howard
http://statistics.data.gov.uk/id/local-authority/38,Oxfordshire County Council,LEGAL SERVICES,01/06/2022,5251,Legal Costs,2200993732,550,Eleanor Howard
http://statistics.data.gov.uk/id/local-authority/38,Oxfordshire County Council,LEGAL SERVICES,10/06/2022,5251,Legal Costs,2200995632,550,Eleanor Howard
http://statistics.data.gov.uk/id/local-authority/38,Oxfordshire County Council,Recruitment,30/06/2022,4790,"Publicity, Promotions and Advertisement",2201003141,550,Fluid Ideas Limited
http://statistics.data.gov.uk/id/local-authority/38,Oxfordshire County Council,CHC Fast Track - Sup at Homes - Over 65,08/06/2022,5691,,3111190909,550,JMC Care Solutions Limited
http://statistics.data.gov.uk/id/local-authority/38,Oxfordshire County Council,CHC Fast Track - Sup at Homes - Over 65,08/06/2022,5691,,3111190911,550,JMC Care Solutions Limited
http://statistics.data.gov.uk/id/local-authority/38,Oxfordshire County Council,CHC Fast Track - Sup at Homes - Over 65,08/06/2022,5691,,3111190913,550,JMC Care Solutions Limited
http://statistics.data.gov.uk/id/local-authority/38,Oxfordshire County Council,CHC Fast Track - Sup at Homes - Over 65,15/06/2022,5691,,3111198182,550,JMC Care Solutions Limited
http://statistics.data.gov.uk/id/local-authority/38,Oxfordshire County Council,CHC Fast Track - Sup at Homes - Over 65,15/06/2022,5691,,3111198258,550,JMC Care Solutions Limited
http://statistics.data.gov.uk/id/local-authority/38,Oxfordshire County Council,CHC Fast Track - Sup at Home - Under 65,28/06/2022,5691,,3111203157,550,Joining Hands Healthcare Ltd
http://statistics.data.gov.uk/id/local-authority/38,Oxfordshire County Council,SEN TRANSPORT,22/06/2022,4330,Transport to School Activities,3111201662,550,Lightway Services Ltd
http://statistics.data.gov.uk/id/local-authority/38,Oxfordshire County Council,CHC Fast Track - Sup at Homes - Over 65,15/06/2022,5691,,3111198205,550,Star Projections
http://statistics.data.gov.uk/id/local-authority/38,Oxfordshire County Council,L&D CORE PROGRAMME,17/06/2022,3103,Other Training Courses and Qualification,2200997930,550,The Money Charity
http://statistics.data.gov.uk/id/local-authority/38,Oxfordshire County Council,LEGAL SERVICES,23/06/2022,5251,Legal Costs,2201000860,550,Vicky Reynolds
http://statistics.data.gov.uk/id/local-authority/38,Oxfordshire County Council,ROW MAINT,06/06/2022,3103,Other Training Courses and Qualification,2200993895,550,West Berks & Oxon Training Group
http://statistics.data.gov.uk/id/local-authority/38,Oxfordshire County Council,Support at Home 65+ Physical Support,21/06/2022,5689,,3111200597,550.13,Greigcare Home Service
http://statistics.data.gov.uk/id/local-authority/38,Oxfordshire County Council,SEN Additional Funding,06/06/2022,5537,Payments to Other Establishments,3111187974,550.27,Burford Primary School (Academy)
http://statistics.data.gov.uk/id/local-authority/38,Oxfordshire County Council,FAM GRP CONFERENCES,14/06/2022,4940,Other Services,2200996570,550.94,Melanie Bain
http://statistics.data.gov.uk/id/local-authority/38,Oxfordshire County Council,SEN TRANSPORT,06/06/2022,5227,Other Transport Arrangements,3111187902,551,Crown Cabs Travel Ltd
http://statistics.data.gov.uk/id/local-authority/38,Oxfordshire County Council,SEN TRANSPORT,06/06/2022,5227,Other Transport Arrangements,3111187920,551,Crown Cabs Travel Ltd
http://statistics.data.gov.uk/id/local-authority/38,Oxfordshire County Council,ATV Adoption Oxford,08/06/2022,5394,Other Expenses,3111190620,551.22,OCC One Time Vendor
http://statistics.data.gov.uk/id/local-authority/38,Oxfordshire County Council,SHORT BREAK ACTIVITIES,20/06/2022,5161,Adoption Expenses - Fees and Expenses,2200999437,551.25,Parasol Projects
http://statistics.data.gov.uk/id/local-authority/38,Oxfordshire County Council,Delegated Health Tasks  - Over 65,15/06/2022,5691,,3111198265,551.66,Allied Health-Services Limited
http://statistics.data.gov.uk/id/local-authority/38,Oxfordshire County Council,Property Cleaning,16/06/2022,3787,Premises Repairs,2200997523,551.72,Seldram Supplies
http://statistics.data.gov.uk/id/local-authority/38,Oxfordshire County Council,Delegated Health Tasks  - Over 65,23/06/2022,5691,,3111202059,552,Same Ways Care Ltd
http://statistics.data.gov.uk/id/local-authority/38,Oxfordshire County Council,PLACEMENTS-FRELEVANT,22/06/2022,5558,,3111201781,552.46,Stepping Stones Projects
http://statistics.data.gov.uk/id/local-authority/38,Oxfordshire County Council,LIBRARY COLLECTIONS,16/06/2022,4539,"Books, DVDs and CDs",3111198655,553.49,ASKEWS & HOLTS LIBRARY SERVICES LTD
http://statistics.data.gov.uk/id/local-authority/38,Oxfordshire County Council,Support at Home 65+ Physical Support,21/06/2022,5689,,3111200773,553.64,PLL Care Services
http://statistics.data.gov.uk/id/local-authority/38,Oxfordshire County Council,Support at Home U65 Learning Disability,21/06/2022,5689,,3111200749,553.68,Pechiv Ltd
http://statistics.data.gov.uk/id/local-authority/38,Oxfordshire County Council,MUSEUM RETAIL,06/06/2022,4531,Materials,2200993936,553.9,Keycraft
http://statistics.data.gov.uk/id/local-authority/38,Oxfordshire County Council,Early Years SEN Funding,10/06/2022,5537,Payments to Other Establishments,3111191297,554.4,Annabelles Day Nursery Ltd
http://statistics.data.gov.uk/id/local-authority/38,Oxfordshire County Council,Early Years SEN Funding,17/06/2022,5537,Payments to Other Establishments,3111198994,554.4,Banbury School Day Nursery Ltd
http://statistics.data.gov.uk/id/local-authority/38,Oxfordshire County Council,Early Years SEN Funding,17/06/2022,5537,Payments to Other Establishments,3111198995,554.4,Banbury School Day Nursery Ltd
http://statistics.data.gov.uk/id/local-authority/38,Oxfordshire County Council,Early Years SEN Funding,10/06/2022,5537,Payments to Other Establishments,3111191281,554.4,Bright Start Preschool
http://statistics.data.gov.uk/id/local-authority/38,Oxfordshire County Council,Early Years SEN Funding,10/06/2022,5537,Payments to Other Establishments,3111191282,554.4,Bright Start Preschool
http://statistics.data.gov.uk/id/local-authority/38,Oxfordshire County Council,Early Years SEN Funding,10/06/2022,5537,Payments to Other Establishments,3111191283,554.4,Bright Start Preschool
http://statistics.data.gov.uk/id/local-authority/38,Oxfordshire County Council,Early Years SEN Funding,10/06/2022,5537,Payments to Other Establishments,3111191280,554.4,Busy Bees Playgroup (Thame)
http://statistics.data.gov.uk/id/local-authority/38,Oxfordshire County Council,Early Years SEN Funding,10/06/2022,5537,Payments to Other Establishments,3111191286,554.4,Busy Bees Playgroup (Thame)
http://statistics.data.gov.uk/id/local-authority/38,Oxfordshire County Council,Early Years SEN Funding,10/06/2022,5537,Payments to Other Establishments,3111191287,554.4,Cherry Tree Nursery (Oxford) Ltd
http://statistics.data.gov.uk/id/local-authority/38,Oxfordshire County Council,Early Years SEN Funding,10/06/2022,5537,Payments to Other Establishments,3111191288,554.4,Cherry Tree Nursery (Oxford) Ltd
http://statistics.data.gov.uk/id/local-authority/38,Oxfordshire County Council,Early Years SEN Funding,17/06/2022,5537,Payments to Other Establishments,3111198993,554.4,Clanfield Pre-school
http://statistics.data.gov.uk/id/local-authority/38,Oxfordshire County Council,Early Years SEN Funding,10/06/2022,5537,Payments to Other Establishments,3111191284,554.4,Cropredy Playgroup
http://statistics.data.gov.uk/id/local-authority/38,Oxfordshire County Council,LANDFILL IMPROVEMENT,28/06/2022,5526,Payments to Private Contractors,2201002041,554.4,FCC Environment (UK) Ltd
http://statistics.data.gov.uk/id/local-authority/38,Oxfordshire County Council,Early Years SEN Funding,10/06/2022,5537,Payments to Other Establishments,3111191296,554.4,Great Tew Pre-School
http://statistics.data.gov.uk/id/local-authority/38,Oxfordshire County Council,Early Years SEN Funding,10/06/2022,5537,Payments to Other Establishments,3111191298,554.4,Hobby Horse Childrens Centre
http://statistics.data.gov.uk/id/local-authority/38,Oxfordshire County Council,Early Years SEN Funding,17/06/2022,5537,Payments to Other Establishments,3111198999,554.4,Horspath Nursery
http://statistics.data.gov.uk/id/local-authority/38,Oxfordshire County Council,Early Years SEN Funding,10/06/2022,5537,Payments to Other Establishments,3111191299,554.4,Lake Street Community Playgroup
http://statistics.data.gov.uk/id/local-authority/38,Oxfordshire County Council,Early Years SEN Funding,10/06/2022,5537,Payments to Other Establishments,3111191300,554.4,Lake Street Community Playgroup
http://statistics.data.gov.uk/id/local-authority/38,Oxfordshire County Council,Early Years SEN Funding,24/06/2022,5537,Payments to Other Establishments,3111202313,554.4,Little Oak Pre-School
http://statistics.data.gov.uk/id/local-authority/38,Oxfordshire County Council,Early Years SEN Funding,10/06/2022,5537,Payments to Other Establishments,3111191294,554.4,Rachael Hall
http://statistics.data.gov.uk/id/local-authority/38,Oxfordshire County Council,Early Years SEN Funding,10/06/2022,5537,Payments to Other Establishments,3111191285,554.4,Saltway Day Nursery
http://statistics.data.gov.uk/id/local-authority/38,Oxfordshire County Council,Early Years SEN Funding,24/06/2022,5537,Payments to Other Establishments,3111202310,554.4,St Nicholas Pre-School & Playgroup
http://statistics.data.gov.uk/id/local-authority/38,Oxfordshire County Council,Early Years SEN Funding,10/06/2022,5537,Payments to Other Establishments,3111191292,554.4,The Sunshine Centre
http://statistics.data.gov.uk/id/local-authority/38,Oxfordshire County Council,Early Years SEN Funding,10/06/2022,5537,Payments to Other Establishments,3111191293,554.4,The Sunshine Centre
http://statistics.data.gov.uk/id/local-authority/38,Oxfordshire County Council,CHC Fast Track - Care Homes - Over 65,10/06/2022,5687,,3111195855,554.75,MARIA MALLABAND CARE GROUP
http://statistics.data.gov.uk/id/local-authority/38,Oxfordshire County Council,Support at Home U65 MH OBC Contract,07/06/2022,5899,Social Care - Direct Payments,3111188328,554.99,Personal Redacted Data
http://statistics.data.gov.uk/id/local-authority/38,Oxfordshire County Council,Community Support Service - Witney,14/06/2022,2040,Agency Staff,2200996714,555.1,Completely Care Ltd
http://statistics.data.gov.uk/id/local-authority/38,Oxfordshire County Council,DEFINITIVE MAP,08/06/2022,4790,"Publicity, Promotions and Advertisement",2200994566,555.18,Tmp (Uk) Ltd
http://statistics.data.gov.uk/id/local-authority/38,Oxfordshire County Council,Support at Home 65+ Physical Support,07/06/2022,5899,Social Care - Direct Payments,3111190088,555.44,Purple Conversation Com In Co (DP)
http://statistics.data.gov.uk/id/local-authority/38,Oxfordshire County Council,Support at Home 65+ Physical Support,24/06/2022,5693,,3111202368,555.8,CaringPlus Healthcare Services Ltd
http://statistics.data.gov.uk/id/local-authority/38,Oxfordshire County Council,Support at Home U65 Physical Support,07/06/2022,5899,Social Care - Direct Payments,3111188338,555.8,Personal Redacted Data
http://statistics.data.gov.uk/id/local-authority/38,Oxfordshire County Council,Support at Home U65 Physical Support,17/06/2022,5693,,3111198816,555.87,A CARING HAND LTD
http://statistics.data.gov.uk/id/local-authority/38,Oxfordshire County Council,Support at Home 65+ Physical Support,17/06/2022,5693,,3111198818,555.87,A CARING HAND LTD
http://statistics.data.gov.uk/id/local-authority/38,Oxfordshire County Council,Support at Home 65+ Subsantance Abuse,21/06/2022,5689,,3111200868,555.88,Response Organisation
http://statistics.data.gov.uk/id/local-authority/38,Oxfordshire County Council,Support at Home U65 Learning Disability,21/06/2022,5682,,3111200967,555.93,The Brandon Trust
http://statistics.data.gov.uk/id/local-authority/38,Oxfordshire County Council,"Education, Employment & Training Team",29/06/2022,4790,"Publicity, Promotions and Advertisement",2201002771,556,Global Media Group Services Ltd
http://statistics.data.gov.uk/id/local-authority/38,Oxfordshire County Council,Support at Home U65 Physical Support,07/06/2022,5899,Social Care - Direct Payments,3111189743,556.85,Purple Conversation Com In Co (DP)
http://statistics.data.gov.uk/id/local-authority/38,Oxfordshire County Council,MAINSTREAM-SECONDARY,22/06/2022,4330,Transport to School Activities,3111201685,557.28,24/7 LTD
http://statistics.data.gov.uk/id/local-authority/38,Oxfordshire County Council,Support at Home 65+ Memory & Cognition,10/06/2022,5690,,3111191446,558.02,Daybreak Oxford
http://statistics.data.gov.uk/id/local-authority/38,Oxfordshire County Council,Support at Home 65+ Physical Support,21/06/2022,5689,,3111200152,558.18,Bicester PA and Care LLP
http://statistics.data.gov.uk/id/local-authority/38,Oxfordshire County Council,LEAVING CARE CITY 2,08/06/2022,4685,Clothing and Uniforms,9300055946,558.7,OCC SS Banbury Area Off Cash
http://statistics.data.gov.uk/id/local-authority/38,Oxfordshire County Council,FOSTERING MAIN,28/06/2022,5549,B*Fostering Allowance - Regulation 38,3111203623,558.9,Personal Redacted Data
http://statistics.data.gov.uk/id/local-authority/38,Oxfordshire County Council,Support at Home U65 Physical Support,10/06/2022,5693,,3111191230,558.93,Helping Hands
http://statistics.data.gov.uk/id/local-authority/38,Oxfordshire County Council,LD Continuing Care - Sup at Home - U65,15/06/2022,5691,,3111198199,560,KIT Mobility Taxis Oxford Ltd
http://statistics.data.gov.uk/id/local-authority/38,Oxfordshire County Council,LD Continuing Care - Sup at Home - U65,28/06/2022,5691,,3111203965,560,KIT Mobility Taxis Oxford Ltd
http://statistics.data.gov.uk/id/local-authority/38,Oxfordshire County Council,EARLY YEARS TRADED SERVICES,27/06/2022,5380,"Author, Speaker and Lecturer Fees",2201001487,560,MLS Safeguarding and Consultancy Lt
http://statistics.data.gov.uk/id/local-authority/38,Oxfordshire County Council,Wokingham Adoption Support Fund,13/06/2022,4859,Medical and Counselling Fees,3111196205,560,OCC One Time Vendor
http://statistics.data.gov.uk/id/local-authority/38,Oxfordshire County Council,RBWM Adoption Support Fund,21/06/2022,4859,Medical and Counselling Fees,3111199185,560,OCC One Time Vendor
http://statistics.data.gov.uk/id/local-authority/38,Oxfordshire County Council,Oxfordshire Adoption Support Fund,30/06/2022,6500,Government Grants (Revenue),3111204586,560,OCC One Time Vendor
http://statistics.data.gov.uk/id/local-authority/38,Oxfordshire County Council,Support at Home U65 Learning Disability,08/06/2022,5227,Other Transport Arrangements,3111190461,560,Oxon Transport Services Ltd
http://statistics.data.gov.uk/id/local-authority/38,Oxfordshire County Council,Support at Home U65 Learning Disability,08/06/2022,5227,Other Transport Arrangements,3111190490,560,Oxon Transport Services Ltd
http://statistics.data.gov.uk/id/local-authority/38,Oxfordshire County Council,LAC PUPIL PREMIUM,21/06/2022,5537,Payments to Other Establishments,3111199259,560,St Bede's School
http://statistics.data.gov.uk/id/local-authority/38,Oxfordshire County Council,Wokingham Adoption Support Fund,17/06/2022,6500,Government Grants (Revenue),2200998027,560,The Paperclip Group
http://statistics.data.gov.uk/id/local-authority/38,Oxfordshire County Council,Wokingham Adoption Support Fund,17/06/2022,4861,Hired and Contracted Services,2200998069,560,The Paperclip Group
http://statistics.data.gov.uk/id/local-authority/38,Oxfordshire County Council,Support at Home 65+ Memory & Cognition,29/06/2022,5693,,3111204163,560,TrustonTap
http://statistics.data.gov.uk/id/local-authority/38,Oxfordshire County Council,Support at Home U65 Physical Support,21/06/2022,5689,,3111200383,560.11,Casa Care Ltd
http://statistics.data.gov.uk/id/local-authority/38,Oxfordshire County Council,FLEET COSTS,15/06/2022,4270,HTM / Other Vehicle - Hire Charges,2200996942,560.34,Lex Autolease Limited
http://statistics.data.gov.uk/id/local-authority/38,Oxfordshire County Council,UASC 16&17,20/06/2022,4330,Transport to School Activities,9300056084,560.6,OCC SS Oxford City Div 1 Cash
http://statistics.data.gov.uk/id/local-authority/38,Oxfordshire County Council,Support at Home 65+ Physical Support,21/06/2022,5689,,3111200591,560.91,Greigcare Home Service
http://statistics.data.gov.uk/id/local-authority/38,Oxfordshire County Council,LANDLORD & TENANT,28/06/2022,4001,Uniform Business Rates,3500084631,561,West Oxfordshire District Council
http://statistics.data.gov.uk/id/local-authority/38,Oxfordshire County Council,SPECIAL GUARDIANSHIP,21/06/2022,5661,B*Carriageway pre surf. dressing patchin,3111199752,561.5,Personal Redacted Data
http://statistics.data.gov.uk/id/local-authority/38,Oxfordshire County Council,Support at Home U65 Learning Disability,22/06/2022,5697,,3111201429,561.6,Pennyhooks Farm Trust
http://statistics.data.gov.uk/id/local-authority/38,Oxfordshire County Council,SM DISABILITIES,27/06/2022,5554,Childrens' Social Care - Direct Payments,3111202881,562.43,Personal Redacted Data
http://statistics.data.gov.uk/id/local-authority/38,Oxfordshire County Council,Support at Home 65+ Physical Support,22/06/2022,5693,,3111201473,562.5,GET CARE LIMITED
http://statistics.data.gov.uk/id/local-authority/38,Oxfordshire County Council,West Berkshire Adoption Support Fund,30/06/2022,6500,Government Grants (Revenue),3111204573,562.5,OCC One Time Vendor
http://statistics.data.gov.uk/id/local-authority/38,Oxfordshire County Council,COVID-19 response COD,27/06/2022,3942,Hire of Accommodation and Facilities,2201001474,562.5,Seacourt Hall
http://statistics.data.gov.uk/id/local-authority/38,Oxfordshire County Council,Funded Nursing Care  - Over 65,10/06/2022,5692,,3111192289,562.8,Abbey Crest Nursing Home
http://statistics.data.gov.uk/id/local-authority/38,Oxfordshire County Council,Planned Maintenance,24/06/2022,3787,Premises Repairs,2201001336,563,Ambiflex Ltd
http://statistics.data.gov.uk/id/local-authority/38,Oxfordshire County Council,Support at Home 65+ Physical Support,21/06/2022,5689,,3111200340,563.54,Caremark (West Oxfordshire & Cherwe
http://statistics.data.gov.uk/id/local-authority/38,Oxfordshire County Council,NURSERY ED FUND,15/06/2022,5537,Payments to Other Establishments,3111196508,563.76,Kelly Louch
http://statistics.data.gov.uk/id/local-authority/38,Oxfordshire County Council,NURSERY ED FUND,15/06/2022,5537,Payments to Other Establishments,3111196519,563.76,Kim Joslyn
http://statistics.data.gov.uk/id/local-authority/38,Oxfordshire County Council,NURSERY ED FUND,15/06/2022,5537,Payments to Other Establishments,3111196679,563.76,Sharon Maddox
http://statistics.data.gov.uk/id/local-authority/38,Oxfordshire County Council,SEN Alternative Provision,16/06/2022,4878,Hired and Contracted Services (Curricul,2200997693,564,Teaching Personnel Ltd
http://statistics.data.gov.uk/id/local-authority/38,Oxfordshire County Council,SEN Alternative Provision,16/06/2022,4878,Hired and Contracted Services (Curricul,2200997734,564,Teaching Personnel Ltd
http://statistics.data.gov.uk/id/local-authority/38,Oxfordshire County Council,SEN Alternative Provision,23/06/2022,4861,Hired and Contracted Services,2201001004,564,Teaching Personnel Ltd
http://statistics.data.gov.uk/id/local-authority/38,Oxfordshire County Council,PREMISES,29/06/2022,4122,Other premises related costs,2201002376,565,G & S WOODCOCK LIMITED
http://statistics.data.gov.uk/id/local-authority/38,Oxfordshire County Council,Delegated Health Tasks  - Over 65,23/06/2022,5691,,3111202023,565.5,Bluebird Care
http://statistics.data.gov.uk/id/local-authority/38,Oxfordshire County Council,Support at Home 65+ Physical Support,21/06/2022,5689,,3111200805,565.81,Prestige Nursing Ltd
http://statistics.data.gov.uk/id/local-authority/38,Oxfordshire County Council,POST18 UASC DCSF FND,08/06/2022,5665,B*Fostering Project Care Fee,9300055955,565.95,OCC SS Oxford City Div 1 Cash
http://statistics.data.gov.uk/id/local-authority/38,Oxfordshire County Council,POST 16 SEN,13/06/2022,4330,Transport to School Activities,3111195984,566,Abingdon Taxis FKN Autotaxis
http://statistics.data.gov.uk/id/local-authority/38,Oxfordshire County Council,PROCUREMENT,06/06/2022,4232,Vehicle Fuel,2200993854,566,Certas Energy UK Ltd
http://statistics.data.gov.uk/id/local-authority/38,Oxfordshire County Council,Support at Home 65+ Physical Support,21/06/2022,5698,,3111200200,566.57,Day & Night Care Assistance
http://statistics.data.gov.uk/id/local-authority/38,Oxfordshire County Council,SHARED LIVES,10/06/2022,5555,Payments to Carers,3111193304,566.64,Personal Redacted Data
http://statistics.data.gov.uk/id/local-authority/38,Oxfordshire County Council,Oxfordshire Adoption Support Fund,21/06/2022,4859,Medical and Counselling Fees,3111199186,567,OCC One Time Vendor
http://statistics.data.gov.uk/id/local-authority/38,Oxfordshire County Council,DISABILITIES TEAM-N,30/06/2022,5526,Payments to Private Contractors,2201003235,567,PB Moinville Care Limited
http://statistics.data.gov.uk/id/local-authority/38,Oxfordshire County Council,Support at Home 65+ Memory & Cognition,10/06/2022,5686,,3111192379,567.14,Orders of St John
http://statistics.data.gov.uk/id/local-authority/38,Oxfordshire County Council,TRANSPORT GENERAL,07/06/2022,4270,HTM / Other Vehicle - Hire Charges,2200994149,567.69,DAYS Fleet
http://statistics.data.gov.uk/id/local-authority/38,Oxfordshire County Council,TRANSPORT GENERAL,07/06/2022,4270,HTM / Other Vehicle - Hire Charges,2200994344,567.69,DAYS Fleet
http://statistics.data.gov.uk/id/local-authority/38,Oxfordshire County Council,Support at Home U65 Physical Support,01/06/2022,5227,Other Transport Arrangements,3111187347,568,Town Cars
http://statistics.data.gov.uk/id/local-authority/38,Oxfordshire County Council,Support at Home U65 Memory & Cognition,07/06/2022,5899,Social Care - Direct Payments,3111189967,568.23,Purple Conversation Com In Co (DP)
http://statistics.data.gov.uk/id/local-authority/38,Oxfordshire County Council,40 THE MOORS,09/06/2022,4270,HTM / Other Vehicle - Hire Charges,2200995104,568.3,The Oxfordshire Taxi Co Ltd T/A
http://statistics.data.gov.uk/id/local-authority/38,Oxfordshire County Council,Support at Home U65 Learning Disability,14/06/2022,5899,Social Care - Direct Payments,3111197231,568.63,Personal Redacted Data
http://statistics.data.gov.uk/id/local-authority/38,Oxfordshire County Council,POST18 UASC DCSF FND,14/06/2022,4685,Clothing and Uniforms,9300056016,569.15,OCC SS Oxford City Div 1 Cash
http://statistics.data.gov.uk/id/local-authority/38,Oxfordshire County Council,Delegated Health Tasks  - Over 65,15/06/2022,5691,,3111198266,569.36,Allied Health-Services Limited
http://statistics.data.gov.uk/id/local-authority/38,Oxfordshire County Council,Support at Home U65 Other /Soc Isolation,07/06/2022,5899,Social Care - Direct Payments,3111188435,569.6,Personal Redacted Data
http://statistics.data.gov.uk/id/local-authority/38,Oxfordshire County Council,MAINSTREAM-PRIMARY,22/06/2022,4330,Transport to School Activities,3111201764,570,001 Alpha Cars Ltd
http://statistics.data.gov.uk/id/local-authority/38,Oxfordshire County Council,SEN TRANSPORT,01/06/2022,5227,Other Transport Arrangements,3111187427,570,Airport Transfers Banbury Ltd
http://statistics.data.gov.uk/id/local-authority/38,Oxfordshire County Council,Support at Home U65 Learning Disability,30/06/2022,4330,Transport to School Activities,3111204328,570,BC CARS
http://statistics.data.gov.uk/id/local-authority/38,Oxfordshire County Council,SEN TRANSPORT,06/06/2022,5227,Other Transport Arrangements,3111187900,570,Crown Cabs Travel Ltd
http://statistics.data.gov.uk/id/local-authority/38,Oxfordshire County Council,SEN TRANSPORT,09/06/2022,5227,Other Transport Arrangements,3111190981,570,Faringdon Cars
http://statistics.data.gov.uk/id/local-authority/38,Oxfordshire County Council,SEN TRANSPORT,09/06/2022,5227,Other Transport Arrangements,3111190983,570,Faringdon Cars
http://statistics.data.gov.uk/id/local-authority/38,Oxfordshire County Council,SEN TRANSPORT,06/06/2022,5227,Other Transport Arrangements,3111188105,570,Her Ride Limited
http://statistics.data.gov.uk/id/local-authority/38,Oxfordshire County Council,SEN TRANSPORT,01/06/2022,5227,Other Transport Arrangements,3111187376,570,Oxfordlinks
http://statistics.data.gov.uk/id/local-authority/38,Oxfordshire County Council,SEN TRANSPORT,13/06/2022,5227,Other Transport Arrangements,3111196027,570,Oxon Transport Services Ltd
http://statistics.data.gov.uk/id/local-authority/38,Oxfordshire County Council,OSCB,15/06/2022,3103,Other Training Courses and Qualification,2200997160,570,Signis Group
http://statistics.data.gov.uk/id/local-authority/38,Oxfordshire County Council,SEN TRANSPORT,28/06/2022,5227,Other Transport Arrangements,3111203023,570,The Gallery Trust
http://statistics.data.gov.uk/id/local-authority/38,Oxfordshire County Council,SEN TRANSPORT,14/06/2022,5227,Other Transport Arrangements,3111197994,570,Thunderbird Transport Ltd
http://statistics.data.gov.uk/id/local-authority/38,Oxfordshire County Council,SEN TRANSPORT,01/06/2022,5227,Other Transport Arrangements,3111187339,570,Town Cars
http://statistics.data.gov.uk/id/local-authority/38,Oxfordshire County Council,SM DISABILITIES,27/06/2022,5554,Childrens' Social Care - Direct Payments,3111202891,570.15,Personal Redacted Data
http://statistics.data.gov.uk/id/local-authority/38,Oxfordshire County Council,Support at Home 65+ Physical Support,17/06/2022,5693,,3111198925,570.48,Oasis Private Care Ltd
http://statistics.data.gov.uk/id/local-authority/38,Oxfordshire County Council,Support at Home 65+ Physical Support,17/06/2022,5693,,3111198876,570.52,Genuine Carers Ltd
http://statistics.data.gov.uk/id/local-authority/38,Oxfordshire County Council,Bracknell Adoption Support Fund,30/06/2022,6500,Government Grants (Revenue),3111204601,570.66,OCC One Time Vendor
http://statistics.data.gov.uk/id/local-authority/38,Oxfordshire County Council,Delegated Health Tasks  - Over 65,10/06/2022,5691,,3111191412,571.2,George Springall Homecare
http://statistics.data.gov.uk/id/local-authority/38,Oxfordshire County Council,POST18 UASC DCSF FND,22/06/2022,5573,,3111201850,571.42,Sunbeam Fostering Agency Ltd
http://statistics.data.gov.uk/id/local-authority/38,Oxfordshire County Council,Support at Home U65 Learning Disability,10/06/2022,5690,,3111191455,571.8,Guideposts Trust
http://statistics.data.gov.uk/id/local-authority/38,Oxfordshire County Council,POST 16 SEN,24/06/2022,4330,Transport to School Activities,3111202475,571.88,Bicester Cars UK Ltd
http://statistics.data.gov.uk/id/local-authority/38,Oxfordshire County Council,TRANSPORT COSTS,25/06/2022,5227,Other Transport Arrangements,3111202511,572,The Oxfordshire Taxi Company Ltd T/
http://statistics.data.gov.uk/id/local-authority/38,Oxfordshire County Council,FOSTERING MAIN,21/06/2022,5532,B*Fostering - Loan Equipment,3111200110,572,Personal Redacted Data
http://statistics.data.gov.uk/id/local-authority/38,Oxfordshire County Council,Support at Home U65 Learning Disability,10/06/2022,5690,,3111191807,572.4,The Camden Society
http://statistics.data.gov.uk/id/local-authority/38,Oxfordshire County Council,AGENCY RESID - DISAB,07/06/2022,5549,B*Fostering Allowance - Regulation 38,3111189248,573,Personal Redacted Data
http://statistics.data.gov.uk/id/local-authority/38,Oxfordshire County Council,AGENCY RESID - DISAB,14/06/2022,5549,B*Fostering Allowance - Regulation 38,3111197859,573,Personal Redacted Data
http://statistics.data.gov.uk/id/local-authority/38,Oxfordshire County Council,AGENCY RESID - DISAB,21/06/2022,5549,B*Fostering Allowance - Regulation 38,3111200127,573,Personal Redacted Data
http://statistics.data.gov.uk/id/local-authority/38,Oxfordshire County Council,AGENCY RESID - DISAB,28/06/2022,5549,B*Fostering Allowance - Regulation 38,3111203913,573,Personal Redacted Data
http://statistics.data.gov.uk/id/local-authority/38,Oxfordshire County Council,AGENCY RESID - DISAB,07/06/2022,5549,B*Fostering Allowance - Regulation 38,3111188835,573,Personal Redacted Data
http://statistics.data.gov.uk/id/local-authority/38,Oxfordshire County Council,AGENCY RESID - DISAB,14/06/2022,5549,B*Fostering Allowance - Regulation 38,3111197541,573,Personal Redacted Data
http://statistics.data.gov.uk/id/local-authority/38,Oxfordshire County Council,AGENCY RESID - DISAB,21/06/2022,5549,B*Fostering Allowance - Regulation 38,3111199800,573,Personal Redacted Data
http://statistics.data.gov.uk/id/local-authority/38,Oxfordshire County Council,AGENCY RESID - DISAB,28/06/2022,5549,B*Fostering Allowance - Regulation 38,3111203735,573,Personal Redacted Data
http://statistics.data.gov.uk/id/local-authority/38,Oxfordshire County Council,Support at Home U65 MH OBC Contract,07/06/2022,5899,Social Care - Direct Payments,3111190183,573.09,Purple Conversation Com In Co (DP)
http://statistics.data.gov.uk/id/local-authority/38,Oxfordshire County Council,Support at Home U65 Mental Health,07/06/2022,5899,Social Care - Direct Payments,3111190195,573.09,Purple Conversation Com In Co (DP)
http://statistics.data.gov.uk/id/local-authority/38,Oxfordshire County Council,CONCESSIONARY FARES,08/06/2022,5781,Payments to Transport Operators,2200994736,573.67,Fast and Last Mile CIC
http://statistics.data.gov.uk/id/local-authority/38,Oxfordshire County Council,Support at Home 65+ Physical Support,21/06/2022,5698,,3111200350,573.95,Day & Night Care Assistance
http://statistics.data.gov.uk/id/local-authority/38,Oxfordshire County Council,LANDLORD & TENANT,28/06/2022,4001,Uniform Business Rates,3500084555,574,Cherwell District Council
http://statistics.data.gov.uk/id/local-authority/38,Oxfordshire County Council,LANDLORD & TENANT,28/06/2022,4001,Uniform Business Rates,3500084644,574,South Oxfordshire District Council
http://statistics.data.gov.uk/id/local-authority/38,Oxfordshire County Council,FOSTERING MAIN,14/06/2022,5227,Other Transport Arrangements,3111197520,574.89,Personal Redacted Data
http://statistics.data.gov.uk/id/local-authority/38,Oxfordshire County Council,FOSTERING MAIN,07/06/2022,5545,B*Fostering Enhancements - Level 2,3111188434,575,Personal Redacted Data
http://statistics.data.gov.uk/id/local-authority/38,Oxfordshire County Council,FOSTERING MAIN,14/06/2022,5545,B*Fostering Enhancements - Level 2,3111197247,575,Personal Redacted Data
http://statistics.data.gov.uk/id/local-authority/38,Oxfordshire County Council,FOSTERING MAIN,21/06/2022,5545,B*Fostering Enhancements - Level 2,3111199399,575,Personal Redacted Data
http://statistics.data.gov.uk/id/local-authority/38,Oxfordshire County Council,FOSTERING MAIN,28/06/2022,5545,B*Fostering Enhancements - Level 2,3111203342,575,Personal Redacted Data
http://statistics.data.gov.uk/id/local-authority/38,Oxfordshire County Council,FAMILY TIME TEAM,09/06/2022,4940,Other Services,2200995411,575,BDP Social Care LTD
http://statistics.data.gov.uk/id/local-authority/38,Oxfordshire County Council,CHC Fast Track - Sup at Homes - Over 65,10/06/2022,5691,,3111191379,575,Sue Ryder
http://statistics.data.gov.uk/id/local-authority/38,Oxfordshire County Council,Planned Maintenance,24/06/2022,3787,Premises Repairs,2201001312,575.2,BI-FOLD ROLFE LTD
http://statistics.data.gov.uk/id/local-authority/38,Oxfordshire County Council,Support at Home U65 Physical Support,06/06/2022,5227,Other Transport Arrangements,3111188081,576,TOOTS TAXIS LTD
http://statistics.data.gov.uk/id/local-authority/38,Oxfordshire County Council,Support at Home 65+ Physical Support,10/06/2022,5685,B*Cycle tracks,3111191941,576.67,Orders of St John
http://statistics.data.gov.uk/id/local-authority/38,Oxfordshire County Council,Support at Home 65+ Physical Support,21/06/2022,5689,,3111200750,576.95,PLL Care Services
http://statistics.data.gov.uk/id/local-authority/38,Oxfordshire County Council,FOSTERING MAIN,07/06/2022,5541,B*Foster Parents,3111188724,577,Personal Redacted Data
http://statistics.data.gov.uk/id/local-authority/38,Oxfordshire County Council,FOSTERING MAIN,14/06/2022,5541,B*Foster Parents,3111197454,577,Personal Redacted Data
http://statistics.data.gov.uk/id/local-authority/38,Oxfordshire County Council,FOSTERING MAIN,21/06/2022,5541,B*Foster Parents,3111199726,577,Personal Redacted Data
http://statistics.data.gov.uk/id/local-authority/38,Oxfordshire County Council,FOSTERING MAIN,28/06/2022,5541,B*Foster Parents,3111203645,577,Personal Redacted Data
http://statistics.data.gov.uk/id/local-authority/38,Oxfordshire County Council,Early Years SEN Funding,10/06/2022,5537,Payments to Other Establishments,3111191301,577.5,Adderbury Day Nursery
http://statistics.data.gov.uk/id/local-authority/38,Oxfordshire County Council,Early Years SEN Funding,10/06/2022,5537,Payments to Other Establishments,3111191304,577.5,Stanford in the Vale Pre-school Lim
http://statistics.data.gov.uk/id/local-authority/38,Oxfordshire County Council,Support at Home 65+ Memory & Cognition,21/06/2022,5689,,3111200814,577.53,Prestige Nursing Ltd
http://statistics.data.gov.uk/id/local-authority/38,Oxfordshire County Council,UASC 16&17,01/06/2022,4685,Clothing and Uniforms,3111187473,578.4,Aden Children's Homes
http://statistics.data.gov.uk/id/local-authority/38,Oxfordshire County Council,Support at Home U65 Learning Disability,22/06/2022,5697,,3111201426,578.5,The Laurels (Witney)
http://statistics.data.gov.uk/id/local-authority/38,Oxfordshire County Council,OXFORD LOCALITY,21/06/2022,5526,Payments to Private Contractors,2200999742,578.56,Milestone Infrastructure Limited
http://statistics.data.gov.uk/id/local-authority/38,Oxfordshire County Council,Support at Home U65 Learning Disability,10/06/2022,5690,,3111191510,578.74,Turnstyle
http://statistics.data.gov.uk/id/local-authority/38,Oxfordshire County Council,Support at Home U65 HFA,07/06/2022,5899,Social Care - Direct Payments,3111188316,578.78,Connection Support (Oxford)
http://statistics.data.gov.uk/id/local-authority/38,Oxfordshire County Council,Support at Home U65 Physical Support,07/06/2022,5899,Social Care - Direct Payments,3111189986,578.85,Purple Conversation Com In Co (DP)
http://statistics.data.gov.uk/id/local-authority/38,Oxfordshire County Council,TRAFF SIGNALS MTCE,21/06/2022,4531,Materials,2200999657,579.6,Telent Technology Services Limited
http://statistics.data.gov.uk/id/local-authority/38,Oxfordshire County Council,Support at Home 65+ Physical Support,24/06/2022,5696,,3111202267,579.8,Orders of St John Care Trust
http://statistics.data.gov.uk/id/local-authority/38,Oxfordshire County Council,TREE MAINT OPS,23/06/2022,5526,Payments to Private Contractors,2201001051,580,Acreman's Arboriculture Ltd
http://statistics.data.gov.uk/id/local-authority/38,Oxfordshire County Council,MAINSTREAM-PRIMARY,07/06/2022,4330,Transport to School Activities,3111190440,580,Go Green Taxis
http://statistics.data.gov.uk/id/local-authority/38,Oxfordshire County Council,LAC PUPIL PREMIUM,21/06/2022,5537,Payments to Other Establishments,3111199237,580,John Mason School
http://statistics.data.gov.uk/id/local-authority/38,Oxfordshire County Council,L&D CORE PROGRAMME,14/06/2022,3100,Educational and Vocational Training,2200996455,580,ST JOHNS AMBULANCE HAMPSHIRE
http://statistics.data.gov.uk/id/local-authority/38,Oxfordshire County Council,L&D CORE PROGRAMME,15/06/2022,3100,Educational and Vocational Training,2200997060,580,ST JOHNS AMBULANCE HAMPSHIRE
http://statistics.data.gov.uk/id/local-authority/38,Oxfordshire County Council,FLEET COSTS,06/06/2022,4270,HTM / Other Vehicle - Hire Charges,2200993866,580,West Wallasey Fleet Hire Services
http://statistics.data.gov.uk/id/local-authority/38,Oxfordshire County Council,Support at Home 65+ Physical Support,29/06/2022,5693,,3111204148,580.16,XPERIENCE RECRUITMENT LIMITED
http://statistics.data.gov.uk/id/local-authority/38,Oxfordshire County Council,,24/06/2022,1448,Blackfield Inc & Exp A/c,3111202303,580.22,OCC One Time Vendor
http://statistics.data.gov.uk/id/local-authority/38,Oxfordshire County Council,SM DISABILITIES,27/06/2022,5554,Childrens' Social Care - Direct Payments,3111202963,580.57,Purple Conversation Com In Co (DP)
http://statistics.data.gov.uk/id/local-authority/38,Oxfordshire County Council,SM DISABILITIES,27/06/2022,5554,Childrens' Social Care - Direct Payments,3111202849,580.57,Personal Redacted Data
http://statistics.data.gov.uk/id/local-authority/38,Oxfordshire County Council,Support at Home U65 Mental Health,21/06/2022,5689,,3111200735,580.58,Oxford Private Care
http://statistics.data.gov.uk/id/local-authority/38,Oxfordshire County Council,Planned Maintenance,28/06/2022,3787,Premises Repairs,2201002308,580.75,BI-FOLD ROLFE LTD
http://statistics.data.gov.uk/id/local-authority/38,Oxfordshire County Council,SM DISABILITIES,27/06/2022,5554,Childrens' Social Care - Direct Payments,3111202941,580.81,Purple Conversation Com In Co (DP)
http://statistics.data.gov.uk/id/local-authority/38,Oxfordshire County Council,Delegated Health Tasks  - Under 65,15/06/2022,5691,,3111198283,580.83,FiNN Homecare Ltd
http://statistics.data.gov.uk/id/local-authority/38,Oxfordshire County Council,Family Solutions Plus Non-staff - South,06/06/2022,5227,Other Transport Arrangements,9300055900,581.05,OCC SS Vale of White Horse Cash
http://statistics.data.gov.uk/id/local-authority/38,Oxfordshire County Council,SEN Additional Funding,06/06/2022,5537,Payments to Other Establishments,3111188069,581.62,Windrush Church of England Primary
http://statistics.data.gov.uk/id/local-authority/38,Oxfordshire County Council,Support at Home 65+ Physical Support,21/06/2022,5689,,3111200338,581.86,Caremark (West Oxfordshire & Cherwe
http://statistics.data.gov.uk/id/local-authority/38,Oxfordshire County Council,SEN Alternative Provision,16/06/2022,4878,Hired and Contracted Services (Curricul,2200997658,581.99,Teaching Personnel Ltd
http://statistics.data.gov.uk/id/local-authority/38,Oxfordshire County Council,ADOPTION ALLOWANCES,07/06/2022,5664,B*Holiday Allowance,3111189513,582.3,Personal Redacted Data
http://statistics.data.gov.uk/id/local-authority/38,Oxfordshire County Council,ADOPTION ALLOWANCES,14/06/2022,5664,B*Holiday Allowance,3111197911,582.3,Personal Redacted Data
http://statistics.data.gov.uk/id/local-authority/38,Oxfordshire County Council,ADOPTION ALLOWANCES,21/06/2022,5664,B*Holiday Allowance,3111199857,582.3,Personal Redacted Data
http://statistics.data.gov.uk/id/local-authority/38,Oxfordshire County Council,ADOPTION ALLOWANCES,28/06/2022,5664,B*Holiday Allowance,3111203739,582.3,Personal Redacted Data
http://statistics.data.gov.uk/id/local-authority/38,Oxfordshire County Council,Support at Home U65 Memory & Cognition,17/06/2022,5697,,3111198886,582.4,Headway Oxford
http://statistics.data.gov.uk/id/local-authority/38,Oxfordshire County Council,Support at Home U65 Physical Support,17/06/2022,5693,,3111198883,582.61,Genuine Carers Ltd
http://statistics.data.gov.uk/id/local-authority/38,Oxfordshire County Council,Support at Home U65 Learning Disability,07/06/2022,5899,Social Care - Direct Payments,3111190016,582.82,Purple Conversation Com In Co (DP)
http://statistics.data.gov.uk/id/local-authority/38,Oxfordshire County Council,FOSTERING MAIN,28/06/2022,5549,B*Fostering Allowance - Regulation 38,3111203676,582.86,Personal Redacted Data
http://statistics.data.gov.uk/id/local-authority/38,Oxfordshire County Council,FOSTERING MAIN,28/06/2022,5549,B*Fostering Allowance - Regulation 38,3111203678,582.86,Personal Redacted Data
http://statistics.data.gov.uk/id/local-authority/38,Oxfordshire County Council,Delegated Health Tasks  - Over 65,23/06/2022,5691,,3111202125,583,Bluebird Care
http://statistics.data.gov.uk/id/local-authority/38,Oxfordshire County Council,LIBRARY COLLECTIONS,15/06/2022,4539,"Books, DVDs and CDs",3111198465,583.16,ASKEWS & HOLTS LIBRARY SERVICES LTD
http://statistics.data.gov.uk/id/local-authority/38,Oxfordshire County Council,Support at Home U65 Learning Disability,10/06/2022,5690,,3111191471,583.84,MacIntyre Care (Womaston)
http://statistics.data.gov.uk/id/local-authority/38,Oxfordshire County Council,Support at Home U65 Learning Disability,10/06/2022,5690,,3111191482,583.84,MacIntyre Care (Womaston)
http://statistics.data.gov.uk/id/local-authority/38,Oxfordshire County Council,Support at Home 65+ Learning Disability,10/06/2022,5690,,3111191487,583.84,MacIntyre Care (Womaston)
http://statistics.data.gov.uk/id/local-authority/38,Oxfordshire County Council,Support at Home U65 Learning Disability,10/06/2022,5690,,3111191489,583.84,MacIntyre Care (Womaston)
http://statistics.data.gov.uk/id/local-authority/38,Oxfordshire County Council,Support at Home U65 HFA,07/06/2022,5899,Social Care - Direct Payments,3111189447,583.88,Personal Redacted Data
http://statistics.data.gov.uk/id/local-authority/38,Oxfordshire County Council,Support at Home U65 Learning Disability,10/06/2022,5690,,3111191766,584.1,Autism at Kingwood Limited
http://statistics.data.gov.uk/id/local-authority/38,Oxfordshire County Council,Support at Home U65 Learning Disability,10/06/2022,5690,,3111191770,584.1,Autism at Kingwood Limited
http://statistics.data.gov.uk/id/local-authority/38,Oxfordshire County Council,CHC Fast Track - Sup at Homes - Over 65,10/06/2022,5691,,3111191357,584.94,Joining Hands Healthcare Ltd
http://statistics.data.gov.uk/id/local-authority/38,Oxfordshire County Council,Household Support Fund,09/06/2022,4939,,3111191023,585,Burford Pre-School
http://statistics.data.gov.uk/id/local-authority/38,Oxfordshire County Council,CHC Fast Track - Sup at Homes - Over 65,17/06/2022,5691,,3111199007,585,XPERIENCE RECRUITMENT LIMITED
http://statistics.data.gov.uk/id/local-authority/38,Oxfordshire County Council,Support at Home 65+ Physical Support,01/06/2022,5693,,3111187653,585.06,AVR (Oxon) Ltd
http://statistics.data.gov.uk/id/local-authority/38,Oxfordshire County Council,NURSERY ED FUND,15/06/2022,5537,Payments to Other Establishments,3111196613,585.72,Obehi Adeboyejo
http://statistics.data.gov.uk/id/local-authority/38,Oxfordshire County Council,Support at Home U65 Physical Support,21/06/2022,5699,,3111201410,585.9,YOD Ltd
http://statistics.data.gov.uk/id/local-authority/38,Oxfordshire County Council,Support at Home 65+ Physical Support,21/06/2022,5689,,3111200767,586.29,PLL Care Services
http://statistics.data.gov.uk/id/local-authority/38,Oxfordshire County Council,FOSTERING MAIN,07/06/2022,5548,B*Fostering - Special Rates & Plus Amou,3111189193,586.29,Personal Redacted Data
http://statistics.data.gov.uk/id/local-authority/38,Oxfordshire County Council,Support at Home U65 Mental Health,21/06/2022,5689,,3111200848,586.76,Response Organisation
http://statistics.data.gov.uk/id/local-authority/38,Oxfordshire County Council,Support at Home U65 Learning Disability,07/06/2022,5899,Social Care - Direct Payments,3111189759,587.76,Purple Conversation Com In Co (DP)
http://statistics.data.gov.uk/id/local-authority/38,Oxfordshire County Council,Support at Home U65 Learning Disability,07/06/2022,5899,Social Care - Direct Payments,3111190216,587.76,Purple Conversation Com In Co (DP)
http://statistics.data.gov.uk/id/local-authority/38,Oxfordshire County Council,Family Solutions Plus Non-staff - Centra,10/06/2022,5554,Childrens' Social Care - Direct Payments,2200995544,588,Abbott Toxicology Limited
http://statistics.data.gov.uk/id/local-authority/38,Oxfordshire County Council,LEAVING CARE SOUTH,23/06/2022,4540,"Educational Supplies, Stationery & Mater",3111201928,588.66,Personal Redacted Data
http://statistics.data.gov.uk/id/local-authority/38,Oxfordshire County Council,SEN TRANSPORT,24/06/2022,5227,Other Transport Arrangements,3111202766,589,R & S Travel Services Ltd T/A A 2 Z
http://statistics.data.gov.uk/id/local-authority/38,Oxfordshire County Council,Support at Home 65+ Physical Support,21/06/2022,5696,,3111200998,589.1,All Care GB Ltd
http://statistics.data.gov.uk/id/local-authority/38,Oxfordshire County Council,Support at Home 65+ Physical Support,21/06/2022,5696,,3111201017,589.1,All Care GB Ltd
http://statistics.data.gov.uk/id/local-authority/38,Oxfordshire County Council,Support at Home 65+ Physical Support,21/06/2022,5696,,3111201036,589.1,All Care GB Ltd
http://statistics.data.gov.uk/id/local-authority/38,Oxfordshire County Council,Support at Home 65+ Physical Support,21/06/2022,5696,,3111201053,589.1,All Care GB Ltd
http://statistics.data.gov.uk/id/local-authority/38,Oxfordshire County Council,Support at Home U65 Learning Disability,21/06/2022,5696,,3111201055,589.1,All Care GB Ltd
http://statistics.data.gov.uk/id/local-authority/38,Oxfordshire County Council,SM DISABILITIES,27/06/2022,5554,Childrens' Social Care - Direct Payments,3111202965,589.49,Purple Conversation Com In Co (DP)
http://statistics.data.gov.uk/id/local-authority/38,Oxfordshire County Council,ICT Operations & Maintenance,15/06/2022,4494,Purchase of IT Equipment,2200997330,589.5,Kingsfield Computer Products Ltd
http://statistics.data.gov.uk/id/local-authority/38,Oxfordshire County Council,FOSTERING MAIN,14/06/2022,5227,Other Transport Arrangements,3111197734,589.6,Personal Redacted Data
http://statistics.data.gov.uk/id/local-authority/38,Oxfordshire County Council,SM DISABILITIES,27/06/2022,5554,Childrens' Social Care - Direct Payments,3111202882,589.64,Personal Redacted Data
http://statistics.data.gov.uk/id/local-authority/38,Oxfordshire County Council,Support at Home U65 Physical Support,21/06/2022,5698,,3111200461,589.75,Oxford Private Care
http://statistics.data.gov.uk/id/local-authority/38,Oxfordshire County Council,Support at Home 65+ Physical Support,17/06/2022,5693,,3111198843,589.76,CARE COMPASSION AND CONVERSATIONS
http://statistics.data.gov.uk/id/local-authority/38,Oxfordshire County Council,MAINSTREAM-PRIMARY,22/06/2022,4330,Transport to School Activities,3111201680,589.95,24/7 LTD
http://statistics.data.gov.uk/id/local-authority/38,Oxfordshire County Council,MAINSTREAM-SECONDARY,22/06/2022,4330,Transport to School Activities,3111201681,589.95,24/7 LTD
http://statistics.data.gov.uk/id/local-authority/38,Oxfordshire County Council,Support at Home U65 Learning Disability,07/06/2022,5899,Social Care - Direct Payments,3111188824,590.04,Personal Redacted Data
http://statistics.data.gov.uk/id/local-authority/38,Oxfordshire County Council,Support at Home U65 Learning Disability,07/06/2022,5899,Social Care - Direct Payments,3111189516,590.68,Personal Redacted Data
http://statistics.data.gov.uk/id/local-authority/38,Oxfordshire County Council,Support at Home 65+ Physical Support,29/06/2022,5693,,3111204110,591.36,CARE & CARERS LTD
http://statistics.data.gov.uk/id/local-authority/38,Oxfordshire County Council,Support at Home 65+ Physical Support,21/06/2022,5689,,3111200233,591.74,Care Outlook Ltd
http://statistics.data.gov.uk/id/local-authority/38,Oxfordshire County Council,Support at Home 65+ Physical Support,01/06/2022,5693,,3111187628,592.2,Kwikfix Recruitment Services Ltd
http://statistics.data.gov.uk/id/local-authority/38,Oxfordshire County Council,Support at Home U65 Learning Disability,29/06/2022,5697,,3111204156,592.34,Ways and Means Trust Ltd
http://statistics.data.gov.uk/id/local-authority/38,Oxfordshire County Council,Support at Home U65 Other /Soc Isolation,07/06/2022,5899,Social Care - Direct Payments,3111190097,592.47,Purple Conversation Com In Co (DP)
http://statistics.data.gov.uk/id/local-authority/38,Oxfordshire County Council,SM DISABILITIES,27/06/2022,5554,Childrens' Social Care - Direct Payments,3111202885,592.84,Personal Redacted Data
http://statistics.data.gov.uk/id/local-authority/38,Oxfordshire County Council,MAINSTREAM-PRIMARY,22/06/2022,4330,Transport to School Activities,3111201763,593,001 Alpha Cars Ltd
http://statistics.data.gov.uk/id/local-authority/38,Oxfordshire County Council,Independent Foster,29/06/2022,5559,,3111204246,593,BY THE BRIDGE
http://statistics.data.gov.uk/id/local-authority/38,Oxfordshire County Council,Support at Home 65+ Memory & Cognition,07/06/2022,5899,Social Care - Direct Payments,3111189479,593.38,Personal Redacted Data
http://statistics.data.gov.uk/id/local-authority/38,Oxfordshire County Council,2 YEAR OLD FUNDING,15/06/2022,5537,Payments to Other Establishments,3111197024,593.71,Susan Walsh
http://statistics.data.gov.uk/id/local-authority/38,Oxfordshire County Council,Support at Home 65+ Physical Support,10/06/2022,5685,B*Cycle tracks,3111193292,593.79,Grace Care Service Ltd T/A Burford
http://statistics.data.gov.uk/id/local-authority/38,Oxfordshire County Council,Reactive Maintenance,28/06/2022,3787,Premises Repairs,2201002314,594,BI-FOLD ROLFE LTD
http://statistics.data.gov.uk/id/local-authority/38,Oxfordshire County Council,Support at Home U65 Learning Disability,24/06/2022,5693,,3111202371,594,The Chiltern Centre for Disabled
http://statistics.data.gov.uk/id/local-authority/38,Oxfordshire County Council,FOSTERING MAIN,14/06/2022,5548,B*Fostering - Special Rates & Plus Amou,3111197460,594.29,Personal Redacted Data
http://statistics.data.gov.uk/id/local-authority/38,Oxfordshire County Council,FOSTERING MAIN,14/06/2022,5548,B*Fostering - Special Rates & Plus Amou,3111197462,594.29,Personal Redacted Data
http://statistics.data.gov.uk/id/local-authority/38,Oxfordshire County Council,Support at Home 65+ Memory & Cognition,22/06/2022,5693,,3111201525,594.5,Oxford Private Care
http://statistics.data.gov.uk/id/local-authority/38,Oxfordshire County Council,Planned Maintenance,13/06/2022,3787,Premises Repairs,2200995937,594.75,BI-FOLD ROLFE LTD
http://statistics.data.gov.uk/id/local-authority/38,Oxfordshire County Council,TRANSPORT COSTS,25/06/2022,4330,Transport to School Activities,3111202497,594.83,The Oxfordshire Taxi Company Ltd T/
http://statistics.data.gov.uk/id/local-authority/38,Oxfordshire County Council,SM DISABILITIES,27/06/2022,5554,Childrens' Social Care - Direct Payments,3111202959,594.98,Purple Conversation Com In Co (DP)
http://statistics.data.gov.uk/id/local-authority/38,Oxfordshire County Council,FPT SOUTH/VALE,28/06/2022,4525,Furniture,3111203505,594.99,Personal Redacted Data
http://statistics.data.gov.uk/id/local-authority/38,Oxfordshire County Council,Reading Adoption Support Fund,13/06/2022,4859,Medical and Counselling Fees,3111196199,595,OCC One Time Vendor
http://statistics.data.gov.uk/id/local-authority/38,Oxfordshire County Council,Planned Maintenance,27/06/2022,3787,Premises Repairs,2201001651,595,SMS Environmental Limited
http://statistics.data.gov.uk/id/local-authority/38,Oxfordshire County Council,Support at Home U65 Learning Disability,10/06/2022,5690,,3111191519,595.29,Turnstyle
http://statistics.data.gov.uk/id/local-authority/38,Oxfordshire County Council,Homes for Ukraine - Guests,01/06/2022,5902,Adult Social Care - Personal Allowance,9300055890,595.3,OCC SS Oxford City Div 1 Cash
http://statistics.data.gov.uk/id/local-authority/38,Oxfordshire County Council,Support at Home U65 Learning Disability,10/06/2022,5690,,3111191788,595.8,Real Life Options
http://statistics.data.gov.uk/id/local-authority/38,Oxfordshire County Council,Support at Home 65+ Learning Disability,10/06/2022,5688,,3111193951,595.8,The Brandon Trust
http://statistics.data.gov.uk/id/local-authority/38,Oxfordshire County Council,Support at Home U65 Learning Disability,21/06/2022,5682,,3111200929,596.04,The Brandon Trust
http://statistics.data.gov.uk/id/local-authority/38,Oxfordshire County Council,Support at Home 65+ Mental Health,07/06/2022,5899,Social Care - Direct Payments,3111188329,596.6,Personal Redacted Data
http://statistics.data.gov.uk/id/local-authority/38,Oxfordshire County Council,Support at Home U65 Learning Disability,24/06/2022,5696,,3111202191,597.14,Orders of St John Care Trust
http://statistics.data.gov.uk/id/local-authority/38,Oxfordshire County Council,Support at Home 65+ Memory & Cognition,21/06/2022,5899,Social Care - Direct Payments,3111199599,597.15,Purple Conversation Com In Co (DP)
http://statistics.data.gov.uk/id/local-authority/38,Oxfordshire County Council,Support at Home U65 Learning Disability,07/06/2022,5899,Social Care - Direct Payments,3111189722,597.41,Purple Conversation Com In Co (DP)
http://statistics.data.gov.uk/id/local-authority/38,Oxfordshire County Council,Support at Home U65 HFA,07/06/2022,5899,Social Care - Direct Payments,3111190046,597.41,Purple Conversation Com In Co (DP)
http://statistics.data.gov.uk/id/local-authority/38,Oxfordshire County Council,Support at Home U65 HFA,07/06/2022,5899,Social Care - Direct Payments,3111190119,597.41,Purple Conversation Com In Co (DP)
http://statistics.data.gov.uk/id/local-authority/38,Oxfordshire County Council,Support at Home U65 MH OBC Contract,07/06/2022,5899,Social Care - Direct Payments,3111190204,597.41,Purple Conversation Com In Co (DP)
http://statistics.data.gov.uk/id/local-authority/38,Oxfordshire County Council,Support at Home 65+ Learning Disability,07/06/2022,5899,Social Care - Direct Payments,3111190294,597.41,Purple Conversation Com In Co (DP)
http://statistics.data.gov.uk/id/local-authority/38,Oxfordshire County Council,Support at Home U65 Physical Support,07/06/2022,5899,Social Care - Direct Payments,3111190346,597.41,Purple Conversation Com In Co (DP)
http://statistics.data.gov.uk/id/local-authority/38,Oxfordshire County Council,Support at Home 65+ Physical Support,07/06/2022,5899,Social Care - Direct Payments,3111190351,597.41,Purple Conversation Com In Co (DP)
http://statistics.data.gov.uk/id/local-authority/38,Oxfordshire County Council,Support at Home U65 MH OBC Contract,21/06/2022,5689,,3111200385,597.95,Casa Care Ltd
http://statistics.data.gov.uk/id/local-authority/38,Oxfordshire County Council,Children in Care Non-staffing - South,15/06/2022,5227,Other Transport Arrangements,3111198146,598,OXFORD BLUE CARS
http://statistics.data.gov.uk/id/local-authority/38,Oxfordshire County Council,FLEET OPERATIONS,09/06/2022,4210,Vehicles and Plant - Repairs and Main,2200995255,598.36,London Hire
http://statistics.data.gov.uk/id/local-authority/38,Oxfordshire County Council,SM DISABILITIES,27/06/2022,5554,Childrens' Social Care - Direct Payments,3111202962,598.95,Purple Conversation Com In Co (DP)
http://statistics.data.gov.uk/id/local-authority/38,Oxfordshire County Council,Support at Home U65 Physical Support,21/06/2022,5689,,3111200446,599.12,Oxfordshire Crossroads
http://statistics.data.gov.uk/id/local-authority/38,Oxfordshire County Council,Support at Home U65 Learning Disability,24/06/2022,5696,,3111202261,599.28,Orders of St John Care Trust
http://statistics.data.gov.uk/id/local-authority/38,Oxfordshire County Council,Support at Home 65+ Physical Support,07/06/2022,5899,Social Care - Direct Payments,3111188507,599.85,Personal Redacted Data
http://statistics.data.gov.uk/id/local-authority/38,Oxfordshire County Council,LEGAL SERVICES,07/06/2022,5251,Legal Costs,2200994470,600,Alex Perry
http://statistics.data.gov.uk/id/local-authority/38,Oxfordshire County Council,CLOSED LANDFILL,17/06/2022,5526,Payments to Private Contractors,2200998861,600,Caulmert Limited
http://statistics.data.gov.uk/id/local-authority/38,Oxfordshire County Council,Afghanistan settler holding hotel fund,06/06/2022,4315,Payments for Conveying Children,2200993772,600,Heyfordian Travel Ltd
http://statistics.data.gov.uk/id/local-authority/38,Oxfordshire County Council,POST 16 SEN,01/06/2022,4330,Transport to School Activities,3111187369,600,J & B Cars Ltd
http://statistics.data.gov.uk/id/local-authority/38,Oxfordshire County Council,LD Continuing Care - Sup at Home - U65,13/06/2022,5691,,3111197182,600,KIT Mobility Taxis Oxford Ltd
http://statistics.data.gov.uk/id/local-authority/38,Oxfordshire County Council,LEGAL SERVICES,24/06/2022,5251,Legal Costs,2201001297,600,Natasha Miller
http://statistics.data.gov.uk/id/local-authority/38,Oxfordshire County Council,Wokingham Adoption Support Fund,21/06/2022,4859,Medical and Counselling Fees,3111199195,600,OCC One Time Vendor
http://statistics.data.gov.uk/id/local-authority/38,Oxfordshire County Council,Wokingham Adoption Support Fund,30/06/2022,6500,Government Grants (Revenue),3111204509,600,OCC One Time Vendor
http://statistics.data.gov.uk/id/local-authority/38,Oxfordshire County Council,OXFORD LOCALITY,10/06/2022,4625,"Newspapers, Periodicals and Publications",2200995556,600,Oxford City Council
http://statistics.data.gov.uk/id/local-authority/38,Oxfordshire County Council,Support at Home U65 Learning Disability,08/06/2022,5227,Other Transport Arrangements,3111190463,600,Oxon Transport Services Ltd
http://statistics.data.gov.uk/id/local-authority/38,Oxfordshire County Council,SEN TRANSPORT,13/06/2022,5227,Other Transport Arrangements,3111196075,600,Oxon Transport Services Ltd
http://statistics.data.gov.uk/id/local-authority/38,Oxfordshire County Council,Councillors Priorities Fund,22/06/2022,4940,Other Services,3111201418,600,OYAP Trust
http://statistics.data.gov.uk/id/local-authority/38,Oxfordshire County Council,TREE MAINT OPS,22/06/2022,5526,Payments to Private Contractors,2201000391,600,Ringrose Tree Surgery Ltd
http://statistics.data.gov.uk/id/local-authority/38,Oxfordshire County Council,Delegated Health Tasks  - Over 65,10/06/2022,5691,,3111191431,600,The Caring Company (Oxon)
http://statistics.data.gov.uk/id/local-authority/38,Oxfordshire County Council,SEN TRANSPORT,25/06/2022,5227,Other Transport Arrangements,3111202617,600,The Oxfordshire Taxi Company Ltd T/
http://statistics.data.gov.uk/id/local-authority/38,Oxfordshire County Council,East Oxfordshire Team,25/06/2022,5227,Other Transport Arrangements,3111202735,600,The Oxfordshire Taxi Company Ltd T/
http://statistics.data.gov.uk/id/local-authority/38,Oxfordshire County Council,LEGAL SERVICES,23/06/2022,5251,Legal Costs,2201000881,600,Vicky Reynolds
http://statistics.data.gov.uk/id/local-authority/38,Oxfordshire County Council,LEGAL SERVICES,23/06/2022,5251,Legal Costs,2201000885,600,Victoria Flowers
http://statistics.data.gov.uk/id/local-authority/38,Oxfordshire County Council,COMM DRAWDOWN FUNDNG,28/06/2022,8004,Design Consultant,2201001979,600,Virgin Media Diversion Works Team
http://statistics.data.gov.uk/id/local-authority/38,Oxfordshire County Council,Support at Home U65 Learning Disability,07/06/2022,5899,Social Care - Direct Payments,3111189603,600.41,Personal Redacted Data
http://statistics.data.gov.uk/id/local-authority/38,Oxfordshire County Council,LIBRARY COLLECTIONS,29/06/2022,4539,"Books, DVDs and CDs",3111204184,600.63,ASKEWS & HOLTS LIBRARY SERVICES LTD
http://statistics.data.gov.uk/id/local-authority/38,Oxfordshire County Council,LD Continuing Care - Sup at Home - U65,13/06/2022,5691,,3111197173,600.72,Paterson Recruitment
http://statistics.data.gov.uk/id/local-authority/38,Oxfordshire County Council,Support at Home 65+ Learning Disability,21/06/2022,5689,,3111200600,600.92,Greigcare Home Service
http://statistics.data.gov.uk/id/local-authority/38,Oxfordshire County Council,Support at Home U65 Learning Disability,22/06/2022,5688,,3111201425,601,The Laurels (Witney)
http://statistics.data.gov.uk/id/local-authority/38,Oxfordshire County Council,Support at Home U65 Physical Support,17/06/2022,5697,,3111198885,601.2,Headway Oxford
http://statistics.data.gov.uk/id/local-authority/38,Oxfordshire County Council,Support at Home U65 Physical Support,17/06/2022,5697,,3111198890,601.2,Headway Oxford
http://statistics.data.gov.uk/id/local-authority/38,Oxfordshire County Council,Support at Home 65+ Physical Support,07/06/2022,5899,Social Care - Direct Payments,3111190096,601.24,Purple Conversation Com In Co (DP)
http://statistics.data.gov.uk/id/local-authority/38,Oxfordshire County Council,Support at Home U65 MH OBC Contract,09/06/2022,5691,,3111191189,601.5,Care With Dignity Partnerships
http://statistics.data.gov.uk/id/local-authority/38,Oxfordshire County Council,LIBRARY COLLECTIONS,30/06/2022,4539,"Books, DVDs and CDs",2201003028,601.6,W F HOWES LTD
http://statistics.data.gov.uk/id/local-authority/38,Oxfordshire County Council,Support at Home U65 Physical Support,21/06/2022,5689,,3111200892,601.84,T.HOW HOMELY LTD
http://statistics.data.gov.uk/id/local-authority/38,Oxfordshire County Council,FOSTERING MAIN,21/06/2022,5549,B*Fostering Allowance - Regulation 38,3111199587,601.98,Personal Redacted Data
http://statistics.data.gov.uk/id/local-authority/38,Oxfordshire County Council,FOSTERING MAIN,14/06/2022,5549,B*Fostering Allowance - Regulation 38,3111197330,601.98,Personal Redacted Data
http://statistics.data.gov.uk/id/local-authority/38,Oxfordshire County Council,FOSTERING MAIN,07/06/2022,5549,B*Fostering Allowance - Regulation 38,3111189109,601.98,Personal Redacted Data
http://statistics.data.gov.uk/id/local-authority/38,Oxfordshire County Council,Property Cleaning,27/06/2022,4060,Cleaning Materials,2201001670,601.99,Seldram Supplies
http://statistics.data.gov.uk/id/local-authority/38,Oxfordshire County Council,PREMISES,21/06/2022,3980,Service Charges - Premises,2200999864,602,Thames Ceilings Ltd
http://statistics.data.gov.uk/id/local-authority/38,Oxfordshire County Council,FAM GRP CONFERENCES,24/06/2022,4940,Other Services,2201001346,602.5,Sharon Peart
http://statistics.data.gov.uk/id/local-authority/38,Oxfordshire County Council,Support at Home U65 Memory & Cognition,21/06/2022,5689,,3111199981,603.94,Alina Homecare
http://statistics.data.gov.uk/id/local-authority/38,Oxfordshire County Council,Planned Maintenance,01/06/2022,3787,Premises Repairs,2200993680,604,BI-FOLD ROLFE LTD
http://statistics.data.gov.uk/id/local-authority/38,Oxfordshire County Council,Support at Home 65+ Mental Health,21/06/2022,5689,,3111200534,604.38,Golden Services Care Ltd
http://statistics.data.gov.uk/id/local-authority/38,Oxfordshire County Council,Support at Home 65+ Physical Support,21/06/2022,5699,,3111201172,604.8,Care Hearted Ltd
http://statistics.data.gov.uk/id/local-authority/38,Oxfordshire County Council,Support at Home U65 Physical Support,21/06/2022,5699,,3111201270,604.8,Kare Plus Oxford
http://statistics.data.gov.uk/id/local-authority/38,Oxfordshire County Council,Support at Home U65 HFA,01/06/2022,5693,,3111187663,604.8,We-Care-Recruitment Ltd
http://statistics.data.gov.uk/id/local-authority/38,Oxfordshire County Council,Support at Home U65 HFA,17/06/2022,5693,,3111198934,604.8,We-Care-Recruitment Ltd
http://statistics.data.gov.uk/id/local-authority/38,Oxfordshire County Council,Family Solutions Plus Non-staff - North,09/06/2022,5394,Other Expenses,2200995308,607.5,Eynsham Pre-School Association
http://statistics.data.gov.uk/id/local-authority/38,Oxfordshire County Council,Support at Home 65+ Learning Disability,10/06/2022,5690,,3111191560,607.5,Style Acre
http://statistics.data.gov.uk/id/local-authority/38,Oxfordshire County Council,SEN TRANSPORT,15/06/2022,5227,Other Transport Arrangements,3111198181,608,ABC Travel(Wokingham) limited t/a A
http://statistics.data.gov.uk/id/local-authority/38,Oxfordshire County Council,SEN TRANSPORT,01/06/2022,5227,Other Transport Arrangements,3111187418,608,C&M Management Services Ltd
http://statistics.data.gov.uk/id/local-authority/38,Oxfordshire County Council,Support at Home U65 Learning Disability,06/06/2022,5227,Other Transport Arrangements,3111188116,608,Her Ride Limited
http://statistics.data.gov.uk/id/local-authority/38,Oxfordshire County Council,Planned Maintenance,06/06/2022,3787,Premises Repairs,2200993982,609,SI Pumps Ltd
http://statistics.data.gov.uk/id/local-authority/38,Oxfordshire County Council,Support at Home U65 Physical Support,07/06/2022,5899,Social Care - Direct Payments,3111189613,610.97,Personal Redacted Data
http://statistics.data.gov.uk/id/local-authority/38,Oxfordshire County Council,Support at Home 65+ Mental Health,21/06/2022,5699,,3111201139,611.1,Bridges Home Care Ltd
http://statistics.data.gov.uk/id/local-authority/38,Oxfordshire County Council,FLEET OPERATIONS,09/06/2022,4270,HTM / Other Vehicle - Hire Charges,2200995000,611.37,London Hire
http://statistics.data.gov.uk/id/local-authority/38,Oxfordshire County Council,FLEET OPERATIONS,15/06/2022,4210,Vehicles and Plant - Repairs and Main,2200997296,611.71,London Hire
http://statistics.data.gov.uk/id/local-authority/38,Oxfordshire County Council,NTS UASC Agency,20/06/2022,2040,Agency Staff,2200999501,612,Completely Care Ltd
http://statistics.data.gov.uk/id/local-authority/38,Oxfordshire County Council,LD Continuing Care - Sup at Home - U65,13/06/2022,5691,,3111197184,612.23,THORNBURY NURSING SERVICES
http://statistics.data.gov.uk/id/local-authority/38,Oxfordshire County Council,Support at Home U65 Sensory Support,07/06/2022,5899,Social Care - Direct Payments,3111188965,613.08,Personal Redacted Data
http://statistics.data.gov.uk/id/local-authority/38,Oxfordshire County Council,Support at Home 65+ Physical Support,07/06/2022,5899,Social Care - Direct Payments,3111188881,613.08,Personal Redacted Data
http://statistics.data.gov.uk/id/local-authority/38,Oxfordshire County Council,Support at Home U65 Other /Soc Isolation,10/06/2022,5690,,3111191743,613.29,ADVANCE HOUSING & SUPPORT LTD
http://statistics.data.gov.uk/id/local-authority/38,Oxfordshire County Council,Support at Home U65 Physical Support,07/06/2022,5899,Social Care - Direct Payments,3111190123,613.71,Purple Conversation Com In Co (DP)
http://statistics.data.gov.uk/id/local-authority/38,Oxfordshire County Council,LIBRARY COLLECTIONS,08/06/2022,4539,"Books, DVDs and CDs",3111190728,613.88,ASKEWS & HOLTS LIBRARY SERVICES LTD
http://statistics.data.gov.uk/id/local-authority/38,Oxfordshire County Council,Children in Care Non-staffing - Centrl 2,27/06/2022,5365,Non-Staff Subsistence and Expenses,9300056162,614,OCC SS Oxford City Div 1 Cash
http://statistics.data.gov.uk/id/local-authority/38,Oxfordshire County Council,Support at Home 65+ Physical Support,21/06/2022,5698,,3111200545,614.1,Oxfordshire Crossroads
http://statistics.data.gov.uk/id/local-authority/38,Oxfordshire County Council,SEN Additional Funding,06/06/2022,5537,Payments to Other Establishments,3111187969,614.25,Blewbury Endowed C of E Primary Sch
http://statistics.data.gov.uk/id/local-authority/38,Oxfordshire County Council,SEN Additional Funding,06/06/2022,5537,Payments to Other Establishments,3111188002,614.25,Harriers Banbury Academy
http://statistics.data.gov.uk/id/local-authority/38,Oxfordshire County Council,SEN Additional Funding,06/06/2022,5537,Payments to Other Establishments,3111188070,614.25,River Learning Trust - WCP
http://statistics.data.gov.uk/id/local-authority/38,Oxfordshire County Council,SEN Additional Funding,06/06/2022,5537,Payments to Other Establishments,3111188017,614.25,The Cherwell Academy
http://statistics.data.gov.uk/id/local-authority/38,Oxfordshire County Council,SEN Additional Funding,06/06/2022,5537,Payments to Other Establishments,3111188006,614.25,The Warriner Multi Academy Trust
http://statistics.data.gov.uk/id/local-authority/38,Oxfordshire County Council,SEN Additional Funding,06/06/2022,5537,Payments to Other Establishments,3111188073,614.25,Wroxton CE Primary School
http://statistics.data.gov.uk/id/local-authority/38,Oxfordshire County Council,Support at Home U65 Mental Health,07/06/2022,5899,Social Care - Direct Payments,3111190162,614.85,Purple Conversation Com In Co (DP)
http://statistics.data.gov.uk/id/local-authority/38,Oxfordshire County Council,DISABILITIES TEAM-C,01/06/2022,2040,Agency Staff,2200993570,615.5,THORNBURY NURSING SERVICES
http://statistics.data.gov.uk/id/local-authority/38,Oxfordshire County Council,DISABILITIES TEAM-C,23/06/2022,2040,Agency Staff,2201000599,615.5,THORNBURY NURSING SERVICES
http://statistics.data.gov.uk/id/local-authority/38,Oxfordshire County Council,DISABILITIES TEAM-C,23/06/2022,2040,Agency Staff,2201000605,615.5,THORNBURY NURSING SERVICES
http://statistics.data.gov.uk/id/local-authority/38,Oxfordshire County Council,Unregistered Placements,15/06/2022,5526,Payments to Private Contractors,2200997122,615.8,MEDGEN LTD
http://statistics.data.gov.uk/id/local-authority/38,Oxfordshire County Council,Unregistered Placements,23/06/2022,5526,Payments to Private Contractors,2201001030,615.8,MEDGEN LTD
http://statistics.data.gov.uk/id/local-authority/38,Oxfordshire County Council,Unregistered Placements,23/06/2022,5526,Payments to Private Contractors,2201001035,615.8,MEDGEN LTD
http://statistics.data.gov.uk/id/local-authority/38,Oxfordshire County Council,Support at Home 65+ Physical Support,21/06/2022,5689,,3111200733,616.07,Oxford Private Care
http://statistics.data.gov.uk/id/local-authority/38,Oxfordshire County Council,POST 16 SEN,24/06/2022,4330,Transport to School Activities,3111202466,616.32,Bicester Cars UK Ltd
http://statistics.data.gov.uk/id/local-authority/38,Oxfordshire County Council,POST 16 SEN,24/06/2022,4330,Transport to School Activities,3111202470,616.32,Bicester Cars UK Ltd
http://statistics.data.gov.uk/id/local-authority/38,Oxfordshire County Council,Support at Home 65+ Physical Support,21/06/2022,5698,,3111200517,616.44,Oxford Private Care
http://statistics.data.gov.uk/id/local-authority/38,Oxfordshire County Council,Support at Home U65 Learning Disability,10/06/2022,5690,,3111191575,616.46,Style Acre
http://statistics.data.gov.uk/id/local-authority/38,Oxfordshire County Council,Support at Home U65 Learning Disability,10/06/2022,5690,,3111191596,616.46,Style Acre
http://statistics.data.gov.uk/id/local-authority/38,Oxfordshire County Council,Support at Home U65 Learning Disability,10/06/2022,5690,,3111191600,616.46,Style Acre
http://statistics.data.gov.uk/id/local-authority/38,Oxfordshire County Council,Support at Home U65 Learning Disability,10/06/2022,5690,,3111191613,616.46,Style Acre
http://statistics.data.gov.uk/id/local-authority/38,Oxfordshire County Council,Support at Home U65 Learning Disability,10/06/2022,5690,,3111191527,616.46,Turnstyle
http://statistics.data.gov.uk/id/local-authority/38,Oxfordshire County Council,ZEZ PILOT,07/06/2022,4861,Hired and Contracted Services,2200994140,616.84,UK Vehicle Data Limited
http://statistics.data.gov.uk/id/local-authority/38,Oxfordshire County Council,Support at Home U65 Learning Disability,07/06/2022,5899,Social Care - Direct Payments,3111189938,616.88,Purple Conversation Com In Co (DP)
http://statistics.data.gov.uk/id/local-authority/38,Oxfordshire County Council,RBWM Adoption Support Fund,30/06/2022,6500,Government Grants (Revenue),3111204578,617,OCC One Time Vendor
http://statistics.data.gov.uk/id/local-authority/38,Oxfordshire County Council,Support at Home 65+ Physical Support,21/06/2022,5699,,3111201164,617.4,Care Hearted Ltd
http://statistics.data.gov.uk/id/local-authority/38,Oxfordshire County Council,Support at Home 65+ Physical Support,21/06/2022,5699,,3111201313,617.4,PLL Care Services
http://statistics.data.gov.uk/id/local-authority/38,Oxfordshire County Council,Support at Home U65 MH OBC Contract,10/06/2022,5693,,3111191231,617.41,Care at Home
http://statistics.data.gov.uk/id/local-authority/38,Oxfordshire County Council,Support at Home U65 MH OBC Contract,07/06/2022,5899,Social Care - Direct Payments,3111189471,618.45,Personal Redacted Data
http://statistics.data.gov.uk/id/local-authority/38,Oxfordshire County Council,Support at Home U65 Learning Disability,07/06/2022,5899,Social Care - Direct Payments,3111190310,618.86,Purple Conversation Com In Co (DP)
http://statistics.data.gov.uk/id/local-authority/38,Oxfordshire County Council,Support at Home 65+ Physical Support,21/06/2022,5689,,3111200790,619.08,Premier Personal Care
http://statistics.data.gov.uk/id/local-authority/38,Oxfordshire County Council,FOSTERING MAIN,28/06/2022,5549,B*Fostering Allowance - Regulation 38,3111203469,619.15,Personal Redacted Data
http://statistics.data.gov.uk/id/local-authority/38,Oxfordshire County Council,FOSTERING MAIN,07/06/2022,5227,Other Transport Arrangements,3111188856,619.65,Personal Redacted Data
http://statistics.data.gov.uk/id/local-authority/38,Oxfordshire County Council,Support at Home U65 Learning Disability,07/06/2022,5899,Social Care - Direct Payments,3111190019,619.79,Purple Conversation Com In Co (DP)
http://statistics.data.gov.uk/id/local-authority/38,Oxfordshire County Council,Support at Home 65+ Physical Support,21/06/2022,5689,,3111200057,619.92,Allied Health-Services Limited
http://statistics.data.gov.uk/id/local-authority/38,Oxfordshire County Council,Children in Care Non-staffing - South,30/06/2022,3740,General Maintenance,2201003211,620,Oxfordshire Accommodation Ltd
http://statistics.data.gov.uk/id/local-authority/38,Oxfordshire County Council,Support at Home U65 Learning Disability,10/06/2022,5690,,3111191747,620.1,ADVANCE HOUSING & SUPPORT LTD
http://statistics.data.gov.uk/id/local-authority/38,Oxfordshire County Council,Support at Home 65+ Physical Support,21/06/2022,5689,,3111200689,621.1,My Carer Ltd
http://statistics.data.gov.uk/id/local-authority/38,Oxfordshire County Council,Continuing Care - Care Homes - Under 65,10/06/2022,5687,,3111193471,621.43,Chacombe Park Care Home
http://statistics.data.gov.uk/id/local-authority/38,Oxfordshire County Council,Support at Home U65 Physical Support,21/06/2022,5698,,3111200284,621.43,Day & Night Care Assistance
http://statistics.data.gov.uk/id/local-authority/38,Oxfordshire County Council,Support at Home U65 Learning Disability,10/06/2022,5688,,3111193758,621.6,The Brandon Trust
http://statistics.data.gov.uk/id/local-authority/38,Oxfordshire County Council,Support at Home U65 Learning Disability,07/06/2022,5899,Social Care - Direct Payments,3111188320,621.71,Connection Support (Oxford)
http://statistics.data.gov.uk/id/local-authority/38,Oxfordshire County Council,Independent Foster,29/06/2022,5559,,3111204257,621.93,Five Rivers Child Care Ltd
http://statistics.data.gov.uk/id/local-authority/38,Oxfordshire County Council,Independent Foster,29/06/2022,5559,,3111204256,621.94,Five Rivers Child Care Ltd
http://statistics.data.gov.uk/id/local-authority/38,Oxfordshire County Council,Support at Home U65 Learning Disability,21/06/2022,5682,,3111200925,622.36,The Brandon Trust
http://statistics.data.gov.uk/id/local-authority/38,Oxfordshire County Council,Support at Home U65 Learning Disability,21/06/2022,5682,,3111200920,622.49,The Brandon Trust
http://statistics.data.gov.uk/id/local-authority/38,Oxfordshire County Council,Support at Home U65 Learning Disability,07/06/2022,5899,Social Care - Direct Payments,3111190082,623,Purple Conversation Com In Co (DP)
http://statistics.data.gov.uk/id/local-authority/38,Oxfordshire County Council,Support at Home 65+ Physical Support,21/06/2022,5689,,3111200448,623.18,Oxfordshire Crossroads
http://statistics.data.gov.uk/id/local-authority/38,Oxfordshire County Council,Support at Home U65 Learning Disability,07/06/2022,5899,Social Care - Direct Payments,3111190025,623.52,Purple Conversation Com In Co (DP)
http://statistics.data.gov.uk/id/local-authority/38,Oxfordshire County Council,Support at Home 65+ Mental Health,21/06/2022,5899,Social Care - Direct Payments,3111199554,624,Personal Redacted Data
http://statistics.data.gov.uk/id/local-authority/38,Oxfordshire County Council,LANDLORD & TENANT,28/06/2022,4001,Uniform Business Rates,3500084632,624,West Oxfordshire District Council
http://statistics.data.gov.uk/id/local-authority/38,Oxfordshire County Council,Support at Home U65 Physical Support,21/06/2022,5689,,3111200185,624.84,Care Outlook Ltd
http://statistics.data.gov.uk/id/local-authority/38,Oxfordshire County Council,POST 16 SEN,07/06/2022,4330,Transport to School Activities,3111188303,625,Oxon Transport Services Ltd
http://statistics.data.gov.uk/id/local-authority/38,Oxfordshire County Council,Support at Home U65 Memory & Cognition,07/06/2022,5899,Social Care - Direct Payments,3111190313,626.07,Purple Conversation Com In Co (DP)
http://statistics.data.gov.uk/id/local-authority/38,Oxfordshire County Council,Support at Home 65+ Physical Support,21/06/2022,5689,,3111200614,626.11,Greigcare Home Service
http://statistics.data.gov.uk/id/local-authority/38,Oxfordshire County Council,NURSERY ED FUND,15/06/2022,5537,Payments to Other Establishments,3111196331,626.4,Carole Hickman
http://statistics.data.gov.uk/id/local-authority/38,Oxfordshire County Council,NURSERY ED FUND,15/06/2022,5537,Payments to Other Establishments,3111196332,626.4,Carrole Forde
http://statistics.data.gov.uk/id/local-authority/38,Oxfordshire County Council,NURSERY ED FUND,15/06/2022,5537,Payments to Other Establishments,3111196337,626.4,Catherine Scate
http://statistics.data.gov.uk/id/local-authority/38,Oxfordshire County Council,NURSERY ED FUND,15/06/2022,5537,Payments to Other Establishments,3111196342,626.4,Charlanne Armstrong
http://statistics.data.gov.uk/id/local-authority/38,Oxfordshire County Council,NURSERY ED FUND,15/06/2022,5537,Payments to Other Establishments,3111196391,626.4,Donna Griffiths-Brown
http://statistics.data.gov.uk/id/local-authority/38,Oxfordshire County Council,NURSERY ED FUND,15/06/2022,5537,Payments to Other Establishments,3111196424,626.4,Freida Brackman
http://statistics.data.gov.uk/id/local-authority/38,Oxfordshire County Council,NURSERY ED FUND,15/06/2022,5537,Payments to Other Establishments,3111196428,626.4,Gemma Jenkins
http://statistics.data.gov.uk/id/local-authority/38,Oxfordshire County Council,NURSERY ED FUND,15/06/2022,5537,Payments to Other Establishments,3111196431,626.4,Gill Jones
http://statistics.data.gov.uk/id/local-authority/38,Oxfordshire County Council,NURSERY ED FUND,15/06/2022,5537,Payments to Other Establishments,3111196479,626.4,Jade Bamford
http://statistics.data.gov.uk/id/local-authority/38,Oxfordshire County Council,NURSERY ED FUND,15/06/2022,5537,Payments to Other Establishments,3111196480,626.4,Jane Hollick
http://statistics.data.gov.uk/id/local-authority/38,Oxfordshire County Council,NURSERY ED FUND,15/06/2022,5537,Payments to Other Establishments,3111196481,626.4,Jane Philpott
http://statistics.data.gov.uk/id/local-authority/38,Oxfordshire County Council,NURSERY ED FUND,15/06/2022,5537,Payments to Other Establishments,3111196498,626.4,Karen Wheeler
http://statistics.data.gov.uk/id/local-authority/38,Oxfordshire County Council,NURSERY ED FUND,15/06/2022,5537,Payments to Other Establishments,3111196501,626.4,Kate Thomas
http://statistics.data.gov.uk/id/local-authority/38,Oxfordshire County Council,NURSERY ED FUND,15/06/2022,5537,Payments to Other Establishments,3111196503,626.4,Katie Rebecca Hoare Childminder
http://statistics.data.gov.uk/id/local-authority/38,Oxfordshire County Council,NURSERY ED FUND,15/06/2022,5537,Payments to Other Establishments,3111196512,626.4,Kerry Wilkins
http://statistics.data.gov.uk/id/local-authority/38,Oxfordshire County Council,NURSERY ED FUND,15/06/2022,5537,Payments to Other Establishments,3111196536,626.4,Leah Kernan
http://statistics.data.gov.uk/id/local-authority/38,Oxfordshire County Council,NURSERY ED FUND,15/06/2022,5537,Payments to Other Establishments,3111196537,626.4,Linda Page
http://statistics.data.gov.uk/id/local-authority/38,Oxfordshire County Council,NURSERY ED FUND,15/06/2022,5537,Payments to Other Establishments,3111196570,626.4,Madelein van Helsdingen
http://statistics.data.gov.uk/id/local-authority/38,Oxfordshire County Council,NURSERY ED FUND,15/06/2022,5537,Payments to Other Establishments,3111196576,626.4,Maria HIckman
http://statistics.data.gov.uk/id/local-authority/38,Oxfordshire County Council,NURSERY ED FUND,15/06/2022,5537,Payments to Other Establishments,3111196583,626.4,Michelle Buggins
http://statistics.data.gov.uk/id/local-authority/38,Oxfordshire County Council,NURSERY ED FUND,15/06/2022,5537,Payments to Other Establishments,3111196592,626.4,Naomi Dixon
http://statistics.data.gov.uk/id/local-authority/38,Oxfordshire County Council,NURSERY ED FUND,15/06/2022,5537,Payments to Other Establishments,3111196593,626.4,Natalie Collins
http://statistics.data.gov.uk/id/local-authority/38,Oxfordshire County Council,NURSERY ED FUND,15/06/2022,5537,Payments to Other Establishments,3111196606,626.4,Nicola Playford
http://statistics.data.gov.uk/id/local-authority/38,Oxfordshire County Council,NURSERY ED FUND,15/06/2022,5537,Payments to Other Establishments,3111196636,626.4,Rachael Shaer
http://statistics.data.gov.uk/id/local-authority/38,Oxfordshire County Council,NURSERY ED FUND,15/06/2022,5537,Payments to Other Establishments,3111196637,626.4,Rachel Heskey
http://statistics.data.gov.uk/id/local-authority/38,Oxfordshire County Council,NURSERY ED FUND,15/06/2022,5537,Payments to Other Establishments,3111196639,626.4,Rachel Whitmore
http://statistics.data.gov.uk/id/local-authority/38,Oxfordshire County Council,NURSERY ED FUND,15/06/2022,5537,Payments to Other Establishments,3111196657,626.4,Sadie Malpass
http://statistics.data.gov.uk/id/local-authority/38,Oxfordshire County Council,NURSERY ED FUND,15/06/2022,5537,Payments to Other Establishments,3111196671,626.4,Sarah Miller
http://statistics.data.gov.uk/id/local-authority/38,Oxfordshire County Council,NURSERY ED FUND,15/06/2022,5537,Payments to Other Establishments,3111196777,626.4,Tracey Hedges Childcare
http://statistics.data.gov.uk/id/local-authority/38,Oxfordshire County Council,NURSERY ED FUND,15/06/2022,5537,Payments to Other Establishments,3111196778,626.4,Tracey Tricker
http://statistics.data.gov.uk/id/local-authority/38,Oxfordshire County Council,NURSERY ED FUND,15/06/2022,5537,Payments to Other Establishments,3111196811,626.4,Zoe Osunde
http://statistics.data.gov.uk/id/local-authority/38,Oxfordshire County Council,Support at Home 65+ Physical Support,07/06/2022,5899,Social Care - Direct Payments,3111190061,626.61,Purple Conversation Com In Co (DP)
http://statistics.data.gov.uk/id/local-authority/38,Oxfordshire County Council,SEN TRANSPORT,06/06/2022,4330,Transport to School Activities,3111187937,627,Angelas Travel
http://statistics.data.gov.uk/id/local-authority/38,Oxfordshire County Council,SEN TRANSPORT,13/06/2022,5227,Other Transport Arrangements,3111196122,627,Oxon Transport Services Ltd
http://statistics.data.gov.uk/id/local-authority/38,Oxfordshire County Council,Support at Home U65 Sensory Support,07/06/2022,5899,Social Care - Direct Payments,3111188956,627.06,Personal Redacted Data
http://statistics.data.gov.uk/id/local-authority/38,Oxfordshire County Council,GRASS CUTTING DIST.,06/06/2022,5526,Payments to Private Contractors,3111187868,627.49,West Hendred Parish Council
http://statistics.data.gov.uk/id/local-authority/38,Oxfordshire County Council,GRASS CUTTING DIST.,08/06/2022,5526,Payments to Private Contractors,3111190501,627.49,West Hendred Parish Council
http://statistics.data.gov.uk/id/local-authority/38,Oxfordshire County Council,Support at Home 65+ Physical Support,07/06/2022,5899,Social Care - Direct Payments,3111188679,628.62,Personal Redacted Data
http://statistics.data.gov.uk/id/local-authority/38,Oxfordshire County Council,FAM GRP CONFERENCES,16/06/2022,4940,Other Services,2200997551,628.63,Jessica Howards
http://statistics.data.gov.uk/id/local-authority/38,Oxfordshire County Council,LIBRARY COLLECTIONS,29/06/2022,4539,"Books, DVDs and CDs",2201002584,628.72,ULVERSCROFT LARGE PRINT BOOKS LTD
http://statistics.data.gov.uk/id/local-authority/38,Oxfordshire County Council,LIBRARY COLLECTIONS,30/06/2022,4539,"Books, DVDs and CDs",2201002986,628.72,ULVERSCROFT LARGE PRINT BOOKS LTD
http://statistics.data.gov.uk/id/local-authority/38,Oxfordshire County Council,Community Support Service - Abingdon,14/06/2022,2040,Agency Staff,2200996494,629.83,Completely Care Ltd
http://statistics.data.gov.uk/id/local-authority/38,Oxfordshire County Council,,10/06/2022,1448,Blackfield Inc & Exp A/c,3111191251,629.85,OCC One Time Vendor
http://statistics.data.gov.uk/id/local-authority/38,Oxfordshire County Council,TREE MAINT OPS,23/06/2022,5526,Payments to Private Contractors,2201001046,630,Acreman's Arboriculture Ltd
http://statistics.data.gov.uk/id/local-authority/38,Oxfordshire County Council,Support at Home 65+ Memory & Cognition,22/06/2022,5693,,3111201497,630,JMC Care Solutions Limited
http://statistics.data.gov.uk/id/local-authority/38,Oxfordshire County Council,Swindon Adoption Support Fund,16/06/2022,4861,Hired and Contracted Services,2200997762,630,Joanna Cowley
http://statistics.data.gov.uk/id/local-authority/38,Oxfordshire County Council,SEN TRANSPORT,17/06/2022,5227,Other Transport Arrangements,3111198774,630,LINK SHIRES LTD
http://statistics.data.gov.uk/id/local-authority/38,Oxfordshire County Council,Support at Home 65+ Physical Support,21/06/2022,5699,,3111201337,630,PLL Care Services
http://statistics.data.gov.uk/id/local-authority/38,Oxfordshire County Council,Planned Maintenance,16/06/2022,3787,Premises Repairs,2200997588,630,SI Pumps Ltd
http://statistics.data.gov.uk/id/local-authority/38,Oxfordshire County Council,FOSTERING MAIN,28/06/2022,5549,B*Fostering Allowance - Regulation 38,3111203467,630.15,Personal Redacted Data
http://statistics.data.gov.uk/id/local-authority/38,Oxfordshire County Council,Support at Home 65+ Learning Disability,07/06/2022,5899,Social Care - Direct Payments,3111190287,631.24,Purple Conversation Com In Co (DP)
http://statistics.data.gov.uk/id/local-authority/38,Oxfordshire County Council,SEN TRANSPORT,06/06/2022,4320,Pupil / Client Travel Reimbursement,3111188149,631.4,Personal Redacted Data
http://statistics.data.gov.uk/id/local-authority/38,Oxfordshire County Council,Support at Home U65 Physical Support,07/06/2022,5899,Social Care - Direct Payments,3111188585,631.6,Personal Redacted Data
http://statistics.data.gov.uk/id/local-authority/38,Oxfordshire County Council,Support at Home U65 Physical Support,07/06/2022,5899,Social Care - Direct Payments,3111190074,632.46,Purple Conversation Com In Co (DP)
http://statistics.data.gov.uk/id/local-authority/38,Oxfordshire County Council,Support at Home 65+ Physical Support,01/06/2022,5693,,3111187630,632.5,Kwikfix Recruitment Services Ltd
http://statistics.data.gov.uk/id/local-authority/38,Oxfordshire County Council,Support at Home U65 Learning Disability,10/06/2022,5690,,3111191599,632.57,Style Acre
http://statistics.data.gov.uk/id/local-authority/38,Oxfordshire County Council,Support at Home U65 Learning Disability,10/06/2022,5690,,3111191615,632.57,Style Acre
http://statistics.data.gov.uk/id/local-authority/38,Oxfordshire County Council,Support at Home 65+ Physical Support,24/06/2022,5696,,3111202268,633.36,Orders of St John Care Trust
http://statistics.data.gov.uk/id/local-authority/38,Oxfordshire County Council,Support at Home 65+ Learning Disability,24/06/2022,5696,,3111202278,633.36,Orders of St John Care Trust
http://statistics.data.gov.uk/id/local-authority/38,Oxfordshire County Council,Support at Home U65 Physical Support,07/06/2022,5899,Social Care - Direct Payments,3111190323,633.39,Purple Conversation Com In Co (DP)
http://statistics.data.gov.uk/id/local-authority/38,Oxfordshire County Council,Property Cleaning,16/06/2022,3787,Premises Repairs,2200997537,633.83,Seldram Supplies
http://statistics.data.gov.uk/id/local-authority/38,Oxfordshire County Council,STREET SWEEPINGS,21/06/2022,5227,Other Transport Arrangements,2200999689,633.86,M & M Skip Hire Ltd
http://statistics.data.gov.uk/id/local-authority/38,Oxfordshire County Council,NURSERY ED FUND,15/06/2022,5537,Payments to Other Establishments,3111196383,634.23,Personal Redacted Data
http://statistics.data.gov.uk/id/local-authority/38,Oxfordshire County Council,Support at Home U65 Mental Health,21/06/2022,5698,,3111200406,634.23,KCARE NURSING AGENCY
http://statistics.data.gov.uk/id/local-authority/38,Oxfordshire County Council,Support at Home U65 Physical Support,07/06/2022,5899,Social Care - Direct Payments,3111190232,634.31,Purple Conversation Com In Co (DP)
http://statistics.data.gov.uk/id/local-authority/38,Oxfordshire County Council,Support at Home 65+ Physical Support,21/06/2022,5696,,3111200979,634.41,All Care GB Ltd
http://statistics.data.gov.uk/id/local-authority/38,Oxfordshire County Council,Support at Home 65+ Physical Support,21/06/2022,5696,,3111200985,634.41,All Care GB Ltd
http://statistics.data.gov.uk/id/local-authority/38,Oxfordshire County Council,Support at Home 65+ Physical Support,21/06/2022,5696,,3111201041,634.41,All Care GB Ltd
http://statistics.data.gov.uk/id/local-authority/38,Oxfordshire County Council,Support at Home 65+ Memory & Cognition,21/06/2022,5696,,3111201052,634.41,All Care GB Ltd
http://statistics.data.gov.uk/id/local-authority/38,Oxfordshire County Council,Support at Home 65+ Memory & Cognition,21/06/2022,5696,,3111201054,634.41,All Care GB Ltd
http://statistics.data.gov.uk/id/local-authority/38,Oxfordshire County Council,Support at Home U65 Learning Disability,01/06/2022,5697,,3111187575,634.65,Ways and Means Trust Ltd
http://statistics.data.gov.uk/id/local-authority/38,Oxfordshire County Council,Voice of Customer,21/06/2022,4861,Hired and Contracted Services,2200999852,635,Camilla Flatres
http://statistics.data.gov.uk/id/local-authority/38,Oxfordshire County Council,Support at Home 65+ Physical Support,17/06/2022,5693,,3111198814,635.28,A CARING HAND LTD
http://statistics.data.gov.uk/id/local-authority/38,Oxfordshire County Council,Support at Home U65 Physical Support,24/06/2022,5693,,3111202361,635.28,CaringPlus Healthcare Services Ltd
http://statistics.data.gov.uk/id/local-authority/38,Oxfordshire County Council,Support at Home U65 Learning Disability,21/06/2022,5682,,3111200895,635.79,The Brandon Trust
http://statistics.data.gov.uk/id/local-authority/38,Oxfordshire County Council,2 YEAR OLD FUNDING,15/06/2022,5537,Payments to Other Establishments,3111196824,636.12,A B C Nursery
http://statistics.data.gov.uk/id/local-authority/38,Oxfordshire County Council,2 YEAR OLD FUNDING,15/06/2022,5537,Payments to Other Establishments,3111196873,636.12,Clanfield Pre-School
http://statistics.data.gov.uk/id/local-authority/38,Oxfordshire County Council,2 YEAR OLD FUNDING,15/06/2022,5537,Payments to Other Establishments,3111196948,636.12,Little Dots Daycare
http://statistics.data.gov.uk/id/local-authority/38,Oxfordshire County Council,Support at Home 65+ Physical Support,17/06/2022,5693,,3111198941,636.3,We-Care-Recruitment Ltd
http://statistics.data.gov.uk/id/local-authority/38,Oxfordshire County Council,Support at Home U65 Learning Disability,14/06/2022,5899,Social Care - Direct Payments,3111197229,636.35,Personal Redacted Data
http://statistics.data.gov.uk/id/local-authority/38,Oxfordshire County Council,Support at Home 65+ Learning Disability,07/06/2022,5899,Social Care - Direct Payments,3111189889,636.35,Purple Conversation Com In Co (DP)
http://statistics.data.gov.uk/id/local-authority/38,Oxfordshire County Council,L&D CORE PROGRAMME,10/06/2022,3100,Educational and Vocational Training,2200995697,637,Premier Partnership
http://statistics.data.gov.uk/id/local-authority/38,Oxfordshire County Council,Support at Home U65 Learning Disability,07/06/2022,5899,Social Care - Direct Payments,3111188872,637.41,Personal Redacted Data
http://statistics.data.gov.uk/id/local-authority/38,Oxfordshire County Council,Support at Home U65 Learning Disability,21/06/2022,5682,,3111200947,637.92,The Brandon Trust
http://statistics.data.gov.uk/id/local-authority/38,Oxfordshire County Council,SHARED LIVES,10/06/2022,5555,Payments to Carers,3111193284,637.95,Personal Redacted Data
http://statistics.data.gov.uk/id/local-authority/38,Oxfordshire County Council,Support at Home U65 HFA,21/06/2022,5682,,3111200953,637.98,The Brandon Trust
http://statistics.data.gov.uk/id/local-authority/38,Oxfordshire County Council,TRANSPORT COSTS,09/06/2022,4330,Transport to School Activities,3111191009,638,D�Arrive Ltd
http://statistics.data.gov.uk/id/local-authority/38,Oxfordshire County Council,LD Pool Refurbishments,30/06/2022,5537,Payments to Other Establishments,3111204497,638,OCC One Time Vendor
http://statistics.data.gov.uk/id/local-authority/38,Oxfordshire County Council,Support at Home U65 Learning Disability,10/06/2022,5690,,3111191793,638.36,Style Acre
http://statistics.data.gov.uk/id/local-authority/38,Oxfordshire County Council,Support at Home 65+ Memory & Cognition,07/06/2022,5899,Social Care - Direct Payments,3111188484,638.7,Personal Redacted Data
http://statistics.data.gov.uk/id/local-authority/38,Oxfordshire County Council,Property Cleaning,27/06/2022,4060,Cleaning Materials,2201001707,638.87,Seldram Supplies
http://statistics.data.gov.uk/id/local-authority/38,Oxfordshire County Council,NURSERY ED FUND,15/06/2022,5537,Payments to Other Establishments,3111196312,638.93,Kids Unlimited (Clearwater Place)
http://statistics.data.gov.uk/id/local-authority/38,Oxfordshire County Council,Support at Home 65+ Physical Support,24/06/2022,5696,,3111202240,639.07,Orders of St John Care Trust
http://statistics.data.gov.uk/id/local-authority/38,Oxfordshire County Council,Support at Home 65+ Memory & Cognition,21/06/2022,5689,,3111200382,639.16,Casa Care Ltd
http://statistics.data.gov.uk/id/local-authority/38,Oxfordshire County Council,Support at Home 65+ Physical Support,24/06/2022,5696,,3111202172,639.18,Orders of St John Care Trust
http://statistics.data.gov.uk/id/local-authority/38,Oxfordshire County Council,Support at Home U65 Learning Disability,17/06/2022,5227,Other Transport Arrangements,3111198730,639.8,LINK SHIRES LTD
http://statistics.data.gov.uk/id/local-authority/38,Oxfordshire County Council,Support at Home U65 Physical Support,01/06/2022,5227,Other Transport Arrangements,3111187331,640,ACE CARS BANBURY LTD
http://statistics.data.gov.uk/id/local-authority/38,Oxfordshire County Council,POST 16 SEN,24/06/2022,4330,Transport to School Activities,3111202468,640,Bicester Cars UK Ltd
http://statistics.data.gov.uk/id/local-authority/38,Oxfordshire County Council,SEN TRANSPORT,08/06/2022,4330,Transport to School Activities,3111190754,640,Edchauffeurs Ltd
http://statistics.data.gov.uk/id/local-authority/38,Oxfordshire County Council,Wokingham Adoption Support Fund,17/06/2022,4861,Hired and Contracted Services,2200998037,640,The Paperclip Group
http://statistics.data.gov.uk/id/local-authority/38,Oxfordshire County Council,Support at Home U65 Learning Disability,07/06/2022,5899,Social Care - Direct Payments,3111189978,640.12,Purple Conversation Com In Co (DP)
http://statistics.data.gov.uk/id/local-authority/38,Oxfordshire County Council,GRASS CUTTING DIST.,06/06/2022,5526,Payments to Private Contractors,3111187860,640.52,Stratton Audley Parish Council
http://statistics.data.gov.uk/id/local-authority/38,Oxfordshire County Council,FAM GRP CONFERENCES,08/06/2022,4940,Other Services,2200994934,640.55,Jessica Howards
http://statistics.data.gov.uk/id/local-authority/38,Oxfordshire County Council,Children in Care Non-staffing - Centrl 1,22/06/2022,5227,Other Transport Arrangements,9300056120,641,OCC SS Oxford City Div 1 Cash
http://statistics.data.gov.uk/id/local-authority/38,Oxfordshire County Council,COMM DRAWDOWN FUNDNG,08/06/2022,8103,Payments to sub contractor,2200994636,641.03,Network Rail
http://statistics.data.gov.uk/id/local-authority/38,Oxfordshire County Council,POST18 UASC DCSF FND,29/06/2022,5785,Client Lodgings and Accommodation,3111204072,641.1,KEY2 FUTURES LTD
http://statistics.data.gov.uk/id/local-authority/38,Oxfordshire County Council,POST18 UASC DCSF FND,29/06/2022,5785,Client Lodgings and Accommodation,3111204054,641.12,Response Organisation
http://statistics.data.gov.uk/id/local-authority/38,Oxfordshire County Council,Support at Home 65+ Physical Support,10/06/2022,5686,,3111192158,642,Orders of St John
http://statistics.data.gov.uk/id/local-authority/38,Oxfordshire County Council,Support at Home 65+ Physical Support,21/06/2022,5689,,3111200305,642.2,Caremark (West Oxfordshire & Cherwe
http://statistics.data.gov.uk/id/local-authority/38,Oxfordshire County Council,Children in Care Non-staffing - Centrl 2,22/06/2022,5415,Residential Activities,3111201833,642.36,Kasper Ltd
http://statistics.data.gov.uk/id/local-authority/38,Oxfordshire County Council,Support at Home 65+ Physical Support,21/06/2022,5699,,3111201205,642.6,Care Outlook Ltd
http://statistics.data.gov.uk/id/local-authority/38,Oxfordshire County Council,Support at Home 65+ Physical Support,22/06/2022,5693,,3111201464,642.64,Chamomile Care Ltd
http://statistics.data.gov.uk/id/local-authority/38,Oxfordshire County Council,RESIDENTIAL TREATMEN,10/06/2022,5686,,2200995864,642.84,SOMEWHERE HOUSE LTD
http://statistics.data.gov.uk/id/local-authority/38,Oxfordshire County Council,Support at Home 65+ Physical Support,10/06/2022,5693,,3111191247,642.86,PLL Care Services
http://statistics.data.gov.uk/id/local-authority/38,Oxfordshire County Council,Support at Home U65 MH OBC Contract,09/06/2022,5691,,3111191191,643,Care With Dignity Partnerships
http://statistics.data.gov.uk/id/local-authority/38,Oxfordshire County Council,Support at Home 65+ Physical Support,10/06/2022,5685,B*Cycle tracks,3111192622,643.2,Didcot Care Home Ltd
http://statistics.data.gov.uk/id/local-authority/38,Oxfordshire County Council,DISABILITIES TEAM-C,23/06/2022,2040,Agency Staff,2201000616,643.2,THORNBURY NURSING SERVICES
http://statistics.data.gov.uk/id/local-authority/38,Oxfordshire County Council,Planned Maintenance,16/06/2022,4498,Health and Safety Equipment,2200997671,643.98,Trinity Protection Systems Ltd
http://statistics.data.gov.uk/id/local-authority/38,Oxfordshire County Council,Support at Home 65+ Physical Support,17/06/2022,5693,,3111198903,644,Kwikfix Recruitment Services Ltd
http://statistics.data.gov.uk/id/local-authority/38,Oxfordshire County Council,CHC Fast Track - Sup at Homes - Over 65,10/06/2022,5691,,3111191385,644,Sue Ryder
http://statistics.data.gov.uk/id/local-authority/38,Oxfordshire County Council,Support at Home U65 Other /Soc Isolation,07/06/2022,5899,Social Care - Direct Payments,3111189880,644.04,Purple Conversation Com In Co (DP)
http://statistics.data.gov.uk/id/local-authority/38,Oxfordshire County Council,Support at Home U65 MH OBC Contract,09/06/2022,5691,,3111191192,644.5,Care With Dignity Partnerships
http://statistics.data.gov.uk/id/local-authority/38,Oxfordshire County Council,Support at Home 65+ Physical Support,21/06/2022,5689,,3111200708,644.57,Oasis Private Care Ltd
http://statistics.data.gov.uk/id/local-authority/38,Oxfordshire County Council,Continuing Care - Support at Home - U65,15/06/2022,5691,,3111198200,645,KIT Mobility Taxis Oxford Ltd
http://statistics.data.gov.uk/id/local-authority/38,Oxfordshire County Council,Support at Home U65 Physical Support,21/06/2022,5689,,3111200183,645.53,Care Outlook Ltd
http://statistics.data.gov.uk/id/local-authority/38,Oxfordshire County Council,MAINSTREAM-PRIMARY,22/06/2022,4330,Transport to School Activities,3111201761,646,001 Alpha Cars Ltd
http://statistics.data.gov.uk/id/local-authority/38,Oxfordshire County Council,SEN TRANSPORT,06/06/2022,5227,Other Transport Arrangements,3111188103,646,Her Ride Limited
http://statistics.data.gov.uk/id/local-authority/38,Oxfordshire County Council,FOSTERING MAIN,07/06/2022,5549,B*Fostering Allowance - Regulation 38,3111188524,646,Personal Redacted Data
http://statistics.data.gov.uk/id/local-authority/38,Oxfordshire County Council,FOSTERING MAIN,14/06/2022,5549,B*Fostering Allowance - Regulation 38,3111197293,646,Personal Redacted Data
http://statistics.data.gov.uk/id/local-authority/38,Oxfordshire County Council,FOSTERING MAIN,21/06/2022,5549,B*Fostering Allowance - Regulation 38,3111199519,646,Personal Redacted Data
http://statistics.data.gov.uk/id/local-authority/38,Oxfordshire County Council,FOSTERING MAIN,28/06/2022,5549,B*Fostering Allowance - Regulation 38,3111203446,646,Personal Redacted Data
http://statistics.data.gov.uk/id/local-authority/38,Oxfordshire County Council,SEN TRANSPORT,13/06/2022,5227,Other Transport Arrangements,3111196082,646,Oxon Transport Services Ltd
http://statistics.data.gov.uk/id/local-authority/38,Oxfordshire County Council,SEN TRANSPORT,13/06/2022,5227,Other Transport Arrangements,3111196087,646,Oxon Transport Services Ltd
http://statistics.data.gov.uk/id/local-authority/38,Oxfordshire County Council,SEN TRANSPORT,13/06/2022,5227,Other Transport Arrangements,3111196114,646,Oxon Transport Services Ltd
http://statistics.data.gov.uk/id/local-authority/38,Oxfordshire County Council,SEN TRANSPORT,13/06/2022,5227,Other Transport Arrangements,3111196132,646,Oxon Transport Services Ltd
http://statistics.data.gov.uk/id/local-authority/38,Oxfordshire County Council,Support at Home U65 Physical Support,07/06/2022,5899,Social Care - Direct Payments,3111189828,646.08,Purple Conversation Com In Co (DP)
http://statistics.data.gov.uk/id/local-authority/38,Oxfordshire County Council,Planned Maintenance,24/06/2022,3787,Premises Repairs,2201001326,647,Ambiflex Ltd
http://statistics.data.gov.uk/id/local-authority/38,Oxfordshire County Council,NURSERY ED FUND,15/06/2022,5537,Payments to Other Establishments,3111196670,647.28,Sarah Allen
http://statistics.data.gov.uk/id/local-authority/38,Oxfordshire County Council,Support at Home U65 Learning Disability,10/06/2022,5690,,3111191469,647.36,MacIntyre Care (Womaston)
http://statistics.data.gov.uk/id/local-authority/38,Oxfordshire County Council,Support at Home 65+ Physical Support,21/06/2022,5689,,3111200223,648.3,Care Outlook Ltd
http://statistics.data.gov.uk/id/local-authority/38,Oxfordshire County Council,,10/06/2022,1448,Blackfield Inc & Exp A/c,3111191255,648.59,OCC One Time Vendor
http://statistics.data.gov.uk/id/local-authority/38,Oxfordshire County Council,Support at Home U65 Autism /Abated,10/06/2022,5690,,3111191571,648.69,Style Acre
http://statistics.data.gov.uk/id/local-authority/38,Oxfordshire County Council,Support at Home U65 Learning Disability,10/06/2022,5690,,3111191602,648.69,Style Acre
http://statistics.data.gov.uk/id/local-authority/38,Oxfordshire County Council,Support at Home U65 Learning Disability,10/06/2022,5690,,3111191461,648.69,The Ice Centre
http://statistics.data.gov.uk/id/local-authority/38,Oxfordshire County Council,Support at Home U65 Learning Disability,10/06/2022,5690,,3111191524,648.69,Turnstyle
http://statistics.data.gov.uk/id/local-authority/38,Oxfordshire County Council,Support at Home U65 Learning Disability,10/06/2022,5690,,3111191539,648.69,Turnstyle
http://statistics.data.gov.uk/id/local-authority/38,Oxfordshire County Council,Children in Care Non-staffing - South,17/06/2022,5227,Other Transport Arrangements,3111198732,648.78,LINK SHIRES LTD
http://statistics.data.gov.uk/id/local-authority/38,Oxfordshire County Council,Support at Home 65+ Memory & Cognition,21/06/2022,5699,,3111201402,648.9,YOD Ltd
http://statistics.data.gov.uk/id/local-authority/38,Oxfordshire County Council,Delegated Health Tasks  - Under 65,28/06/2022,5691,,3111203952,649.32,Bluebird Care (Oxford South & West)
http://statistics.data.gov.uk/id/local-authority/38,Oxfordshire County Council,COUNTY PRINT FINSHRS,20/06/2022,4705,Printing,2200999510,649.87,Lexon Group
http://statistics.data.gov.uk/id/local-authority/38,Oxfordshire County Council,CORONER,13/06/2022,5202,Use of Mortuary Services,2200996167,650,Dr Atharina Julai
http://statistics.data.gov.uk/id/local-authority/38,Oxfordshire County Council,Swindon Adoption Support Fund,16/06/2022,4861,Hired and Contracted Services,2200997768,650,Joanna Cowley
http://statistics.data.gov.uk/id/local-authority/38,Oxfordshire County Council,PREMISES,08/06/2022,4122,Other premises related costs,2200994525,650,Lee & Freeman
http://statistics.data.gov.uk/id/local-authority/38,Oxfordshire County Council,FLEET OPERATIONS,09/06/2022,4270,HTM / Other Vehicle - Hire Charges,2200994998,650,London Hire
http://statistics.data.gov.uk/id/local-authority/38,Oxfordshire County Council,LEGAL SERVICES,21/06/2022,5251,Legal Costs,2201000778,650,Ms Poonam Bhari
http://statistics.data.gov.uk/id/local-authority/38,Oxfordshire County Council,SWIF FUNDING,01/06/2022,3100,Educational and Vocational Training,2200993721,650,NSPCC
http://statistics.data.gov.uk/id/local-authority/38,Oxfordshire County Council,Youth Justice & Exploitation,15/06/2022,4330,Transport to School Activities,3111198167,650,OXFORD BLUE CARS
http://statistics.data.gov.uk/id/local-authority/38,Oxfordshire County Council,The Oaks Emergency & Asssessment Centre,08/06/2022,4407,Equipment,2200994521,650,Parker Contract Cleaning
http://statistics.data.gov.uk/id/local-authority/38,Oxfordshire County Council,LAC PUPIL PREMIUM,21/06/2022,5537,Payments to Other Establishments,3111199241,650,Tibberton CE Primary
http://statistics.data.gov.uk/id/local-authority/38,Oxfordshire County Council,FLEET COSTS,06/06/2022,4270,HTM / Other Vehicle - Hire Charges,2200993878,650,West Wallasey Fleet Hire Services
http://statistics.data.gov.uk/id/local-authority/38,Oxfordshire County Council,SHORT BREAK ACTIVITIES,08/06/2022,5161,Adoption Expenses - Fees and Expenses,2200994655,650,Yellow Submarine Holidays
